Workbook

Sheet Campos_Ingreso_Datos (hidden)
A1: SEGMENTO | B1: Vinculo | C1: Rango | D1: Formato | E1: Lista | F1: Lista2 | G1: Restablacer | H1: Combinada | I1: Ajuste_Filas_Cols
A2: Datos Contribuyente | B2: =' '!D137 -> 0 | C2: =IFERROR(_xlfn.FORMULATEXT(Campos_Ingreso_Datos[[#This Row],[Vinculo]]),"") -> =' '!D137 | D2: General | I2: =ROW(' '!D137)&"_"&COLUMN(' '!D137) -> 137_4
A3: Datos Contribuyente | B3: =' '!D138 -> 0 | C3: =IFERROR(_xlfn.FORMULATEXT(Campos_Ingreso_Datos[[#This Row],[Vinculo]]),"") -> =' '!D138 | D3: #,##0 | I3: =ROW(' '!D138)&"_"&COLUMN(' '!D138) -> 138_4
A4: Datos Contribuyente | B4: =' '!D149 -> 00:00:00 | C4: =IFERROR(_xlfn.FORMULATEXT(Campos_Ingreso_Datos[[#This Row],[Vinculo]]),"") -> =' '!D149 | D4: dd/mm/yyyy;@ | E4: 2022-01-01 | F4: 2100-12-31 | I4: =ROW(' '!D149)&"_"&COLUMN(' '!D149) -> 149_4
A5: Datos Contribuyente | B5: =' '!D157 -> 00:00:00 | C5: =IFERROR(_xlfn.FORMULATEXT(Campos_Ingreso_Datos[[#This Row],[Vinculo]]),"") -> =' '!D157 | D5: dd/mm/yyyy;@ | E5: 2022-01-01 | F5: 2100-12-31 | I5: =ROW(' '!D157)&"_"&COLUMN(' '!D157) -> 157_4

Sheet Comentarios (hidden)
A1: RUTA | B1: Formulada | C1: Comentario | D1: Largo | E1: Segmento | F1: Color
A2: =SUBSTITUTE(SUBSTITUTE(_xlfn.FORMULATEXT(B2),"=",""),"'","") -> !B137 | B2: =' '!B137 -> Razón social del contribuyente | C2: Esta información debe coincidir con los datos consignados en la casilla 35 del RUT (actualizado) | E2: =OFFSET(Ref_Segmento,ROW(INDIRECT(IF(SUBSTITUTE(Comentarios[[#This Row],[RUTA]]," ","")=Comentarios[[#This Row],[RUTA]],Comentarios[[#This Row],[RUTA]],"'"&SUBSTITUTE(Comentarios[[#This Row],[RUTA]],"!","'!"))))-1,0) -> Datos Contribuyente | F2: Azul
A3: !B277 | B3: =' '!B277 -> Descripción del dato y/o formato | C3: Registre la información que va a presentar de manera extemporánea sobre la cual se puede establecer una cuantía o valor. | E3: =OFFSET(Ref_Segmento,ROW(INDIRECT(IF(SUBSTITUTE(Comentarios[[#This Row],[RUTA]]," ","")=Comentarios[[#This Row],[RUTA]],Comentarios[[#This Row],[RUTA]],"'"&SUBSTITUTE(Comentarios[[#This Row],[RUTA]],"!","'!"))))-1,0) -> Sanciones extemporaneidad | F3: Azul
A4: !B285 | B4: =' '!B285 -> Descripción del dato y/o formato | C4: Registre la información que va a presentar de manera extemporánea sobre la cual NO se puede establecer una cuantía o valor. | E4: =OFFSET(Ref_Segmento,ROW(INDIRECT(IF(SUBSTITUTE(Comentarios[[#This Row],[RUTA]]," ","")=Comentarios[[#This Row],[RUTA]],Comentarios[[#This Row],[RUTA]],"'"&SUBSTITUTE(Comentarios[[#This Row],[RUTA]],"!","'!"))))-1,0) -> Sanciones extemporaneidad | F4: Azul
A5: !B314 | B5: =' '!B314 -> ¿Aplica reducción de la sanción al 10%? | C5: De acuerdo con el parágrafo 1 del artículo 651 del ET, el obligado a informar podrá subsanar de manera voluntaria las faltas señaladas en el artículo en mención, antes de que la Administración Tributaria profiera pliego de cargos, en cuyo caso deberá liquidar y pagar la sanción correspondiente reducida al diez por ciento (10%). | E5: =OFFSET(Ref_Segmento,ROW(INDIRECT(IF(SUBSTITUTE(Comentarios[[#This Row],[RUTA]]," ","")=Comentarios[[#This Row],[RUTA]],Comentarios[[#This Row],[RUTA]],"'"&SUBSTITUTE(Comentarios[[#This Row],[RUTA]],"!","'!"))))-1,0) -> Sanciones extemporaneidad | F5: Azul
A6: !B315 | B6: =' '!B315 -> ¿Aplica reducción de la sanción al 50%? | C6: De acuerdo con el artículo 651 del ET, la sanción liquidada podrá ser reducida al cincuenta por ciento (50%) de la suma determinada, si la omisión es subsanada antes de que se notifique la imposición de la sanción por parte de la Administración Tributaria. Para tal efecto, se deberá presentar ante la oficina que está conociendo de la investigación, un memorial de aceptación de la sanción reducida en el cual se acredite que la omisión fue subsanada, así como el pago o acuerdo de pago de la misma. | E6: =OFFSET(Ref_Segmento,ROW(INDIRECT(IF(SUBSTITUTE(Comentarios[[#This Row],[RUTA]]," ","")=Comentarios[[#This Row],[RUTA]],Comentarios[[#This Row],[RUTA]],"'"&SUBSTITUTE(Comentarios[[#This Row],[RUTA]],"!","'!"))))-1,0) -> Sanciones extemporaneidad | F6: Azul
A7: !B316 | B7: =' '!B316 -> ¿Aplica reducción de la sanción al 70%? | C7: De acuerdo con el artículo 651 del ET la sanción liquidada podrá ser reducida al setenta por ciento (70%) de la suma determinada, si la omisión es subsanada dentro de los dos (2) meses siguientes a la fecha en que se notifique la sanción. Para tal efecto, se deberá presentar ante la oficina que está conociendo de la investigación, un memorial de aceptación de la sanción reducida en el cual se acredite que la omisión fue subsanada, así como el pago o acuerdo de pago de la misma. | E7: =OFFSET(Ref_Segmento,ROW(INDIRECT(IF(SUBSTITUTE(Comentarios[[#This Row],[RUTA]]," ","")=Comentarios[[#This Row],[RUTA]],Comentarios[[#This Row],[RUTA]],"'"&SUBSTITUTE(Comentarios[[#This Row],[RUTA]],"!","'!"))))-1,0) -> Sanciones extemporaneidad | F7: Azul
A8: !B322 | B8: =' '!B322 -> ¿En los dos años anteriores a la generación de esta sanción por extemporaneidad, el contribuyente incurrió en la misma conducta sancionable? | C8: Mediante el numeral 1.1 del Concepto 14116 de 2017 (Concepto Unificado sobre Procedimiento Tributario), la DIAN precisa que en lo correspondiente a las sanciones por extemporaneidad (artículos 641, 642 y 645 del ET), por no declarar (artículo 643 del ET) y por corrección (artículos 644, 645 y 647-1 del ET), para efectos de la aplicación del artículo 640 del ET, es necesario verificar si la misma conducta sancionable se cometió en el pasado, independientemente del impuesto sobre el cual versa la declaración tributaria. | E8: =OFFSET(Ref_Segmento,ROW(INDIRECT(IF(SUBSTITUTE(Comentarios[[#This Row],[RUTA]]," ","")=Comentarios[[#This Row],[RUTA]],Comentarios[[#This Row],[RUTA]],"'"&SUBSTITUTE(Comentarios[[#This Row],[RUTA]],"!","'!"))))-1,0) -> Sanciones extemporaneidad | F8: Azul
A9: !B327 | B9: =' '!B327 -> ¿Aplica reducción de la sanción al 50%? | C9: De acuerdo con el numeral 1 del artículo 640 del ET, cuando la sanción deba ser liquidada por el contribuyente, podrá ser reducida al 50%, siempre y cuando se cumplan las siguientes condiciones: - Que dentro de los dos (2) años anteriores a la fecha de la comisión de la conducta sancionable no se hubiere cometido la misma; y - Que la Administración Tributaria no haya proferido pliego de cargos, requerimiento especial o emplazamiento previo por no declarar, según el caso. En caso de que no se cumplan las dos condiciones, el contribuyente no podrá acogerse al beneficio de la reducción de la sanción al 50%. | E9: =OFFSET(Ref_Segmento,ROW(INDIRECT(IF(SUBSTITUTE(Comentarios[[#This Row],[RUTA]]," ","")=Comentarios[[#This Row],[RUTA]],Comentarios[[#This Row],[RUTA]],"'"&SUBSTITUTE(Comentarios[[#This Row],[RUTA]],"!","'!"))))-1,0) -> Sanciones extemporaneidad | F9: Azul
A10: !B328 | B10: =' '!B328 -> ¿Aplica reducción de la sanción al 75%? | C10: El numeral 2 del artículo 640 del ET establece que, cuando la sanción deba ser liquidada por el contribuyente, podrá ser reducida al 75%, siempre y cuando se cumplan las siguientes condiciones: - Que dentro del año (1) año anterior a la fecha de la comisión de la conducta sancionable no se hubiere cometido la misma; y - Que la Administración Tributaria no haya proferido pliego de cargos, requerimiento especial o emplazamiento previo por no declarar, según el caso. En caso de que no se cumplan las dos condiciones, el contribuyente no podrá acogerse al beneficio de la reducción de la sanción al 75%. | E10: =OFFSET(Ref_Segmento,ROW(INDIRECT(IF(SUBSTITUTE(Comentarios[[#This Row],[RUTA]]," ","")=Comentarios[[#This Row],[RUTA]],Comentarios[[#This Row],[RUTA]],"'"&SUBSTITUTE(Comentarios[[#This Row],[RUTA]],"!","'!"))))-1,0) -> Sanciones extemporaneidad | F10: Azul
A11: !B338 | B11: =' '!B338 -> ¿Aplica reducción de la sanción al 50%? | C11: De acuerdo con el numeral 3 del artículo 640 del ET, cuando la sanción sea propuesta o determinada por la DIAN, podrá ser reducida al 50%, siempre y cuando se cumplan las siguientes condiciones: - Que dentro de los cuatro (4) años anteriores a la fecha de la comisión de la conducta sancionable no se hubiere cometido la misma, y esta se hubiere sancionado mediante acto administrativo en firme; y - Que la sanción sea aceptada y la infracción subsanada de conformidad con lo establecido en el tipo sancionatorio correspondiente. En caso de que no se cumplan las dos condiciones, el contribuyente no podrá acogerse al beneficio de la reducción de la sanción al 50%. | E11: =OFFSET(Ref_Segmento,ROW(INDIRECT(IF(SUBSTITUTE(Comentarios[[#This Row],[RUTA]]," ","")=Comentarios[[#This Row],[RUTA]],Comentarios[[#This Row],[RUTA]],"'"&SUBSTITUTE(Comentarios[[#This Row],[RUTA]],"!","'!"))))-1,0) -> Sanciones extemporaneidad | F11: Azul
A12: !B339 | B12: =' '!B339 -> ¿Aplica reducción de la sanción al 75%? | C12: El numeral 4 del artículo 640 del ET establece que, cuando la sanción sea propuesta o liquidada por la DIAN, podrá ser reducida al 75%, siempre y cuando se cumplan las siguientes condiciones: - Que dentro de los dos (2) años anteriores a la fecha de la comisión de la conducta sancionable no se hubiere cometido la misma, y esta se hubiere sancionado mediante acto administrativo en firme; y - Que la sanción sea aceptada y la infracción subsanada de conformidad con lo establecido en el tipo sancionatorio correspondiente. En caso de que no se cumplan las dos condiciones, el contribuyente no podrá acogerse al beneficio de la reducción de la sanción al 75%. | E12: =OFFSET(Ref_Segmento,ROW(INDIRECT(IF(SUBSTITUTE(Comentarios[[#This Row],[RUTA]]," ","")=Comentarios[[#This Row],[RUTA]],Comentarios[[#This Row],[RUTA]],"'"&SUBSTITUTE(Comentarios[[#This Row],[RUTA]],"!","'!"))))-1,0) -> Sanciones extemporaneidad | F12: Azul
A13: !B349 | B13: =' '!B349 -> Descripción del dato y/o formato | C13: Registre la información que se reportó de manera errónea e incluya también la información correcta, sobre la cual se puede establecer una cuantía o valor. | E13: =OFFSET(Ref_Segmento,ROW(INDIRECT(IF(SUBSTITUTE(Comentarios[[#This Row],[RUTA]]," ","")=Comentarios[[#This Row],[RUTA]],Comentarios[[#This Row],[RUTA]],"'"&SUBSTITUTE(Comentarios[[#This Row],[RUTA]],"!","'!"))))-1,0) -> Sanción por corrección | F13: Azul
A14: !B357 | B14: =' '!B357 -> Descripción del dato y/o formato | C14: Registre la información que se reportó de manera errónea, sobre la cual NO se puede establecer una cuantía o valor. | E14: =OFFSET(Ref_Segmento,ROW(INDIRECT(IF(SUBSTITUTE(Comentarios[[#This Row],[RUTA]]," ","")=Comentarios[[#This Row],[RUTA]],Comentarios[[#This Row],[RUTA]],"'"&SUBSTITUTE(Comentarios[[#This Row],[RUTA]],"!","'!"))))-1,0) -> Sanción por corrección | F14: Azul
A15: !B386 | B15: =' '!B386 -> ¿Aplica reducción de la sanción al 10%? | C15: De acuerdo con el parágrafo 1 del artículo 651 del ET, el obligado a informar podrá subsanar de manera voluntaria las faltas señaladas en el artículo en mención, antes de que la Administración Tributaria profiera pliego de cargos, en cuyo caso deberá liquidar y pagar la sanción correspondiente reducida al diez por ciento (10%). | E15: =OFFSET(Ref_Segmento,ROW(INDIRECT(IF(SUBSTITUTE(Comentarios[[#This Row],[RUTA]]," ","")=Comentarios[[#This Row],[RUTA]],Comentarios[[#This Row],[RUTA]],"'"&SUBSTITUTE(Comentarios[[#This Row],[RUTA]],"!","'!"))))-1,0) -> Sanción por corrección | F15: Azul
A16: !B387 | B16: =' '!B387 -> ¿Aplica reducción de la sanción al 50%? | C16: De acuerdo con el artículo 651 del ET, la sanción liquidada podrá ser reducida al cincuenta por ciento (50%) de la suma determinada, si la omisión es subsanada antes de que se notifique la imposición de la sanción por parte de la Administración Tributaria. Para tal efecto, se deberá presentar ante la oficina que está conociendo de la investigación, un memorial de aceptación de la sanción reducida en el cual se acredite que la omisión fue subsanada, así como el pago o acuerdo de pago de la misma. | E16: =OFFSET(Ref_Segmento,ROW(INDIRECT(IF(SUBSTITUTE(Comentarios[[#This Row],[RUTA]]," ","")=Comentarios[[#This Row],[RUTA]],Comentarios[[#This Row],[RUTA]],"'"&SUBSTITUTE(Comentarios[[#This Row],[RUTA]],"!","'!"))))-1,0) -> Sanción por corrección | F16: Azul
A17: !B388 | B17: =' '!B388 -> ¿Aplica reducción de la sanción al 70%? | C17: De acuerdo con el artículo 651 del ET la sanción liquidada podrá ser reducida al setenta por ciento (70%) de la suma determinada, si la omisión es subsanada dentro de los dos (2) meses siguientes a la fecha en que se notifique la sanción. Para tal efecto, se deberá presentar ante la oficina que está conociendo de la investigación, un memorial de aceptación de la sanción reducida en el cual se acredite que la omisión fue subsanada, así como el pago o acuerdo de pago de la misma. | E17: =OFFSET(Ref_Segmento,ROW(INDIRECT(IF(SUBSTITUTE(Comentarios[[#This Row],[RUTA]]," ","")=Comentarios[[#This Row],[RUTA]],Comentarios[[#This Row],[RUTA]],"'"&SUBSTITUTE(Comentarios[[#This Row],[RUTA]],"!","'!"))))-1,0) -> Sanción por corrección | F17: Azul
A18: !B394 | B18: =' '!B394 -> ¿En los dos años anteriores a la generación de esta sanción por extemporaneidad, el contribuyente incurrió en la misma conducta sancionable? | C18: Mediante el numeral 1.1 del Concepto 14116 de 2017 (Concepto Unificado sobre Procedimiento Tributario), la DIAN precisa que en lo correspondiente a las sanciones por extemporaneidad (artículos 641, 642 y 645 del ET), por no declarar (artículo 643 del ET) y por corrección (artículos 644, 645 y 647-1 del ET), para efectos de la aplicación del artículo 640 del ET, es necesario verificar si la misma conducta sancionable se cometió en el pasado, independientemente del impuesto sobre el cual versa la declaración tributaria. | E18: =OFFSET(Ref_Segmento,ROW(INDIRECT(IF(SUBSTITUTE(Comentarios[[#This Row],[RUTA]]," ","")=Comentarios[[#This Row],[RUTA]],Comentarios[[#This Row],[RUTA]],"'"&SUBSTITUTE(Comentarios[[#This Row],[RUTA]],"!","'!"))))-1,0) -> Sanción por corrección | F18: Azul
A19: !B399 | B19: =' '!B399 -> ¿Aplica reducción de la sanción al 50%? | C19: De acuerdo con el numeral 1 del artículo 640 del ET, cuando la sanción deba ser liquidada por el contribuyente, podrá ser reducida al 50%, siempre y cuando se cumplan las siguientes condiciones: - Que dentro de los dos (2) años anteriores a la fecha de la comisión de la conducta sancionable no se hubiere cometido la misma; y - Que la Administración Tributaria no haya proferido pliego de cargos, requerimiento especial o emplazamiento previo por no declarar, según el caso. En caso de que no se cumplan las dos condiciones, el contribuyente no podrá acogerse al beneficio de la reducción de la sanción al 50%. | E19: =OFFSET(Ref_Segmento,ROW(INDIRECT(IF(SUBSTITUTE(Comentarios[[#This Row],[RUTA]]," ","")=Comentarios[[#This Row],[RUTA]],Comentarios[[#This Row],[RUTA]],"'"&SUBSTITUTE(Comentarios[[#This Row],[RUTA]],"!","'!"))))-1,0) -> Sanción por corrección | F19: Azul
A20: !B400 | B20: =' '!B400 -> ¿Aplica reducción de la sanción al 75%? | C20: El numeral 2 del artículo 640 del ET establece que, cuando la sanción deba ser liquidada por el contribuyente, podrá ser reducida al 75%, siempre y cuando se cumplan las siguientes condiciones: - Que dentro del año (1) año anterior a la fecha de la comisión de la conducta sancionable no se hubiere cometido la misma; y - Que la Administración Tributaria no haya proferido pliego de cargos, requerimiento especial o emplazamiento previo por no declarar, según el caso. En caso de que no se cumplan las dos condiciones, el contribuyente no podrá acogerse al beneficio de la reducción de la sanción al 75%. | E20: =OFFSET(Ref_Segmento,ROW(INDIRECT(IF(SUBSTITUTE(Comentarios[[#This Row],[RUTA]]," ","")=Comentarios[[#This Row],[RUTA]],Comentarios[[#This Row],[RUTA]],"'"&SUBSTITUTE(Comentarios[[#This Row],[RUTA]],"!","'!"))))-1,0) -> Sanción por corrección | F20: Azul
A21: !B410 | B21: =' '!B410 -> ¿Aplica reducción de la sanción al 50%? | C21: De acuerdo con el numeral 3 del artículo 640 del ET, cuando la sanción sea propuesta o determinada por la DIAN, podrá ser reducida al 50%, siempre y cuando se cumplan las siguientes condiciones: - Que dentro de los cuatro (4) años anteriores a la fecha de la comisión de la conducta sancionable no se hubiere cometido la misma, y esta se hubiere sancionado mediante acto administrativo en firme; y - Que la sanción sea aceptada y la infracción subsanada de conformidad con lo establecido en el tipo sancionatorio correspondiente. En caso de que no se cumplan las dos condiciones, el contribuyente no podrá acogerse al beneficio de la reducción de la sanción al 50%. | E21: =OFFSET(Ref_Segmento,ROW(INDIRECT(IF(SUBSTITUTE(Comentarios[[#This Row],[RUTA]]," ","")=Comentarios[[#This Row],[RUTA]],Comentarios[[#This Row],[RUTA]],"'"&SUBSTITUTE(Comentarios[[#This Row],[RUTA]],"!","'!"))))-1,0) -> Sanción por corrección | F21: Azul
A22: !B411 | B22: =' '!B411 -> ¿Aplica reducción de la sanción al 75%? | C22: El numeral 4 del artículo 640 del ET establece que, cuando la sanción sea propuesta o liquidada por la DIAN, podrá ser reducida al 75%, siempre y cuando se cumplan las siguientes condiciones: - Que dentro de los dos (2) años anteriores a la fecha de la comisión de la conducta sancionable no se hubiere cometido la misma, y esta se hubiere sancionado mediante acto administrativo en firme; y - Que la sanción sea aceptada y la infracción subsanada de conformidad con lo establecido en el tipo sancionatorio correspondiente. En caso de que no se cumplan las dos condiciones, el contribuyente no podrá acogerse al beneficio de la reducción de la sanción al 75%. | E22: =OFFSET(Ref_Segmento,ROW(INDIRECT(IF(SUBSTITUTE(Comentarios[[#This Row],[RUTA]]," ","")=Comentarios[[#This Row],[RUTA]],Comentarios[[#This Row],[RUTA]],"'"&SUBSTITUTE(Comentarios[[#This Row],[RUTA]],"!","'!"))))-1,0) -> Sanción por corrección | F22: Azul
A23: !B421 | B23: =' '!B421 -> Descripción del dato y/o formato | C23: Registre la información que va a presentar de manera extemporánea sobre la cual se puede establecer una cuantía o valor. | E23: =OFFSET(Ref_Segmento,ROW(INDIRECT(IF(SUBSTITUTE(Comentarios[[#This Row],[RUTA]]," ","")=Comentarios[[#This Row],[RUTA]],Comentarios[[#This Row],[RUTA]],"'"&SUBSTITUTE(Comentarios[[#This Row],[RUTA]],"!","'!"))))-1,0) -> Sanción no envío info | F23: Azul
A24: !B430 | B24: =' '!B430 -> Descripción del dato y/o formato | C24: Registre la información que va a presentar de manera extemporánea sobre la cual NO se puede establecer una cuantía o valor. | E24: =OFFSET(Ref_Segmento,ROW(INDIRECT(IF(SUBSTITUTE(Comentarios[[#This Row],[RUTA]]," ","")=Comentarios[[#This Row],[RUTA]],Comentarios[[#This Row],[RUTA]],"'"&SUBSTITUTE(Comentarios[[#This Row],[RUTA]],"!","'!"))))-1,0) -> Sanción no envío info | F24: Azul
A25: !B457 | B25: =' '!B457 -> ¿Aplica reducción de la sanción al 70%? | C25: De acuerdo con el artículo 651 del ET la sanción liquidada podrá ser reducida al setenta por ciento (70%) de la suma determinada, si la omisión es subsanada dentro de los dos (2) meses siguientes a la fecha en que se notifique la sanción. Para tal efecto, se deberá presentar ante la oficina que está conociendo de la investigación, un memorial de aceptación de la sanción reducida en el cual se acredite que la omisión fue subsanada, así como el pago o acuerdo de pago de la misma. | E25: =OFFSET(Ref_Segmento,ROW(INDIRECT(IF(SUBSTITUTE(Comentarios[[#This Row],[RUTA]]," ","")=Comentarios[[#This Row],[RUTA]],Comentarios[[#This Row],[RUTA]],"'"&SUBSTITUTE(Comentarios[[#This Row],[RUTA]],"!","'!"))))-1,0) -> Sanción no envío info | F25: Azul
A26: !B463 | B26: =' '!B463 -> ¿En los dos años anteriores a la generación de esta sanción por extemporaneidad, el contribuyente incurrió en la misma conducta sancionable? | C26: Mediante el numeral 1.1 del Concepto 14116 de 2017 (Concepto Unificado sobre Procedimiento Tributario), la DIAN precisa que en lo correspondiente a las sanciones por extemporaneidad (artículos 641, 642 y 645 del ET), por no declarar (artículo 643 del ET) y por corrección (artículos 644, 645 y 647-1 del ET), para efectos de la aplicación del artículo 640 del ET, es necesario verificar si la misma conducta sancionable se cometió en el pasado, independientemente del impuesto sobre el cual versa la declaración tributaria. | E26: =OFFSET(Ref_Segmento,ROW(INDIRECT(IF(SUBSTITUTE(Comentarios[[#This Row],[RUTA]]," ","")=Comentarios[[#This Row],[RUTA]],Comentarios[[#This Row],[RUTA]],"'"&SUBSTITUTE(Comentarios[[#This Row],[RUTA]],"!","'!"))))-1,0) -> Sanción no envío info | F26: Azul
A27: !B468 | B27: =' '!B468 -> ¿Aplica reducción de la sanción al 50%? | C27: De acuerdo con el numeral 1 del artículo 640 del ET, cuando la sanción deba ser liquidada por el contribuyente, podrá ser reducida al 50%, siempre y cuando se cumplan las siguientes condiciones: - Que dentro de los dos (2) años anteriores a la fecha de la comisión de la conducta sancionable no se hubiere cometido la misma; y - Que la Administración Tributaria no haya proferido pliego de cargos, requerimiento especial o emplazamiento previo por no declarar, según el caso. En caso de que no se cumplan las dos condiciones, el contribuyente no podrá acogerse al beneficio de la reducción de la sanción al 50%. | E27: =OFFSET(Ref_Segmento,ROW(INDIRECT(IF(SUBSTITUTE(Comentarios[[#This Row],[RUTA]]," ","")=Comentarios[[#This Row],[RUTA]],Comentarios[[#This Row],[RUTA]],"'"&SUBSTITUTE(Comentarios[[#This Row],[RUTA]],"!","'!"))))-1,0) -> Sanción no envío info | F27: Azul
A28: !B469 | B28: =' '!B469 -> ¿Aplica reducción de la sanción al 75%? | C28: El numeral 2 del artículo 640 del ET establece que, cuando la sanción deba ser liquidada por el contribuyente, podrá ser reducida al 75%, siempre y cuando se cumplan las siguientes condiciones: - Que dentro del año (1) año anterior a la fecha de la comisión de la conducta sancionable no se hubiere cometido la misma; y - Que la Administración Tributaria no haya proferido pliego de cargos, requerimiento especial o emplazamiento previo por no declarar, según el caso. En caso de que no se cumplan las dos condiciones, el contribuyente no podrá acogerse al beneficio de la reducción de la sanción al 75%. | E28: =OFFSET(Ref_Segmento,ROW(INDIRECT(IF(SUBSTITUTE(Comentarios[[#This Row],[RUTA]]," ","")=Comentarios[[#This Row],[RUTA]],Comentarios[[#This Row],[RUTA]],"'"&SUBSTITUTE(Comentarios[[#This Row],[RUTA]],"!","'!"))))-1,0) -> Sanción no envío info | F28: Azul
A29: !B479 | B29: =' '!B479 -> ¿Aplica reducción de la sanción al 50%? | C29: De acuerdo con el numeral 3 del artículo 640 del ET, cuando la sanción sea propuesta o determinada por la DIAN, podrá ser reducida al 50%, siempre y cuando se cumplan las siguientes condiciones: - Que dentro de los cuatro (4) años anteriores a la fecha de la comisión de la conducta sancionable no se hubiere cometido la misma, y esta se hubiere sancionado mediante acto administrativo en firme; y - Que la sanción sea aceptada y la infracción subsanada de conformidad con lo establecido en el tipo sancionatorio correspondiente. En caso de que no se cumplan las dos condiciones, el contribuyente no podrá acogerse al beneficio de la reducción de la sanción al 50%. | E29: =OFFSET(Ref_Segmento,ROW(INDIRECT(IF(SUBSTITUTE(Comentarios[[#This Row],[RUTA]]," ","")=Comentarios[[#This Row],[RUTA]],Comentarios[[#This Row],[RUTA]],"'"&SUBSTITUTE(Comentarios[[#This Row],[RUTA]],"!","'!"))))-1,0) -> Sanción no envío info | F29: Azul
A30: !B480 | B30: =' '!B480 -> ¿Aplica reducción de la sanción al 75%? | C30: El numeral 4 del artículo 640 del ET establece que, cuando la sanción sea propuesta o liquidada por la DIAN, podrá ser reducida al 75%, siempre y cuando se cumplan las siguientes condiciones: - Que dentro de los dos (2) años anteriores a la fecha de la comisión de la conducta sancionable no se hubiere cometido la misma, y esta se hubiere sancionado mediante acto administrativo en firme; y - Que la sanción sea aceptada y la infracción subsanada de conformidad con lo establecido en el tipo sancionatorio correspondiente. En caso de que no se cumplan las dos condiciones, el contribuyente no podrá acogerse al beneficio de la reducción de la sanción al 75%. | E30: =OFFSET(Ref_Segmento,ROW(INDIRECT(IF(SUBSTITUTE(Comentarios[[#This Row],[RUTA]]," ","")=Comentarios[[#This Row],[RUTA]],Comentarios[[#This Row],[RUTA]],"'"&SUBSTITUTE(Comentarios[[#This Row],[RUTA]],"!","'!"))))-1,0) -> Sanción no envío info | F30: Azul

Sheet Desarrollador (hidden)
A1: Accion | B1: Grupo | C1: Tipo | D1: Imagen | E1: Left | F1: Top | G1: Height | H1: Width | I1: Visible | L1: Segmento | M1: Fila | N1: Alto | O1: Herramienta | P1: Version | Q1: Formato_Editar | R1: Avisos | S1: Alertas | T1: ESTADO_VALIDACION | U1: Tipo | V1: Inicio | W1: Hijos
A2: Siempre | C2: Imagen | D2: Titulo_Segmento | E2: =E4+G4+20 -> 218 | F2: 10 | G2: 90 | H2: 600 | I2: =IF(Parametros[Segmento]="Fondo_Menu",1,0) -> 1 | L2: Fondo_Menu | M2: =IFERROR(MATCH(Parametros[[#This Row],[Segmento]],' '!$AX:$AX,0),0) -> 6 | N2: =IFERROR(COUNTIF(OFFSET(Ref_Segmento,0,0,100000),Parametros[[#This Row],[Segmento]]),0) -> 35 | O2: Actualicese Exógena | P2: 20250318 | R2: 0 | S2: Formato_1009 | W2: =IFERROR(IF(INDEX(Tabla_Formatos_x_Informante[Hijos],MATCH(SUBSTITUTE(Parametros[[#This Row],[Segmento]],"Formato_",""),Tabla_Formatos_x_Informante[Número],0))="","",INDEX(Tabla_Formatos_x_Informante[Hijos],MATCH(SUBSTITUTE(Parametros[[#This Row],[Segmento]],"Formato_",""),Tabla_Formatos_x_Informante[Número],0))),"") -> 
A3: Siempre | C3: Imagen | D3: Logo | E3: 28 | F3: 18 | G3: 73.5 | H3: 171 | I3: 1 | L3: =IF(Parametros[Segmento]="Fondo_Menu","Preparación de la información exógena año gravable 2024","") -> Preparación de la información exógena año gravable 2024 | V3: =TEXT(MAX(Parametros[Inicio]+10/(24*60)-NOW(),0),"mm:ss") -> 00:00
A4: Siempre | C4: Imagen | D4: Division_1 | E4: 190 | F4: 50 | G4: 8 | H4: 84 | I4: 1 | L4: =IFERROR(SUBSTITUTE(VLOOKUP(SUBSTITUTE(Parametros[Segmento],"Formato_","")&" - "&"*",Tabla_Formatos_x_Informante[Listado],1,0)," - ",CHAR(13)),"") -> 
C5: Imagen | D5: Division_2 | E5: =IF(I44=1,E44+H44,IF(I43=1,E43+H43,$E$33+H33))+5 -> 1146 | F5: 50 | G5: 8 | H5: 84 | I5: =(LEFT(Parametros[Segmento],8)="Formato_")*1 -> 0
C6: Imagen | D6: Guardar | E6: =$E$4+70 -> 260 | F6: 26 | G6: 47 | H6: 150 | I6: =IFERROR((Parametros[Segmento]<>"Fondo_Menu")*1,1) -> 0
C7: Imagen | D7: Regresar_Al_Menu | E7: =$E$6+H6+20 -> 430 | F7: =$F$6 -> 26 | G7: 47 | H7: 150 | I7: =IFERROR((Parametros[Segmento]<>"Fondo_Menu")*(COUNTIF(Hijos[Hijo],SUBSTITUTE(Parametros[Segmento],"Formato_",""))=0),1) -> 0
C8: Imagen | D8: Barra Horizontal | E8: 55 | F8: 550 | G8: 14 | H8: 950 | I8: =IFERROR((Parametros[Segmento]="Fondo_Menu")*1,0) -> 1
C9: Imagen | D9: Exportar_PDF | E9: 721.2999878 | F9: 26.45000076 | G9: 45.28590393 | H9: 160
C10: Imagen | D10: Ajustar_Filas | E10: =$E$7+H7+20 -> 600 | F10: =$F$6 -> 26 | G10: 45.28590393 | H10: 175 | I10: =(OR(LEFT(Parametros[Segmento],8)="Formato_",Parametros[Segmento]="Consultas_Manuales_RUT")*1) -> 0
C11: Imagen | D11: Importar | E11: 604.5735474 | F11: 26.75 | G11: 45.28590393 | H11: 160
C12: Imagen | D12: Cronometro | E12: 312.6499939 | F12: 27.04999924 | G12: 47.90000153 | H12: 72.15000153
L13: m | M13: s | N13: l | O13: a
C14: Imagen | D14: Info de Orientacion | E14: 36 | F14: 130 | G14: 65 | H14: 214 | I14: =IFERROR((Parametros[Segmento]="Fondo_Menu")*1,0) -> 1 | L14: A8BD20524153
C15: Imagen | D15: Obligados | E15: =$E$14 -> 36 | F15: =$F$14+$G$14+14 -> 209 | G15: 50 | H15: 199 | I15: =IFERROR((Parametros[Segmento]="Fondo_Menu")*1,0) -> 1 | L15: AA1820524153
C16: Imagen | D16: Formatos según informante | E16: =$E$14 -> 36 | F16: =F15+G15+10 -> 269 | G16: 50 | H16: 199 | I16: =IFERROR((Parametros[Segmento]="Fondo_Menu")*1,0) -> 1 | L16: AA1820524153
C17: Imagen | D17: Consultas_Manuales_RUT | E17: =$E$14 -> 36 | F17: =F16+G16+10 -> 329 | G17: 35 | H17: 199 | I17: 0 | L17: 48E7DAC5AF37
B18: =IF(Parametros[Tipo]=2,"Esta sección no está disponible en la versión de prueba de Actualícese 110.xls. Si quieres realizar tu declaración de renta de personas jurídicas de forma rápida y en solo 3 pasos, adquiere nuestra herramienta ingresando a:","") ->  | C18: Imagen | D18: Información del Contribuyente | E18: 314 | F18: =$F$14 -> 130 | G18: 66 | H18: 216 | I18: =IFERROR((Parametros[Segmento]="Fondo_Menu")*1,0) -> 1 | L18: 4AE7DAC5AF27
C19: Imagen | D19: Datos Contribuyente | E19: =$E$18 -> 314 | F19: =F18+G18+14 -> 210 | G19: 33 | H19: 200 | I19: =IFERROR((Parametros[Segmento]="Fondo_Menu")*1,0) -> 1 | L19: 4AE7DAC5AF37
B20: =IF(Parametros[Tipo]=2,"Esta sección no está disponible en la versión de prueba de Actualícese 110.xls. Si quieres realizar tu declaración de renta de personas jurídicas de forma rápida y en solo 3 pasos, adquiere nuestra herramienta ingresando a:","") ->  | C20: Imagen | D20: Formatos | E20: =$E$18 -> 314 | F20: =F19+G19+27 -> 270 | G20: 66 | H20: 217 | I20: =IFERROR((Parametros[Segmento]="Fondo_Menu")*1,0) -> 1 | L20: EA4F20524153 | M20: RUE0RjIwNTI0MTUzLEQ0QkIyMDUyNDE1MyxENkNCMjA1MjQxNTMsMTA2ODM4NTI0MjY2LDEwNjgzODUyNDI2NywxMjY4Mzg1MjYyNDYsMTI2ODM4NTI3MjU2LDIwNDE1MzU5NEVGRg==/ZGx1bmFAYWN0dWFsaWNlc2UuY29t | N20: dluna@actualicese.com | O20: Tu licencia ha sido activada por ser Suscriptor
B21: =IF(Parametros[Tipo]=2,"Esta sección no está disponible en la versión de prueba de Actualícese 110.xls. Si quieres realizar tu declaración de renta de personas jurídicas de forma rápida y en solo 3 pasos, adquiere nuestra herramienta ingresando a:","") ->  | C21: Imagen | D21: Consultar_Formato | E21: =$E$18 -> 314 | F21: =F20+G20+14 -> 350 | G21: 35 | H21: 201 | I21: =IFERROR((Parametros[Segmento]="Fondo_Menu")*1,0) -> 1 | L21: D4BB20524153 | M21: RUE0RjIwNTI0MTUzLEQ0QkIyMDUyNDE1MyxENkNCMjA1MjQxNTMsMTA2ODM4NTI0MjY2LDEwNjgzODUyNDI2NywxMjY4Mzg1MjYyNDYsMTI2ODM4NTI3MjU2LDIwNDE1MzU5NEVGRg==/ZGx1bmFAYWN0dWFsaWNlc2UuY29t | N21: dluna@actualicese.com | O21: Tu licencia ha sido activada por ser Suscriptor
B22: =IF(Parametros[Tipo]=2,"Esta sección no está disponible en la versión de prueba de Actualícese 110.xls. Si quieres realizar tu declaración de renta de personas jurídicas de forma rápida y en solo 3 pasos, adquiere nuestra herramienta ingresando a:","") ->  | C22: Imagen | D22: Crear_Formato | E22: =$E$18 -> 314 | F22: =F21+G21+10 -> 395 | G22: 36 | H22: 199 | I22: =IFERROR((Parametros[Segmento]="Fondo_Menu")*1,0) -> 1 | L22: D6CB20524153 | M22: RUE0RjIwNTI0MTUzLEQ0QkIyMDUyNDE1MyxENkNCMjA1MjQxNTMsMTA2ODM4NTI0MjY2LDEwNjgzODUyNDI2NywxMjY4Mzg1MjYyNDYsMTI2ODM4NTI3MjU2LDIwNDE1MzU5NEVGRg==/ZGx1bmFAYWN0dWFsaWNlc2UuY29t | N22: dluna@actualicese.com | O22: Tu licencia ha sido activada por ser Suscriptor
C23: Imagen | D23: Sanciones | E23: 613 | F23: =$F$14 -> 130 | G23: 66 | H23: 213 | I23: =IFERROR((Parametros[Segmento]="Fondo_Menu")*1,0) -> 1 | L23: 106838524266 | M23: RUE0RjIwNTI0MTUzLEQ0QkIyMDUyNDE1MyxENkNCMjA1MjQxNTMsMTA2ODM4NTI0MjY2LDEwNjgzODUyNDI2NywxMjY4Mzg1MjYyNDYsMTI2ODM4NTI3MjU2LDIwNDE1MzU5NEVGRg==/ZGx1bmFAYWN0dWFsaWNlc2UuY29t | N23: dluna@actualicese.com | O23: Tu licencia ha sido activada por ser Suscriptor
C24: Imagen | D24: Vencimientos | E24: =$E$23 -> 613 | F24: =F23+G23+14 -> 210 | G24: 35 | H24: 197 | I24: =IFERROR((Parametros[Segmento]="Fondo_Menu")*1,0) -> 1 | L24: 106838524267 | M24: RUE0RjIwNTI0MTUzLEQ0QkIyMDUyNDE1MyxENkNCMjA1MjQxNTMsMTA2ODM4NTI0MjY2LDEwNjgzODUyNDI2NywxMjY4Mzg1MjYyNDYsMTI2ODM4NTI3MjU2LDIwNDE1MzU5NEVGRg==/ZGx1bmFAYWN0dWFsaWNlc2UuY29t | N24: dluna@actualicese.com | O24: Tu licencia ha sido activada por ser Suscriptor
C25: Imagen | D25: Sanciones2 | E25: =$E$23 -> 613 | F25: =F24+G24+10 -> 255 | G25: 37 | H25: 202 | I25: =IFERROR((Parametros[Segmento]="Fondo_Menu")*1,0) -> 1 | L25: 126838526246 | M25: RUE0RjIwNTI0MTUzLEQ0QkIyMDUyNDE1MyxENkNCMjA1MjQxNTMsMTA2ODM4NTI0MjY2LDEwNjgzODUyNDI2NywxMjY4Mzg1MjYyNDYsMTI2ODM4NTI3MjU2LDIwNDE1MzU5NEVGRg==/ZGx1bmFAYWN0dWFsaWNlc2UuY29t | N25: dluna@actualicese.com | O25: Tu licencia ha sido activada por ser Suscriptor
C26: Imagen | D26: Sanciones extemporaneidad | E26: =$E$23 -> 613 | F26: =F25+G25+10 -> 302 | G26: 33 | H26: 200 | I26: =IFERROR((Parametros[Segmento]="Fondo_Menu")*1,0) -> 1 | L26: 126838527256 | M26: RUE0RjIwNTI0MTUzLEQ0QkIyMDUyNDE1MyxENkNCMjA1MjQxNTMsMTA2ODM4NTI0MjY2LDEwNjgzODUyNDI2NywxMjY4Mzg1MjYyNDYsMTI2ODM4NTI3MjU2LDIwNDE1MzU5NEVGRg==/ZGx1bmFAYWN0dWFsaWNlc2UuY29t | N26: dluna@actualicese.com | O26: Tu licencia ha sido activada por ser Suscriptor
C27: Imagen | D27: Sanción por corrección | E27: =$E$23 -> 613 | F27: =F26+G26+10 -> 345 | G27: 33 | H27: 200 | I27: =IFERROR((Parametros[Segmento]="Fondo_Menu")*1,0) -> 1 | L27: 204153594EFF | M27: RUE0RjIwNTI0MTUzLEQ0QkIyMDUyNDE1MyxENkNCMjA1MjQxNTMsMTA2ODM4NTI0MjY2LDEwNjgzODUyNDI2NywxMjY4Mzg1MjYyNDYsMTI2ODM4NTI3MjU2LDIwNDE1MzU5NEVGRg==/ZGx1bmFAYWN0dWFsaWNlc2UuY29t | N27: dluna@actualicese.com | O27: Tu licencia ha sido activada por ser Suscriptor
B28: =IF(Parametros[Tipo]=2,"Esta sección no está disponible en la versión de prueba de Actualícese 110.xls. Si quieres realizar tu declaración de renta de personas jurídicas de forma rápida y en solo 3 pasos, adquiere nuestra herramienta ingresando a:","") ->  | C28: Imagen | D28: Sanción no envío info | E28: =$E$23 -> 613 | F28: =F27+G27+10 -> 388 | G28: 47 | H28: 200 | I28: =IFERROR((Parametros[Segmento]="Fondo_Menu")*1,0) -> 1 | L28: E8A420524153 | M28: RThBNDIwNTI0MTUzLDA2NEMyMDUyNDE1MywxQzdCMjA1MjQxNTMsNEFGRjY3Mjc1QjYwLDNDMkMzMEM1NkE5QyxEMEFCRDUzQTU1RUUsRDJBQkQ1M0E1NUVELEQwQUJENTNBNTVGMQ==/bHV6bWFybzIwMDNAaG90bWFpbC5jb20= | N28: luzmaro2003@hotmail.com | O28: Tu licencia ha sido activada por ser Suscriptor
C29: Imagen | D29: Validar_XML_a_Cargar | E29: =$E$18 -> 314 | F29: =F22+G22+10 -> 441 | G29: 36 | H29: 199 | I29: =IFERROR((Parametros[Segmento]="Fondo_Menu")*1,0) -> 1 | L29: 064C20524153 | M29: RThBNDIwNTI0MTUzLDA2NEMyMDUyNDE1MywxQzdCMjA1MjQxNTMsNEFGRjY3Mjc1QjYwLDNDMkMzMEM1NkE5QyxEMEFCRDUzQTU1RUUsRDJBQkQ1M0E1NUVELEQwQUJENTNBNTVGMQ==/bHV6bWFybzIwMDNAaG90bWFpbC5jb20= | N29: luzmaro2003@hotmail.com | O29: Tu licencia ha sido activada por ser Suscriptor
L30: 1C7B20524153 | M30: RThBNDIwNTI0MTUzLDA2NEMyMDUyNDE1MywxQzdCMjA1MjQxNTMsNEFGRjY3Mjc1QjYwLDNDMkMzMEM1NkE5QyxEMEFCRDUzQTU1RUUsRDJBQkQ1M0E1NUVELEQwQUJENTNBNTVGMQ==/bHV6bWFybzIwMDNAaG90bWFpbC5jb20= | N30: luzmaro2003@hotmail.com | O30: Tu licencia ha sido activada por ser Suscriptor
C31: Imagen | D31: Comentarios_Desactivar | E31: =$E$10+H10+28 -> 803 | F31: 29 | G31: 42 | H31: 140 | I31: =(LEFT(Parametros[Segmento],8)="Formato_")*1 -> 0 | L31: 4AFF67275B60 | M31: RThBNDIwNTI0MTUzLDA2NEMyMDUyNDE1MywxQzdCMjA1MjQxNTMsNEFGRjY3Mjc1QjYwLDNDMkMzMEM1NkE5QyxEMEFCRDUzQTU1RUUsRDJBQkQ1M0E1NUVELEQwQUJENTNBNTVGMQ==/bHV6bWFybzIwMDNAaG90bWFpbC5jb20= | N31: luzmaro2003@hotmail.com | O31: Tu licencia ha sido activada por ser Suscriptor
C32: Imagen | D32: Comentarios_Activar | E32: =$E$10+H10+28 -> 803 | F32: 29 | G32: 42 | H32: 140 | I32: =(LEFT(Parametros[Segmento],8)="Formato_")*1 -> 0 | L32: 3C2C30C56A9C | M32: RThBNDIwNTI0MTUzLDA2NEMyMDUyNDE1MywxQzdCMjA1MjQxNTMsNEFGRjY3Mjc1QjYwLDNDMkMzMEM1NkE5QyxEMEFCRDUzQTU1RUUsRDJBQkQ1M0E1NUVELEQwQUJENTNBNTVGMQ==/bHV6bWFybzIwMDNAaG90bWFpbC5jb20= | N32: luzmaro2003@hotmail.com | O32: Tu licencia ha sido activada por ser Suscriptor
C33: Imagen | D33: Consultar_Validacion | E33: =$E$31+H31+23 -> 966 | F33: =$F$6 -> 26 | G33: 47 | H33: 175 | I33: =IF(LEFT(Parametros[Segmento],8)="Formato_",IF(OR(Parametros[ESTADO_VALIDACION]="REVALIDAR ALERTAS",Parametros[ESTADO_VALIDACION]=""),0,(COUNTIF(Hijos[Hijo],MID(Parametros[Segmento],9,4)&"*")=0)*1),0) -> 0 | L33: D0ABD53A55EE | M33: RThBNDIwNTI0MTUzLDA2NEMyMDUyNDE1MywxQzdCMjA1MjQxNTMsNEFGRjY3Mjc1QjYwLDNDMkMzMEM1NkE5QyxEMEFCRDUzQTU1RUUsRDJBQkQ1M0E1NUVELEQwQUJENTNBNTVGMQ==/bHV6bWFybzIwMDNAaG90bWFpbC5jb20= | N33: luzmaro2003@hotmail.com | O33: Tu licencia ha sido activada por ser Suscriptor
C34: Imagen | D34: Generar_XML | E34: =$E$31+H31+23 -> 966 | F34: =$F$6 -> 26 | G34: 47 | H34: 175 | I34: =($I$33=0)*(COUNTIF(Hijos[Hijo],MID(Parametros[Segmento],9,4)&"*")=0)*(LEFT(Parametros[Segmento],8)="Formato_") -> 0 | L34: D2ABD53A55ED | M34: RThBNDIwNTI0MTUzLDA2NEMyMDUyNDE1MywxQzdCMjA1MjQxNTMsNEFGRjY3Mjc1QjYwLDNDMkMzMEM1NkE5QyxEMEFCRDUzQTU1RUUsRDJBQkQ1M0E1NUVELEQwQUJENTNBNTVGMQ==/bHV6bWFybzIwMDNAaG90bWFpbC5jb20= | N34: luzmaro2003@hotmail.com | O34: Tu licencia ha sido activada por ser Suscriptor
L35: D0ABD53A55F1 | M35: RThBNDIwNTI0MTUzLDA2NEMyMDUyNDE1MywxQzdCMjA1MjQxNTMsNEFGRjY3Mjc1QjYwLDNDMkMzMEM1NkE5QyxEMEFCRDUzQTU1RUUsRDJBQkQ1M0E1NUVELEQwQUJENTNBNTVGMQ==/bHV6bWFybzIwMDNAaG90bWFpbC5jb20= | N35: luzmaro2003@hotmail.com | O35: Tu licencia ha sido activada por ser Suscriptor
C36: Imagen | D36: Cargar_XML | E36: =$E$7+H7+20 -> 600 | F36: =$F$6 -> 26 | G36: 47 | H36: 160 | I36: =IF(Parametros[Segmento]="Datos_Encabezados_Cargar",(COUNTIF(Hijos[Hijo],MID(Parametros[Segmento],9,4)&"*")=0)*1,0) -> 0
C37: Imagen | D37: Export_XML | E37: =$E$7+H7+20 -> 600 | F37: =$F$6 -> 26 | G37: 47 | H37: 160 | I37: =IF(Parametros[Segmento]="Datos_Encabezados",(COUNTIF(Hijos[Hijo],MID(Parametros[Segmento],9,4)&"*")=0)*1,0) -> 0
C38: Imagen | D38: Validacion_Desactivar | E38: =$E$33+H33+20 -> 1161 | F38: =$F$6 -> 26 | G38: 47 | H38: 175 | I38: 0
C39: Imagen | D39: Validacion_Activar | E39: =$E$33+H33+20 -> 1161 | F39: =$F$6 -> 26 | G39: 47 | H39: 175 | I39: 0
C41: Imagen | D41: Formato_Actual | E41: =$E$5+H5+20 -> 1250 | F41: 18 | I41: =(LEFT(Parametros[Segmento],8)="Formato_")*1 -> 0
C42: Imagen | D42: Padre | E42: =$E$6+H6+20 -> 430 | F42: =$F$6 -> 26 | G42: 47 | H42: 130 | I42: =IFERROR((Parametros[Segmento]<>"Fondo_Menu")*(COUNTIF(Hijos[Hijo],SUBSTITUTE(Parametros[Segmento],"Formato_",""))>0),0) -> 0
A43: =IFERROR(VLOOKUP(SUBSTITUTE(Parametros[Segmento],"Formato_","")&"D",Hijos[],3,0),"") ->  | C43: Imagen | D43: Hijo_1 | E43: =$E$31+H31+23 -> 966 | F43: 29 | G43: 41 | H43: =IF(LEN(Botones_e_Imagenes[[#This Row],[Accion]])>30,250,170) -> 170 | I43: =IF(Botones_e_Imagenes[[#This Row],[Accion]]="",0,1) -> 0
A44: =IF(Parametros[Segmento]="Formato_1032",$D$55,IF(Parametros[Segmento]="Formato_1159D",$D$58,"")) ->  | C44: Imagen | D44: Hijo_2 | E44: =IF(I43=1,E43+H43+27,$E$31+H31+23) -> 966 | F44: 29 | G44: 41 | H44: =IF(LEN(Botones_e_Imagenes[[#This Row],[Accion]])>30,250,170) -> 170 | I44: =IF(Botones_e_Imagenes[[#This Row],[Accion]]="",0,1) -> 0
C45: Imagen | D45: Consultar_Detener | E45: =$E$10+H10+28 -> 803 | F45: 29 | G45: 41 | H45: 130 | I45: =IFERROR((Parametros[Segmento]="Consultas_Manuales_RUT")*1,0) -> 0
B49: Hijo | C49: Descripcion | D49: Botón
B50: 1019D | C50: 1019 Información de Titulares Secundarios y/o firmas autorizadas para cuentas corrientes y/o cuentas de ahorro. | D50: Registros secundarios
B51: 1020D | C51: 1020 Titulares secundarios en CDT | D51: Registros secundarios
B52: 1021D | C52: 1021 Titulares secundarios para inversiones en fondos con más de un titular | D52: Registros secundarios
B53: 1022D | C53: 1022 APORTES VOLUNTARIOS A PENSIONES, CUENTAS DE AHORRO AFC Y CUENTAS DE AHORRO AVC | D53: Registros secundarios
B54: 1032D | C54: 1032 Información Enajenates Secundarios | D54: Enajenante secundarios
B55: 1032E | C55: 1032 Información de Adquirientes Secundarios | D55: Adquirientes secundarios
B56: 1038D | C56: 1038 Información de sociedades creadas - Socios Cámaras de Comercio | D56: Registros secundarios
B57: 1159D | C57: 1159 Información de los contratos celebrados de cada uno de los convenios | D57: Registros de contratos
B58: 1159E | C58: 1159 Información de los pagos o abono en cuenta efectuados en el año | D58: Registro de pagos
B59: 2273D | C59: 2273 Información de los otros inversionistas o mancomunados registrados de cada cuenta | D59: Información inversionista o mancumunados
B60: 2274D | C60: 2274 Fondo de Cesantías | D60: Registros secundarios
B61: 2683D | C61: 2683 Datos de los representantes legales e integrantes de los órganos directivos | D61: Registros secundarios

Sheet 
AW1: Conteo | AX1: Segmento | AY1: Visible | AZ1: Alto_Celdas | BA1: Celda_Filtro
AY2: 1 | AZ2: 15 | BA2: 1
AY3: 1 | AZ3: 15 | BA3: 1
AY4: 1 | AZ4: 15 | BA4: 1
AY5: 1 | AZ5: 12 | BA5: 1
A6: 1 | B6: 3 | C6: 35 | D6: 11 | E6: 4 | F6: 10 | G6: 5 | H6: 11 | I6: 11 | J6: 11 | K6: 12 | L6: 10 | M6: 13 | N6: 50 | AX6: Fondo_Menu | AY6: 0 | BA6: =(AX6=Parametros[Segmento])*(AY6>0)*(AZ6>0) -> 0
AX7: Fondo_Menu | AY7: 0 | AZ7: 20 | BA7: =(AX7=Parametros[Segmento])*(AY7>0)*(AZ7>0) -> 0
AX8: Fondo_Menu | AY8: 1 | AZ8: 10 | BA8: =(AX8=Parametros[Segmento])*(AY8>0)*(AZ8>0) -> 1
AX9: Fondo_Menu | AY9: 1 | AZ9: 20 | BA9: =(AX9=Parametros[Segmento])*(AY9>0)*(AZ9>0) -> 1
AX10: Fondo_Menu | AY10: 1 | AZ10: 20 | BA10: =(AX10=Parametros[Segmento])*(AY10>0)*(AZ10>0) -> 1
AX11: Fondo_Menu | AY11: 1 | AZ11: 20 | BA11: =(AX11=Parametros[Segmento])*(AY11>0)*(AZ11>0) -> 1
AX12: Fondo_Menu | AY12: 1 | AZ12: 20 | BA12: =(AX12=Parametros[Segmento])*(AY12>0)*(AZ12>0) -> 1
AX13: Fondo_Menu | AY13: 1 | AZ13: 20 | BA13: =(AX13=Parametros[Segmento])*(AY13>0)*(AZ13>0) -> 1
AX14: Fondo_Menu | AY14: 1 | AZ14: 20 | BA14: =(AX14=Parametros[Segmento])*(AY14>0)*(AZ14>0) -> 1
AX15: Fondo_Menu | AY15: 1 | AZ15: 20 | BA15: =(AX15=Parametros[Segmento])*(AY15>0)*(AZ15>0) -> 1
AX16: Fondo_Menu | AY16: 1 | AZ16: 20 | BA16: =(AX16=Parametros[Segmento])*(AY16>0)*(AZ16>0) -> 1
AX17: Fondo_Menu | AY17: 1 | AZ17: 20 | BA17: =(AX17=Parametros[Segmento])*(AY17>0)*(AZ17>0) -> 1
AX18: Fondo_Menu | AY18: 1 | AZ18: 20 | BA18: =(AX18=Parametros[Segmento])*(AY18>0)*(AZ18>0) -> 1
AX19: Fondo_Menu | AY19: 1 | AZ19: 20 | BA19: =(AX19=Parametros[Segmento])*(AY19>0)*(AZ19>0) -> 1
AX20: Fondo_Menu | AY20: 1 | AZ20: 20 | BA20: =(AX20=Parametros[Segmento])*(AY20>0)*(AZ20>0) -> 1
AX21: Fondo_Menu | AY21: 1 | AZ21: 20 | BA21: =(AX21=Parametros[Segmento])*(AY21>0)*(AZ21>0) -> 1
AX22: Fondo_Menu | AY22: 1 | AZ22: 20 | BA22: =(AX22=Parametros[Segmento])*(AY22>0)*(AZ22>0) -> 1
AX23: Fondo_Menu | AY23: 1 | AZ23: 20 | BA23: =(AX23=Parametros[Segmento])*(AY23>0)*(AZ23>0) -> 1
AX24: Fondo_Menu | AY24: 1 | AZ24: 20 | BA24: =(AX24=Parametros[Segmento])*(AY24>0)*(AZ24>0) -> 1
AX25: Fondo_Menu | AY25: 1 | AZ25: 20 | BA25: =(AX25=Parametros[Segmento])*(AY25>0)*(AZ25>0) -> 1
AX26: Fondo_Menu | AY26: 1 | AZ26: 20 | BA26: =(AX26=Parametros[Segmento])*(AY26>0)*(AZ26>0) -> 1
AX27: Fondo_Menu | AY27: 1 | AZ27: 20 | BA27: =(AX27=Parametros[Segmento])*(AY27>0)*(AZ27>0) -> 1
AX28: Fondo_Menu | AY28: 1 | AZ28: 20 | BA28: =(AX28=Parametros[Segmento])*(AY28>0)*(AZ28>0) -> 1
AX29: Fondo_Menu | AY29: 1 | AZ29: 20 | BA29: =(AX29=Parametros[Segmento])*(AY29>0)*(AZ29>0) -> 1
AX30: Fondo_Menu | AY30: 1 | AZ30: 20 | BA30: =(AX30=Parametros[Segmento])*(AY30>0)*(AZ30>0) -> 1
AX31: Fondo_Menu | AY31: 1 | AZ31: 20 | BA31: =(AX31=Parametros[Segmento])*(AY31>0)*(AZ31>0) -> 1
AX32: Fondo_Menu | AY32: 1 | AZ32: 20 | BA32: =(AX32=Parametros[Segmento])*(AY32>0)*(AZ32>0) -> 1
AX33: Fondo_Menu | AY33: 1 | AZ33: 20 | BA33: =(AX33=Parametros[Segmento])*(AY33>0)*(AZ33>0) -> 1
AX34: Fondo_Menu | AY34: 1 | AZ34: 20 | BA34: =(AX34=Parametros[Segmento])*(AY34>0)*(AZ34>0) -> 1
AX35: Fondo_Menu | AY35: 1 | AZ35: 20 | BA35: =(AX35=Parametros[Segmento])*(AY35>0)*(AZ35>0) -> 1
AX36: Fondo_Menu | AY36: 1 | AZ36: 20 | BA36: =(AX36=Parametros[Segmento])*(AY36>0)*(AZ36>0) -> 1
AX37: Fondo_Menu | AY37: 1 | AZ37: 20 | BA37: =(AX37=Parametros[Segmento])*(AY37>0)*(AZ37>0) -> 1
AX38: Fondo_Menu | AY38: 1 | AZ38: 20 | BA38: =(AX38=Parametros[Segmento])*(AY38>0)*(AZ38>0) -> 1
AX39: Fondo_Menu | AY39: 1 | AZ39: 20 | BA39: =(AX39=Parametros[Segmento])*(AY39>0)*(AZ39>0) -> 1
AX40: Fondo_Menu | AY40: 1 | AZ40: 20 | BA40: =(AX40=Parametros[Segmento])*(AY40>0)*(AZ40>0) -> 1
A41: 3.78 | B41: 150 | C41: 0 | D41: 10 | AX41: Obligados | AY41: 0 | AZ41: 20 | BA41: =(AX41=Parametros[Segmento])*(AY41>0)*(AZ41>0) -> 0
AX42: Obligados | AY42: 1 | AZ42: 30 | BA42: =(AX42=Parametros[Segmento])*(AY42>0)*(AZ42>0) -> 0
B43: Obligados a presentar información exógena por el año gravable 2024 | AX43: Obligados | AY43: 1 | AZ43: 30 | BA43: =(AX43=Parametros[Segmento])*(AY43>0)*(AZ43>0) -> 0
B44: Condición contribuyente | C44: Norma | AX44: Obligados | AY44: 1 | AZ44: 30 | BA44: =(AX44=Parametros[Segmento])*(AY44>0)*(AZ44>0) -> 0
B45: Las entidades públicas o privadas que celebren convenios de cooperación y asistencia técnica para el apoyo y ejecución de sus programas o proyectos, con organismos internacionales. | C45: Literal a) del artículo 1 de la Resolución DIAN 000124 de 2021 | AX45: Obligados | AY45: 1 | AZ45: 40.1 | BA45: =(AX45=Parametros[Segmento])*(AY45>0)*(AZ45>0) -> 0
B46: Las entidades vigiladas por la Superintendencia Financiera de Colombia, las cooperativas de ahorro y crédito, los organismos cooperativos de grado superior, las instituciones auxiliares del cooperativismo, las cooperativas multiactivas e integrales y los fondos de empleados que realicen actividades financieras. | C46: Literal b) del artículo 1 de la Resolución DIAN 000124 de 2022 | AX46: Obligados | AY46: 1 | AZ46: 50 | BA46: =(AX46=Parametros[Segmento])*(AY46>0)*(AZ46>0) -> 0
B47: Las bolsas de valores y los comisionistas de bolsa. | C47: Literal c) del artículo 1 de la Resolución DIAN 000124 de 2023 | AX47: Obligados | AY47: 1 | AZ47: 40.1 | BA47: =(AX47=Parametros[Segmento])*(AY47>0)*(AZ47>0) -> 0
B48: Las personas naturales y sus asimiladas que durante el año gravable 2021 o en el año gravable 2022 hayan obtenido ingresos brutos superiores a quinientos millones de pesos ($500.000.000) y que la suma de los Ingresos brutos obtenidos por rentas capital y/o rentas no laborales durante el año gravable 2022 superen los cien millones de pesos ($100.000.000). Debe tenerse en cuenta que, los ingresos brutos incluyen todos los ingresos ordinarios, extraordinarios y los correspondientes a las ganancias ocasionales. Adicionalmente, la información a reportar será la correspondiente a las rentas de capital y/o rentas no laborales. | C48: Literal d) y parágrafo 1 y 3 del artículo 1 de la Resolución DIAN 000124 de 2024 | AX48: Obligados | AY48: 1 | AZ48: 120 | BA48: =(AX48=Parametros[Segmento])*(AY48>0)*(AZ48>0) -> 0
B49: Los contribuyentes personas naturales del régimen simple de tributación -SIMPLE que durante el año gravable 2021 o en el año gravable 2022, hayan obtenido ingresos brutos superiores a quinientos millones de pesos ($500.000.000), sin considerar el tipo de ingreso. Debe tenerse en cuenta que, los ingresos brutos incluyen todos los ingresos ordinarios, extraordinarios y los correspondientes a las ganancias ocasionales. | C49: Literal d) y parágrafo 1 del artículo 1 de la Resolución DIAN 000124 de 2025 | AX49: Obligados | AY49: 1 | AZ49: 100.1 | BA49: =(AX49=Parametros[Segmento])*(AY49>0)*(AZ49>0) -> 0
B50: Las personas jurídicas y sus asimiladas y demás entidades públicas y privadas que en el año gravable 2021 o en el año gravable 2022 hayan obtenido ingresos brutos superiores a cien millones de pesos ($100.000.000). | C50: Literal e) del artículo 1 de la Resolución DIAN 000124 de 2026 | AX50: Obligados | AY50: 1 | AZ50: 40.1 | BA50: =(AX50=Parametros[Segmento])*(AY50>0)*(AZ50>0) -> 0
B51: Las personas naturales y sus asimiladas, las personas jurídicas y sus asimiladas, entidades públicas y privadas, y demás obligados a practicar retenciones y autorretenciones en la fuente a título del impuesto sobre la renta, impuesto sobre las ventas (IVA) y Timbre, durante el año gravable 2022. Respecto a las personas naturales debe tenerse en cuenta que, la información a reportar será la correspondiente a las rentas de capital y/o rentas no laborales. | C51: Literal f) y parágrafo 3 del artículo 1 de la Resolución DIAN 000124 de 2027 | AX51: Obligados | AY51: 1 | AZ51: 100.1 | BA51: =(AX51=Parametros[Segmento])*(AY51>0)*(AZ51>0) -> 0
B52: Establecimientos permanentes de personas naturales no residentes y de personas jurídicas y entidades extranjeras. | C52: Literal g) del artículo 1 de la Resolución DIAN 000124 de 2028 | AX52: Obligados | AY52: 1 | AZ52: 40.1 | BA52: =(AX52=Parametros[Segmento])*(AY52>0)*(AZ52>0) -> 0
B53: Las personas o entidades que celebren contratos de colaboración tales como, consorcios, uniones temporales, contratos de mandato, administración delegada, contratos de exploración y explotación de hidrocarburos, gases y minerales, joint venture, cuentas en participación y convenios de cooperación con entidades públicas. | C53: Literal h) del artículo 1 de la Resolución DIAN 000124 de 2029 | AX53: Obligados | AY53: 1 | AZ53: 60 | BA53: =(AX53=Parametros[Segmento])*(AY53>0)*(AZ53>0) -> 0
B54: Los entes públicos del Nivel Nacional y Territorial del orden central y descentralizado, contemplados en el artículo 22 del Estatuto Tributario, no obligados a presentar declaración de ingresos y patrimonio. | C54: Literal i) del artículo 1 de la Resolución DIAN 000124 de 2030 | AX54: Obligados | AY54: 1 | AZ54: 40.1 | BA54: =(AX54=Parametros[Segmento])*(AY54>0)*(AZ54>0) -> 0
B55: Los Secretarios Generales o quienes hagan sus veces de los órganos que financien gastos con recursos del Tesoro Nacional. | C55: Literal j) del artículo 1 de la Resolución DIAN 000124 de 2031 | AX55: Obligados | AY55: 1 | AZ55: 40.1 | BA55: =(AX55=Parametros[Segmento])*(AY55>0)*(AZ55>0) -> 0
B56: Los obligados a presentar estados financieros consolidados. | C56: Literal k) del artículo 1 de la Resolución DIAN 000124 de 2032 | AX56: Obligados | AY56: 1 | AZ56: 40.1 | BA56: =(AX56=Parametros[Segmento])*(AY56>0)*(AZ56>0) -> 0
B57: Las Cámaras de Comercio. | C57: Literal l) del artículo 1 de la Resolución DIAN 000124 de 2033 | AX57: Obligados | AY57: 1 | AZ57: 40.1 | BA57: =(AX57=Parametros[Segmento])*(AY57>0)*(AZ57>0) -> 0
B58: La Registraduría Nacional del Estado Civil. | C58: Literal m) del artículo 1 de la Resolución DIAN 000124 de 2034 | AX58: Obligados | AY58: 1 | AZ58: 40.1 | BA58: =(AX58=Parametros[Segmento])*(AY58>0)*(AZ58>0) -> 0
B59: Los Notarios con relación a las operaciones realizadas durante el ejercicio de sus funciones. | C59: Literal n) del artículo 1 de la Resolución DIAN 000124 de 2035 | AX59: Obligados | AY59: 1 | AZ59: 40.1 | BA59: =(AX59=Parametros[Segmento])*(AY59>0)*(AZ59>0) -> 0
B60: Las personas o entidades que elaboren facturas de venta o documentos equivalentes. | C60: Literal o) del artículo 1 de la Resolución DIAN 000124 de 2036 | AX60: Obligados | AY60: 1 | AZ60: 40.1 | BA60: =(AX60=Parametros[Segmento])*(AY60>0)*(AZ60>0) -> 0
B61: Las alcaldías, los distritos y las gobernaciones. | C61: Literal p) del artículo 1 de la Resolución DIAN 000124 de 2037 | AX61: Obligados | AY61: 1 | AZ61: 40.1 | BA61: =(AX61=Parametros[Segmento])*(AY61>0)*(AZ61>0) -> 0
B62: Las autoridades catastrales. | C62: Literal q) del artículo 1 de la Resolución DIAN 000124 de 2038 | AX62: Obligados | AY62: 1 | AZ62: 40.1 | BA62: =(AX62=Parametros[Segmento])*(AY62>0)*(AZ62>0) -> 0
B63: Los responsables del Impuesto Nacional al Carbono. | C63: Literal r) del artículo 1 de la Resolución DIAN 000124 de 2039 | AX63: Obligados | AY63: 1 | AZ63: 40.1 | BA63: =(AX63=Parametros[Segmento])*(AY63>0)*(AZ63>0) -> 0
B64: Las entidades que otorgan, reconocen, registran, cancelan o suspenden personerías jurídicas. | C64: Literal s) del artículo 1 de la Resolución DIAN 000124 de 2040 | AX64: Obligados | AY64: 1 | AZ64: 40.1 | BA64: =(AX64=Parametros[Segmento])*(AY64>0)*(AZ64>0) -> 0
B65: Nota: No estarán obligadas a presentar la información que establece la presente Resolución las personas naturales y sus asimiladas, las personas jurídicas y sus asimiladas y, demás entidades que durante el año gravable 2022 adelanten el trámite de cancelación del Registro Único Tributario - RUT de oficio o a solicitud de parte, de acuerdo con lo establecido en los artículos 1.6.1.2.18. y siguientes del Decreto 1625 de 2016 Único Reglamentario en Materia Tributaria. En el caso de que la cancelación del Registro Único Tributario - RUT corresponda a un contrato de colaboración empresarial, las operaciones del contrato deberán ser informadas a nombre propio por los partícipes ocultos, consorciados, unidos temporalmente, mandantes, contratantes, asociados, ventures o demás partes de los contratos, de acuerdo con lo especificado en el artículo 27 y los plazos establecidos en la presente Resolución. | C65: Literal 2) del artículo 1 de la Resolución DIAN 000124 de 2041 | AX65: Obligados | AY65: 1 | AZ65: 180 | BA65: =(AX65=Parametros[Segmento])*(AY65>0)*(AZ65>0) -> 0
AX66: Obligados | AY66: 1 | AZ66: 30 | BA66: =(AX66=Parametros[Segmento])*(AY66>0)*(AZ66>0) -> 0
A67: 2.44 | B67: 2.44 | C67: 0 | D67: 55.33 | E67: 33.44 | F67: 10.67 | G67: 10.44 | H67: 16.11 | I67: 17 | J67: 83 | K67: 16.22 | L67: 18 | M67: 17 | N67: 0 | O67: 10.67 | AX67: Formatos según informante | AY67: 0 | AZ67: 20 | BA67: =(AX67=Parametros[Segmento])*(AY67>0)*(AZ67>0) -> 0
AX68: Formatos según informante | AY68: 1 | AZ68: 30 | BA68: =(AX68=Parametros[Segmento])*(AY68>0)*(AZ68>0) -> 0
D69: Formatos de acuerdo con el informante | AX69: Formatos según informante | AY69: 1 | AZ69: 35 | BA69: =(AX69=Parametros[Segmento])*(AY69>0)*(AZ69>0) -> 0
AX70: Formatos según informante | AY70: 1 | AZ70: 10.1 | BA70: =(AX70=Parametros[Segmento])*(AY70>0)*(AZ70>0) -> 0
D71: Selecciona la categoría de la persona o entidad informante | I71: Informantes Tributarios | AX71: Formatos según informante | AY71: 1 | AZ71: 30 | BA71: =(AX71=Parametros[Segmento])*(AY71>0)*(AZ71>0) -> 0
AX72: Formatos según informante | AY72: 1 | AZ72: 10.1 | BA72: =(AX72=Parametros[Segmento])*(AY72>0)*(AZ72>0) -> 0
D73: Persona o entidad informante | E73: Formatos para utilizar | AX73: Formatos según informante | AY73: 1 | AZ73: 30 | BA73: =(AX73=Parametros[Segmento])*(AY73>0)*(AZ73>0) -> 0
E74: Nombre del formato | F74: Número | G74: Versión | H74: ¿Cambió la versión para el reporte de este año? | I74: ¿Cambió la lista de conceptos a usar dentro del formato? | J74: Información que debe reportarse en cada formato | K74: Corte con que se debe elaborar el formato | L74: Artículos de la Resolución 000162 que mencionan la exigencia de los reportes | M74: Prevalidador que contiene a dicho formato | AX74: Formatos según informante | AY74: 1 | AZ74: 130.8 | BA74: =(AX74=Parametros[Segmento])*(AY74>0)*(AZ74>0) -> 0
C75: Entidades financieras | D75: Entidades vigiladas por la Superintendencia Financiera, las cooperativas de ahorro y crédito, los organismos cooperativos de grado superior, las instituciones auxiliares del cooperativismo, las cooperativas multiactivas e integrales y los fondos de empleados que realicen actividades financieras. | E75: Movimiento en cuenta corriente y/o ahorro | F75: 1019 | G75: 9 | H75: No | I75: No | J75: Se deben reportar los movimientos de consignaciones de cada mes del año 2024 que hayan sido superiores a 24 UVT del 2024, es decir, 24 × $47.065, $1.130.000 en las cuentas corrientes y de ahorro (pero sin incluir los ahorros en las cuentas AFC y AVC los cuales se reportarán en el formato 1022 v. 9, el mismo en el que también se reportan los aportes a los fondos voluntarios de pensiones; ver artículos 3, 11 y 12 de la Resolución 000162 de 2023). También se reporta el monto de las consignaciones de cada mes, sin importar el monto, para cuentas que al cierre de cada mes del 2024 tuvieran saldo superior a 24 UVT del 2024, es decir, 24 × $47.065, $1.130.000. El formato pide 22 datos por cada cuenta entre ellos el tipo de exoneración del GMF del que goza la cuenta corriente o de ahorros. | K75: Anual por periodos mensuales | L75: Artículo 3 | M75: Prevalidador de Entidades financieras | AX75: Formatos según informante | AY75: 1 | AZ75: 124.2 | BA75: =(AX75=Parametros[Segmento])*(AY75>0)*(AZ75>0) -> 0
C76: Entidades financieras | E76: Información de inversiones en CDT | F76: 1020 | G76: 8 | H76: No | I76: No | J76: Se deben reportar los datos de cada una de las personas o entidades a quienes durante el mes, se les haya emitido, renovado, cancelado o tengan vigente a su favor uno o más certificados fijos y/o cualquier otro título, sin importar la cuantía. | K76: Anual por periodos mensuales | L76: Artículo 4 | M76: Prevalidador de Entidades financieras | AX76: Formatos según informante | AY76: 1 | AZ76: 88.8 | BA76: =(AX76=Parametros[Segmento])*(AY76>0)*(AZ76>0) -> 0
C77: Entidades financieras | E77: Información de fondos de inversión colectiva | F77: 1021 | G77: 7 | H77: No | I77: No | J77: Las administradores de los fondos de inversión colectiva deben reportar la información de cada uno de los inversionistas y/o partícipes y/o ahorradores que hayan suscrito a su favor uno o más contratos y/o ahorros, sin importar su cuantía. Se deberá informar: el valor del saldo inicial, el valor de las inversiones y/o ahorros efectuados, los rendimientos y/o utilidades causados, los rendimientos y/o utilidades pagados, retención en la fuente practicada, el saldo final, el número del título o contrato y el tipo de fondo, independientemente de que a treinta y uno (31) de diciembre dichos títulos y/o contratos se hubieren cancelado. | K77: Anual | L77: Artículo 9 | M77: Prevalidador de Entidades financieras | AX77: Formatos según informante | AY77: 1 | AZ77: 179.4 | BA77: =(AX77=Parametros[Segmento])*(AY77>0)*(AZ77>0) -> 0
C78: Entidades financieras | E78: Aportes voluntarios a pensiones, cuentas de ahorro AFC y cuentas de ahorro AVC | F78: 1022 | G78: 9 | H78: No | I78: No | J78: Se debe reportar la información de los aportes voluntarios realizados en fondos de pensiones y/o a cuentas AFC y/o AVC junto con sus respectivos retiros gravados y no gravados, sin importar su cuantía. Adicionalmente, se deberán reportar los rendimientos del año y el saldo en el fondo a diciembre 31 de 2023. Debe tenerse en cuenta que, la casilla “número de la cuenta” se debe diligenciar indicando el número de identificación del afiliado. | K78: Anual | L78: Artículos 11 y 12 | M78: Prevalidador de Entidades Financieras | AX78: Formatos según informante | AY78: 1 | AZ78: 125.4 | BA78: =(AX78=Parametros[Segmento])*(AY78>0)*(AZ78>0) -> 0
C79: Entidades financieras | E79: Consumos con tarjeta de crédito | F79: 1023 | G79: 7 | H79: Si | I79: Si | J79: Se debe reportar el valor de las adquisiciones, consumos, avances o gastos realizados con tarjetas de crédito, cuando el valor anual acumulado sea superior a 24 UVT del año 2024, es decir, 24 x $47.065, $1.130.000, aunque al discriminar por tarjeta los valores a reportar sean menores, indicando del valor total del movimiento realizado durante el año. | K79: Anual | L79: Artículo 6 | M79: Prevalidador de Entidades financieras | AX79: Formatos según informante | AY79: 1 | AZ79: 108.6 | BA79: =(AX79=Parametros[Segmento])*(AY79>0)*(AZ79>0) -> 0
C80: Entidades financieras | E80: Ventas con tarjeta de crédito | F80: 1024 | G80: 6 | H80: No | I80: No | J80: Se debe reportar la información de las personas o entidades que durante el respectivo año hayan efectuado ventas o prestación de servicios con tarjeta de crédito, que en general hayan recibido ingresos a través del sistema de tarjetas de crédito, cuando la cuantía sea superior a 24 UVT del año 2024, es decir, 24 x $47.065, $1.130.000, indicando el valor total del movimiento acumulado de las ventas y/o prestación de servicios efectuados durante el año y el valor del impuesto sobre las ventas. | K80: Anual | L80: Artículo 7 | M80: Prevalidador de Entidades Financieras | AX80: Formatos según informante | AY80: 1 | AZ80: 130.2 | BA80: =(AX80=Parametros[Segmento])*(AY80>0)*(AZ80>0) -> 0
C81: Entidades financieras | E81: Préstamos bancarios otorgados | F81: 1026 | G81: 6 | H81: No | I81: No | J81: Se deben reportar la información de cada una de las personas o entidades a las cuales se les hayan efectuado préstamos cuyo valor anual acumuladosea superior a 24 UVT del año 2024, es decir, 24 x $47.065, $1.130.000, sin importar que, al discriminar cada préstamo, los valores parciales a reportar sean menores. | K81: Anual | L81: Artículo 8 | M81: Prevalidador de Entidades Financieras | AX81: Formatos según informante | AY81: 1 | AZ81: 94.2 | BA81: =(AX81=Parametros[Segmento])*(AY81>0)*(AZ81>0) -> 0
C82: Deceval | D82: Sociedad Administradora del Depósito Centralizado de Valores - Deceval. | E82: Depósitos de títulos valores y rendimientos o dividendos cancelados | F82: 2273 | G82: 2 | H82: No | I82: No | J82: Se deberán reportar los datos, sin importar el monto, de las personas o entidades que realizaron a través de ella depósitos de títulos valores e instrumentos financieros, se encuentren o no inscritos en el registro nacional de valores e intermediarios, sean emitidos en Colombia o en el exterior. | K82: Anual por periodos mensuales | L82: Artículo 5 | M82: Prevalidador de Deceval | AX82: Formatos según informante | AY82: 1 | AZ82: 90.6 | BA82: =(AX82=Parametros[Segmento])*(AY82>0)*(AZ82>0) -> 0
C83: Entidades financieras | D83: Fondos de cesantías. | E83: Fondo de Cesantías | F83: 2274 | G83: 2 | H83: No | I83: No | J83: Los fondos de cesantías deberán reportar, sin importar el monto, todos los datos sobre saldos iniciales, movimientos, rendimientos, retenciones en la fuente y saldos finales que se tengan en todos los fondos de cesantías. Cabe mencionar que, en este formato se debe detallar si los retiros realizados durante el año correspondían a cesantías acumuladas a diciembre de 2016 o si correspondían a cesantías depositadas durante los años 2017 y siguientes. De igual manera, se debe detallar el valor del saldo final a diciembre 31 de 2023 que corresponde a cesantías de los años 2016 y anteriores y el valor que pertenece a cesantías de los años 2017 y siguientes. | K83: Anual | L83: Artículo 13 | M83: Prevalidador de Entidades Financieras | AX83: Formatos según informante | AY83: 1 | AZ83: 203.6 | BA83: =(AX83=Parametros[Segmento])*(AY83>0)*(AZ83>0) -> 0
C84: Entidades financieras | D84: Fondos de pensiones obligatorias. | E84: Fondos de Pensiones Obligatorias | F84: 2277 | G84: 1 | H84: No | I84: No | J84: Se debe reportar el valor de los aportes obligatorios realizados en el año por todo tipo de partícipe. Los aportes obligatorios se deben reportar cuando la suma anual de los aportes realizados por el empleador más los aportes efectuados por el trabajador o partícipe independiente o patrocinador, por este concepto, sea superior a 94 UVT del 2024, es decir, 94 × $47.065, $4.424.000. | K84: Anual | L84: Artículo 10 | M84: Prevalidador de Entidades Financieras | AX84: Formatos según informante | AY84: 1 | AZ84: 106.2 | BA84: =(AX84=Parametros[Segmento])*(AY84>0)*(AZ84>0) -> 0
C85: Otros informantes | D85: Cámaras de comercio. | E85: Información de las sociedades creadas | F85: 1038 | G85: 6 | H85: No | I85: N/A | J85: Se debe reportar la información de las sociedades creadas durante el 2024, incluyendo los datos de sus socios o accionistas. | K85: Anual | L85: Artículo 46 | M85: Prevalidador de Otros | AX85: Formatos según informante | AY85: 1 | AZ85: 55.2 | BA85: =(AX85=Parametros[Segmento])*(AY85>0)*(AZ85>0) -> 0
C86: Otros informantes | E86: Sociedades liquidadas | F86: 1039 | G86: 6 | H86: No | I86: N/A | J86: Se debe reportar la información de las sociedades liquidadas durante el 2024. | K86: Anual | L86: Artículo 47 | M86: Prevalidador de Otros | AX86: Formatos según informante | AY86: 1 | AZ86: 55.2 | BA86: =(AX86=Parametros[Segmento])*(AY86>0)*(AZ86>0) -> 0
C87: Entidades financieras | D87: La Bolsa de Valores de Colombia, la Bolsa Mercantil de Colombia y las demás bolsas de valores. | E87: Información de Bolsa de Valores | F87: 1041 | G87: 6 | H87: No | I87: N/A | J87: La Bolsa de Valores de Colombia, la Bolsa Mercantil de Colombia y las demás bolsas de valores, deberán informar de cada uno de los comisionistas de bolsa, el valor total acumulado de las adquisiciones y enajenaciones realizadas durante el respectivo año gravable, por operaciones propias o a nombre de terceros. | K87: Anual | L87: Artículo 14 | M87: Prevalidador de Entidades Financieras | AX87: Formatos según informante | AY87: 1 | AZ87: 108 | BA87: =(AX87=Parametros[Segmento])*(AY87>0)*(AZ87>0) -> 0
C88: Otros informantes | D88: Registraduría Nacional. | E88: Personas Fallecidas | F88: 1028 | G88: 7 | H88: No | I88: N/A | J88: Se debe suministrar la información de los documentos de identidad y otros datos correspondientes a las personas colombianas fallecidas durante el año 2024. | K88: Anual | L88: Artículo 48 | M88: Prevalidador de Otros | AX88: Formatos según informante | AY88: 1 | AZ88: 72 | BA88: =(AX88=Parametros[Segmento])*(AY88>0)*(AZ88>0) -> 0
C89: Entidades financieras | D89: Comisionistas de bolsa de valores. | E89: Información de Comisionistas de Bolsas | F89: 1042 | G89: 7 | H89: No | I89: N/A | J89: Las comisionistas de bolsa deben reportar la información de las transacciones realizadas a nombre propio y la información de cada una de las personas o entidades que realizaron, a través de ellos, enajenaciones o adquisiciones de acciones y demás papeles transados en bolsa cuyo valor acumulado sea superior a 24 UVT del 2024, es decir, 24 × $47.065, $1.130.000, indicando el valor total acumulado de dichas operaciones. | K89: Anual | L89: Artículos 15 | M89: Prevalidador de Entidades Financieras | AX89: Formatos según informante | AY89: 1 | AZ89: 125.4 | BA89: =(AX89=Parametros[Segmento])*(AY89>0)*(AZ89>0) -> 0
C90: Otros informantes | D90: Notarios. | E90: Información de Enajenaciones de Bienes y Derechos a través de Notarias | F90: 1032 | G90: 11 | H90: No | I90: No | J90: Se debe reportar la información relativa a las operaciones realizadas en el ejercicio de sus funciones, suministrando los datos de cada una de las personas o entidades que efectuaron enajenación de bienes o derechos a título oneroso o gratuito, durante el año, independientemente del valor de la transacción. | K90: Anual | L90: Artículo 49 | M90: Prevalidador de Otros | AX90: Formatos según informante | AY90: 1 | AZ90: 95.4 | BA90: =(AX90=Parametros[Segmento])*(AY90>0)*(AZ90>0) -> 0
C91: Otros informantes | D91: Tipógrafos elaboradores de facturas de venta. | E91: Elaboración de facturación por litógrafos y tipógrafos | F91: 1037 | G91: 7 | H91: No | I91: N/A | J91: Se deben reportar los datos de cada una de las personas o entidades a quienes se elaboraron trabajos de impresión de facturas. | K91: Anual | L91: Artículo 50 | M91: Prevalidador de Otros | AX91: Formatos según informante | AY91: 1 | AZ91: 56.4 | BA91: =(AX91=Parametros[Segmento])*(AY91>0)*(AZ91>0) -> 0
C92: Informantes tributarios | D92: Las personas jurídicas y sus asimiladas con ánimo de lucro, las cooperativas y los fondos de empleados, obligadas a presentar información. | E92: Información de socios, accionistas, comuneros y/o cooperados | F92: 1010 | G92: 9 | H92: Si | I92: N/A | J92: Se debe reportar la información de los socios, accionistas, comuneros, cooperados y asociados de los fondos de empleados, a diciembre 31 de 2024, sin importar el valor nominal de sus aportes sociales a ese corte. Además, en la nueva versión 9 del formato 1010 se incluyó una nueva columna para reportar el “valor pagado por prima en colocación de acciones o cuotas”. Para los socios, accionistas, comuneros, asociados y/o cooperados que sean entidades o sociedades del exterior, al reportar el número de identificación se debe diligenciar con el número, código o clave de identificación fiscal tributaria, tal como figura en el registro fiscal del país de residencia o domicilio y tipo de documento 42. Cuando en dicho país no se utilice número, código o clave fiscal, se debe informar con identificación 444444001 en forma ascendente, variando consecutivamente en una unidad hasta el 444449999 y con tipo de documento 43. Los campos de dirección, departamento y municipio no se deben registrar. | K92: Anual | L92: Artículo 19 | M92: Prevalidador de Informantes tributarios | AX92: Formatos según informante | AY92: 1 | AZ92: 250.8 | BA92: =(AX92=Parametros[Segmento])*(AY92>0)*(AZ92>0) -> 0
C93: Informantes tributarios | D93: Las personas naturales y sus asimiladas, las personas jurídicas y sus asimiladas y, demás entidades públicas y privadas enunciadas en el artículo 1 de la Resolución 000162 de 2023. | E93: Pagos o abonos en cuenta y retenciones practicadas | F93: 1001 | G93: 10 | H93: No | I93: Si | J93: Se deben informar los apellidos y nombres o razón social, identificación, dirección y país de residencia o domicilio de cada una de las personas o entidades beneficiarias de los pagos o abonos en cuenta (devengo) que constituyan costo o deducción o den derecho a impuesto descontable, incluida la compra de activos fijos o movibles y los pagos o abonos en cuenta (devengo) no solicitados fiscalmente como costo o deducción, los valores de las retenciones en la fuente practicadas o asumidas a título de los impuestos sobre la Renta, IVA y Timbre, según el concepto contable a que corresponda. Se reporta en forma individualizada a los terceros beneficiarios de pagos o abonos en cuenta por todo concepto que superan de manera consolidada las 3 UVT del 2024, es decir, 3 × $47.065 = $141.000. A los terceros que no superen dicho monto se les puede agrupar en un solo registro, por cada diferente concepto diseñado por la Dian, utilizando el seudo-NIT 222222222 y el tipo de documento "43" (para uso definido por la Dian). Sin embargo, en el caso de las personas y entidades a las que les aplique el ítem 3 de este subgrupo de informantes (es decir, los que solo fueron agentes de retención durante el 2023), ellos sí reportarán la totalidad de los pagos o abonos en cuenta a terceros sin importar la cuantía. | K93: Anual | L93: Artículo 20 | M93: Prevalidador de Informantes tributarios | AX93: Formatos según informante | AY93: 1 | AZ93: 321 | BA93: =(AX93=Parametros[Segmento])*(AY93>0)*(AZ93>0) -> 0
C94: Informantes tributarios | D94: Las personas naturales y sus asimiladas, las personas jurídicas y sus asimiladas y, demás entidades públicas y privadas enunciadas en el artículo 1 de la Resolución 000162 de 2023. | E94: Impuesto a las Ventas por Pagar (Descontable) | F94: 1005 | G94: 8 | H94: No | I94: N/A | J94: Se debe reportar el valor del impuesto sobre las ventas - IVA descontable y el valor del impuesto sobre las ventas - IVA resultante por devoluciones en ventas anuladas, rescindidas o resueltas, correspondientes al año gravable, indicando los apellidos y nombres o razón social e identificación de cada uno de los terceros. | K94: Anual | L94: Artículo 23 | M94: Prevalidador de Informantes Tributarios | AX94: Formatos según informante | AY94: 1 | AZ94: 109.2 | BA94: =(AX94=Parametros[Segmento])*(AY94>0)*(AZ94>0) -> 0
C95: Informantes tributarios | D95: Las personas naturales y sus asimiladas, las personas jurídicas y sus asimiladas y demás entidades públicas y privadas enunciadas en el artículo 1 de la Resolución 000162 de 2023. | E95: Retenciones en la fuente que le practicaron | F95: 1003 | G95: 7 | H95: No | I95: No | J95: Se deben reportar los apellidos y nombres o razón social, identificación y dirección de cada una de las personas o entidades que les practicaron retención en la fuente en el año gravable, con indicación del concepto, valor acumulado del pago o abono en cuenta, de las transacciones sobre las cuales le practicaron la retención, y el valor de la retención que le practicaron. | K95: Anual | L95: Artículo 21 | M95: Prevalidador de Informantes Tributarios | AX95: Formatos según informante | AY95: 1 | AZ95: 112.2 | BA95: =(AX95=Parametros[Segmento])*(AY95>0)*(AZ95>0) -> 0
C96: Informantes tributarios | D96: Las personas naturales y sus asimiladas, las personas jurídicas y sus asimiladas y, demás entidades públicas y privadas enunciadas en el artículo 1 de la Resolución 000162 de 2023. | E96: Descuentos Tributarios Solicitados | F96: 1004 | G96: 8 | H96: No | I96: Si | J96: Se deberá suministrar la información de los terceros y los valores que dieron lugar a la solicitud de descuentos tributarios en la declaración de renta o en la declaración anual consolidada del Régimen Simple del año gravable. | K96: Anual | L96: Artículo 39 | M96: Prevalidador de Informantes Tributarios | AX96: Formatos según informante | AY96: 1 | AZ96: 107.4 | BA96: =(AX96=Parametros[Segmento])*(AY96>0)*(AZ96>0) -> 0
C97: Informantes tributarios | D97: Las personas naturales y sus asimiladas, las personas jurídicas y sus asimiladas y, demás entidades públicas y privadas enunciadas en el artículo 1 de la Resolución 000162 de 2023. | E97: Impuesto a las Ventas por Pagar (Generado) e Impuesto al Consumo | F97: 1006 | G97: 8 | H97: No | I97: N/A | J97: Se debe reportar el valor del impuesto sobre las ventas - IVA generado y/o el impuesto nacional al consumo y el valor del impuesto sobre las ventas - IVA recuperado en devoluciones en compras anuladas, rescindidas o resueltas, correspondientes al año gravable, se debe reportar indicando los apellidos y nombres o razón social e identificación de cada uno de los terceros. | K97: Anual | L97: Artículo 24 | M97: Prevalidador de Informantes Tributarios | AX97: Formatos según informante | AY97: 1 | AZ97: 108.6 | BA97: =(AX97=Parametros[Segmento])*(AY97>0)*(AZ97>0) -> 0
C98: Informantes tributarios | D98: Las personas naturales y sus asimiladas, las personas jurídicas y sus asimiladas y, demás entidades públicas y privadas enunciadas en el artículo 1 de la Resolución 000162 de 2023. | E98: Ingresos Recibidos | F98: 1007 | G98: 9 | H98: No | I98: Si | J98: Se debe reportar el valor del impuesto sobre las ventas - IVA descontable y el valor del impuesto sobre las ventas - IVA resultante por devoluciones en ventas anuladas, rescindidas o resueltas, correspondientes al año gravable, indicando los apellidos y nombres o razón social e identificación de cada uno de los terceros. | K98: Anual | L98: Artículo 22 | M98: Prevalidador de Informantes Tributarios | AX98: Formatos según informante | AY98: 1 | AZ98: 112.8 | BA98: =(AX98=Parametros[Segmento])*(AY98>0)*(AZ98>0) -> 0
C99: Informantes tributarios | D99: Las personas naturales y sus asimiladas, las personas jurídicas y sus asimiladas y demás entidades públicas y privadas enunciadas en el artículo 1 de la Resolución 000162 de 2023. | E99: Ingresos Recibidos para Terceros | F99: 1647 | G99: 2 | H99: No | I99: No | J99: Se deberán reportar apellidos y nombres o razón social, identificación y país de residencia o domicilio de cada una de las personas o entidades nacionales o extranjeras, de quienes se recibieron ingresos para terceros y los apellidos y nombres o razón social, identificación, dirección y país de residencia o domicilio de cada una de las personas o entidades nacionales o extranjeras del tercero para quien se recibió el ingreso, indicando el valor total de la operación, el valor de los ingresos reintegrados, transferidos o distribuidos al tercero y el valor de la retención en la fuente transferida o distribuida al tercero, con el concepto 4070. El valor mínimo a reportar corresponderá al valor anual acumulado de los ingresos recibidos para terceros, reintegrados, transferidos o distribuidos a cada beneficiario cuando la cuantía sea superior a 24 UVT del 2024, es decir, 24 × $47.065, $1.130.000. Para los ingresos obtenidos de entidades o sociedades del exterior, al reportar el número de identificación se debe diligenciar con el número, código o clave de identificación, tal como figura en el registro fiscal tributario del país de residencia o domicilio y tipo de documento 42. Cuando en dicho país no se utilice número, código o clave fiscal, se debe informar con identificación 444444001 en forma ascendente, variando consecutivamente en una unidad hasta el 444449999 y con tipo de documento 43. | K99: Anual | L99: Artículo 28 | M99: Prevalidador de Informantes Tributarios | AX99: Formatos según informante | AY99: 1 | AZ99: 412.2 | BA99: =(AX99=Parametros[Segmento])*(AY99>0)*(AZ99>0) -> 0
C100: Informantes tributarios | D100: Las personas naturales y sus asimiladas, las personas jurídicas y sus asimiladas y, demás entidades públicas y privadas enunciadas en el artículo 1 de la Resolución 000162 de 2023. | E100: Saldos de cuentas por pagar al 31 de diciembre | F100: 1009 | G100: 7 | H100: No | I100: Si | J100: Se debe reportar la información de los acreedores por pasivos de cualquier índole a 31 de diciembre de 2024, cuando el saldo acumulado por acreedor sean superiores a 12 UVT del 2024, es decir, 12 × $47.065, $565.000. Los saldos de los pasivos cuya cuantía sea menor a 12 UVT se informarán acumulados en un solo registro con identificación 222222222, razón social “CUANTIAS MENORES” y tipo documento 43, en el concepto a que correspondan, reportando la dirección del informante. Para el saldo de los pasivos con entidades o sociedades del exterior, al reportar el número de identificación se debe diligenciar con el número, código o clave de identificación, tal como figura en el registro fiscal tributario del país de residencia o domicilio y tipo de documento 42. Cuando en dicho país no se utilice número, código o clave fiscal, se debe informar con identificación 444444001 en forma ascendente, variando consecutivamente en una unidad hasta el 444449999 y con tipo de documento 43. Los campos de dirección, departamento, y municipio no se deben diligenciar. | K100: Anual | L100: Artículo 25 | M100: Prevalidador de Informantes Tributarios | AX100: Formatos según informante | AY100: 1 | AZ100: 307.2 | BA100: =(AX100=Parametros[Segmento])*(AY100>0)*(AZ100>0) -> 0
C101: Informantes tributarios | D101: Las personas naturales y sus asimiladas, las personas jurídicas y sus asimiladas y, demás entidades públicas y privadas enunciadas en el artículo 1 de la Resolución 000162 de 2023. | E101: Saldos de cuentas por cobrar al 31 de diciembre | F101: 1008 | G101: 7 | H101: No | I101: No | J101: Se debe reportar la información de los deudores de créditos activos a 31 de diciembre de 2024, cuando el saldo acumulado por deudor superiores a 12 UVT del 2024, es decir, 12 × $47.065, $565.000. Los saldos de los créditos cuya cuantía sea menor a quinientos mil pesos ($500.000) se informarán acumulados en un solo registro con identificación 222222222, razón social “CUANTIAS MENORES” y tipo documento 43, en el concepto a que correspondan, reportando la dirección del informante. Para saldo de los deudores que sean entidades o sociedades del exterior, al reportar el número de identificación se debe diligenciar con el número, código o clave de identificación, tal como figura en el registro fiscal tributario del país de residencia o domicilio y tipo de documento 42. Cuando en dicho país no se utilice número, código o clave fiscal, se debe informar con identificación 444444001 en forma ascendente, variando consecutivamente en una unidad hasta el 444449999 y con tipo de documento 43. Los campos de dirección, departamento, y municipio no se deben diligenciar. | K101: Anual | L101: Artículo 26 | M101: Prevalidador de Informantes Tributarios | AX101: Formatos según informante | AY101: 1 | AZ101: 303 | BA101: =(AX101=Parametros[Segmento])*(AY101>0)*(AZ101>0) -> 0
C102: Informantes tributarios | D102: Las personas naturales y sus asimiladas, las personas jurídicas y sus asimiladas y, demás entidades públicas y privadas enunciadas en el artículo 1 de la Resolución 000162 de 2023. | E102: Información de las Declaraciones Tributarias | F102: 1011 | G102: 6 | H102: No | I102: Si | J102: Se deben reportar el detalle de "otros datos" (sin importar su monto) tomados de las declaraciones de renta, o de ingresos y patrimonio del año gravable 2024, como algunos costos y deducciones especiales tomados en la declaración, y detalle de algunas rentas exentas tomadas en la declaración; no exige el detalle de los "ingresos no gravados", los cuales solo se reportarán en el formato 2275). También exige el detalle de algunos ingresos facturados como excluidos del IVA, exentos del IVA o gravados con IVA del 5 % llevados a las declaraciones del IVA del 2024. | K102: Anual | L102: Artículos 32 a 38 | M102: Prevalidador de Informantes Tributarios | AX102: Formatos según informante | AY102: 1 | AZ102: 160.2 | BA102: =(AX102=Parametros[Segmento])*(AY102>0)*(AZ102>0) -> 0
C103: Informantes tributarios | D103: Las personas naturales y sus asimiladas, las personas jurídicas y sus asimiladas y, demás entidades públicas y privadas enunciadas en el artículo 1 de la Resolución 000162 de 2023. | E103: Información de las declaraciones tributarias, acciones y aportes e inversiones en bonos, certificados, títulos y demás inversiones tributarias | F103: 1012 | G103: 7 | H103: No | I103: No | J103: Se debe reportar el detalle de los saldos fiscales a diciembre 31 de 2024 en bancos e inversiones financieras (en Colombia y en el exterior), al igual que el saldo a diciembre 31 de 2023 por bonos, CDT, títulos, derechos fiduciarios y demás inversiones (incluidas las acciones o cuotas en sociedades), y que se hayan llevado a la declaración de renta o de ingresos y patrimonio 2024 o la declaración anual del régimen simple del año gravable 2024. | K103: Anual | L103: Artículos 29 a 31 | M103: Prevalidador de Informantes Tributarios | AX103: Formatos según informante | AY103: 1 | AZ103: 126.6 | BA103: =(AX103=Parametros[Segmento])*(AY103>0)*(AZ103>0) -> 0
C104: Informantes tributarios | D104: Las personas naturales y sus asimiladas, las personas jurídicas y sus asimiladas y, demás entidades públicas y privadas enunciadas en el artículo 1 de la Resolución 000162 de 2023. | E104: Ingresos no Constitutivos de renta ni ganancia ocasional | F104: 2275 | G104: 2 | H104: No | I104: Si | J104: Se debe reportar la información de los terceros que dieron lugar a la solicitud de ingresos no constitutivos de renta o ganancia ocasional en la declaración de renta o, en la declaración anual consolidada del Régimen Simple de Tributación - SIMPLE del año gravable. | K104: Anual | L104: Artículo 40 | M104: Prevalidador de Informantes Tributarios | AX104: Formatos según informante | AY104: 1 | AZ104: 112.2 | BA104: =(AX104=Parametros[Segmento])*(AY104>0)*(AZ104>0) -> 0
C105: CCE | D105: Contratos de Colaboración Empresarial. | E105: Pagos o abonos en cuenta y retenciones practicadas en contratos de colaboración empresarial | F105: 5247 | G105: 1 | H105: No | I105: Si | J105: Se debe reportar el valor total de las operaciones realizadas durante el año gravable inherentes a las actividades ejecutadas en desarrollo de cada uno de los contratos de colaboración, tales como, consorcios o uniones temporales, contratos de mandato o administración delegada, contratos de exploración y explotación de hidrocarburos, gases y minerales, joint venture, cuentas en participación y convenios de cooperación con entidades públicas. | K105: Anual | L105: Artículo 41 | M105: Prevalidador de CCE - Contratos, Consorcios y Exploración | AX105: Formatos según informante | AY105: 1 | AZ105: 124.1 | BA105: =(AX105=Parametros[Segmento])*(AY105>0)*(AZ105>0) -> 0
C106: CCE | E106: Ingresos recibidos en contratos de colaboración empresarial | F106: 5248 | G106: 1 | H106: No | I106: No | J106: Se deben reportar los ingresos recibidos (facturados) y las devoluciones, rebajas y descuentos, por cuenta de los miembros del contrato de colaboración. | K106: Anual | L106: Artículo 41 | M106: Prevalidador de CCE - Contratos, Consorcios y Exploración | AX106: Formatos según informante | AY106: 1 | AZ106: 109.2 | BA106: =(AX106=Parametros[Segmento])*(AY106>0)*(AZ106>0) -> 0
C107: CCE | E107: IVA descontable en contratos de colaboración empresarial | F107: 5249 | G107: 1 | H107: No | I107: N/A | J107: Se debe informar el IVA de los costos y gastos cubiertos por cuenta de los miembros del contrato de colaboración detallando cuál miembro del consorcio o unión temporal o mandante, etc., lo tomó como IVA descontable. Se reporta la totalidad de los IVA descontables. También se debe reportar el valor de IVA resultante por devoluciones en ventas anuladas, rescindidas o resueltas. | K107: Anual | L107: Artículo 41 | M107: Prevalidador de CCE - Contratos, Consorcios y Exploración | AX107: Formatos según informante | AY107: 1 | AZ107: 117.5 | BA107: =(AX107=Parametros[Segmento])*(AY107>0)*(AZ107>0) -> 0
C108: CCE | E108: IVA generado en contratos de colaboración empresarial | F108: 5250 | G108: 1 | H108: No | I108: N/A | J108: Se debe reportar la información del IVA generado, o del Impuesto Nacional al Consumo generado, cobrado en los ingresos facturados por cuenta de los miembros del contrato de colaboración. Se debe indicar cuál miembro lo debió declarar como IVA generado o como INC generado. Se reporta al tercero en forma individualizada sin importar el monto del ingreso sobre el cual se generó el IVA o el INC. | K108: Anual | L108: Artículo 41 | M108: Prevalidador de CCE - Contratos, Consorcios y Exploración | AX108: Formatos según informante | AY108: 1 | AZ108: 124.1 | BA108: =(AX108=Parametros[Segmento])*(AY108>0)*(AZ108>0) -> 0
C109: CCE | E109: Saldos Cuentas por cobrar a 31 de diciembre en contratos de colaboración empresarial | F109: 5251 | G109: 1 | H109: No | I109: No | J109: Se debe reportar la información de cuentas por cobrar a diciembre 31 de 2024 a favor del consorcio o a favor del mandante, etc., detallando cuál miembro del contrato de colaboración es el verdadero dueño de esa cuenta por cobrar. Sin importar el monto total de las cuentas por cobrar a diciembre 31, se deberán reportar los terceros con saldos superiores a 12 UVT del 2024, es decir, 12 × $47.065, $565.000. | K109: Anual | L109: Artículo 41 | M109: Prevalidador de CCE - Contratos, Consorcios y Exploración | AX109: Formatos según informante | AY109: 1 | AZ109: 111 | BA109: =(AX109=Parametros[Segmento])*(AY109>0)*(AZ109>0) -> 0
C110: CCE | E110: Saldos de cuentas por pagar al 31 de diciembre en contratos de colaboración empresarial | F110: 5252 | G110: 1 | H110: No | I110: No | J110: Se debe reportar la información de cuentas por pagar a diciembre 31 de 2024 a cargo del consorcio o del mandante, etc., detallando cuál miembro es el verdadero responsable de esa deuda. Sin importar el monto total de sus pasivos fiscales a diciembre 31, se deberán reportar los terceros con saldos superiores a 12 UVT del 2024, es decir, 12 × $47.065 = $565.000 | K110: Anual | L110: Artículo 41 | M110: Prevalidador de CCE - Contratos, Consorcios y Exploración | AX110: Formatos según informante | AY110: 1 | AZ110: 113.6 | BA110: =(AX110=Parametros[Segmento])*(AY110>0)*(AZ110>0) -> 0
C111: Entidades financieras | D111: Sociedades fiduciarias administradas por patrimonios autónomos. | E111: Información de los fideicomisos que se administran | F111: 1013 | G111: 9 | H111: No | I111: No | J111: Se debe informar debe especificar la identificación, apellidos y nombres o razón social, dirección física y electrónica, país de residencia o domicilio del fideicomitente o fiduciante y el número del fideicomiso mediante el cual se informa a la Superintendencia Financiera de Colombia, los tipos y subtipos del fideicomiso, de acuerdo a la clasificación de negocios fiduciarios, el valor patrimonial de los derechos fiduciarios, el valor de los aportes efectuados en el año al fideicomiso y el valor total de las utilidades causadas. Cuando los fideicomitentes, fiduciantes o beneficiarios diferentes a los fideicomitentes, sean entidades o sociedades del exterior, al reportar el número de identificación se debe diligenciar con el número, código o clave de identificación, tal como figura en el registro fiscal tributario del país de residencia o domicilio y tipo de documento 42. Cuando en dicho país no se utilice número, código o clave fiscal, se debe informar con identificación 444444001 en forma ascendente, variando consecutivamente en una unidad hasta el 444449999 y con tipo de documento 43. Los campos de dirección, departamento, y municipio no se deben diligenciar. | K111: Anual | L111: Artículo 16 | M111: Prevalidador de Entidades Financieras | AX111: Formatos según informante | AY111: 1 | AZ111: 330.5 | BA111: =(AX111=Parametros[Segmento])*(AY111>0)*(AZ111>0) -> 0
C112: Entidades financieras | E112: Pagos o abonos en cuenta y retenciones practicadas con recursos del fideicomiso | F112: 1014 | G112: 2 | H112: No | I112: Si | J112: Se deben reportar los pagos o abonos en cuenta realizados con recursos del fideicomiso y las retenciones de renta, IVA o timbre practicadas o asumidas durante el año. A los terceros se les reporta en forma individualizada si superan de forma consolidada los 3 UVT del 2024, es decir, 3 × $47.065 = $141.000, por todo concepto y usando los mismos conceptos con los que se elabora el formato 1001. | K112: Anual | L112: Artículo 18 | M112: Prevalidador de Entidades financieras | AX112: Formatos según informante | AY112: 1 | AZ112: 106.1 | BA112: =(AX112=Parametros[Segmento])*(AY112>0)*(AZ112>0) -> 0
C113: Entidades financieras | E113: Ingresos recibidos con cargo al fideicomiso o patrimonio autónomo | F113: 1058 | G113: 9 | H113: No | I113: No | J113: Se debe reportar el valor de los ingresos recibidos (facturados) a favor del fideicomiso utilizando el concepto 4060. | K113: Anual | L113: Artículo 17 | M113: Prevalidador de Entidades Financieras | AX113: Formatos según informante | AY113: 1 | AZ113: 70.1 | BA113: =(AX113=Parametros[Segmento])*(AY113>0)*(AZ113>0) -> 0
C114: Informantes tributarios | D114: Los Secretarios Generales de los órganos que financien gastos con recursos del Tesoro Nacional, o quienes hagan sus veces. | E114: Pagos o abonos en cuenta por secretarios generales que administran recursos del tesoro | F114: 1056 | G114: 10 | H114: No | I114: Si | J114: Se deben reportar los pagos o abonos en cuenta efectuados a terceros (en Colombia o en el exterior) y los valores de las retenciones a título de renta, IVA o timbre practicadas a tales terceros (incluyendo las direcciones del tercero). Se reportan en forma individualizada a los terceros que superen los 3 UVT del 2024, es decir, 3 × $47.065 = $141.000 por todo concepto y usando los mismos conceptos del formato 1001. A los que no superen dicho monto se les puede agrupar en un solo registro, por cada diferente concepto, utilizando el seudo-NIT 222222222. | K114: Anual | L114: Artículo 27 | M114: Prevalidador de Informantes Tributarios | AX114: Formatos según informante | AY114: 1 | AZ114: 142.8 | BA114: =(AX114=Parametros[Segmento])*(AY114>0)*(AZ114>0) -> 0
C115: Contratos de cooperación empresarial | D115: Entidades públicas o privadas que celebren convenios de cooperación y asistencia técnica para el apoyo y ejecución de sus programas o proyectos con organismos internacionales. | E115: Información de Convenios de Cooperación con Organismos Internacionales | F115: 1159 | G115: 10 | H115: No | I115: Si | J115: Se debe reportar la relación anual de pagos de todos los contratos vigentes en el año gravable con cargo a los convenios de cooperación y asistencia técnica para el apoyo y ejecución de sus programas o proyectos con organismos internacionales (incluyendo retenciones e IVA). | K115: Anual | L115: Artículo 2 | M115: Prevalidador de Convenios de cooperación | AX115: Formatos según informante | AY115: 1 | AZ115: 93 | BA115: =(AX115=Parametros[Segmento])*(AY115>0)*(AZ115>0) -> 0
C116: Otros informantes | D116: Todos los obligados a expedir estados financieros consolidados, y sin importar si existe o no un grupo económico o un grupo empresarial. | E116: Información de estados financieros consolidados | F116: 1034 | G116: 6 | H116: No | I116: No | J116: Se debe reportar la información de los estados financieros consolidados a diciembre 31 de 2024 conforme las normas vigentes en Colombia. | K116: Anual | L116: Artículo 42 | M116: Prevalidador de Otros | AX116: Formatos según informante | AY116: 1 | AZ116: 54.6 | BA116: =(AX116=Parametros[Segmento])*(AY116>0)*(AZ116>0) -> 0
C117: Otros informantes | E117: Información de vinculados económicos | F117: 1035 | G117: 8 | H117: Sí | I117: Si | J117: Se debe reportar la información de las compañías subordinadas nacionales a diciembre 31 de 2024. En la nueva versión se pide reportar el "Tipo de Aportante", "Tipo de documento del vinculado" y si "¿Es un vinculado incluido en el estado financiero consolidado?". | K117: Anual | L117: Artículo 43 | M117: Prevalidador de Otros | AX117: Formatos según informante | AY117: 1 | AZ117: 89.4 | BA117: =(AX117=Parametros[Segmento])*(AY117>0)*(AZ117>0) -> 0
C118: Otros informantes | E118: Información de subordinadas, vinculadas del exterior o controladas del exterior sin residencia fiscal en Colombia - ECE | F118: 1036 | G118: 9 | H118: Sí | I118: Si | J118: Se debe reportar la información de las compañías subordinadas del exterior a diciembre 31 de 2024. | K118: Anual | L118: Artículos 44 y 45 | M118: Prevalidador de Otros | AX118: Formatos según informante | AY118: 1 | AZ118: 103.2 | BA118: =(AX118=Parametros[Segmento])*(AY118>0)*(AZ118>0) -> 0
C119: Informantes tributarios | D119: Reportantes que deben presentar cualquiera de los demás formatos mencionados dentro de la Resolución 000162 de 2023 y que durante el 2024 hayan realizado pagos o abonos en cuenta por rentas de trabajo. | E119: Información de rentas de trabajo y pensiones | F119: 2276 | G119: 4 | H119: Sí | I119: N/A | J119: Se debe reportar la información de las personas naturales a las cuales se les haya pagado o abonado en cuenta cualquier valor por concepto de rentas de trabajo (salarios, honorarios, servicios, emolumentos, compensaciones, etc.) y que hayan quedado certificados en los formularios 220 del año gravable 2024. En el caso de los asalariados, solo se reportan valores efectivamente pagados. Para aquellos que no tengan vínculo laboral y a los cuales se haya decidido entregarles también un formulario 220, se reportaría el valor pagado o abonado en cuenta. | K119: Anual | L119: Artículo 51 | M119: Prevalidador de Informantes Tributarios | AX119: Formatos según informante | AY119: 1 | AZ119: 160.8 | BA119: =(AX119=Parametros[Segmento])*(AY119>0)*(AZ119>0) -> 0
C120: Gobernaciones y Alcaldías | D120: Alcaldías, Distritos y Gobernaciones. | E120: Información de registros catastrales | F120: 1406 | G120: 10 | H120: No | I120: No | J120: Se debe reportar la información detallada de todos y cada uno de los predios sobre los cuales se recaudó el impuesto predial de la vigencia 2024. | K120: Anual | L120: Artículo 47 | M120: Prevalidador de Gobernaciones y Alcaldías | AX120: Formatos según informante | AY120: 1 | AZ120: 109.2 | BA120: =(AX120=Parametros[Segmento])*(AY120>0)*(AZ120>0) -> 0
C121: Gobernaciones y Alcaldías | E121: Información de registros catastrales | F121: 1476 | G121: 12 | H121: No | I121: No | J121: Se debe reportar la información detallada de todos y cada uno de los predios sobre los cuales se recaudó el impuesto predial de la vigencia 2024. | K121: Anual | L121: Artículo 52 | M121: Prevalidador de Gobernaciones y Alcaldías | AX121: Formatos según informante | AY121: 1 | AZ121: 159 | BA121: =(AX121=Parametros[Segmento])*(AY121>0)*(AZ121>0) -> 0
C122: Gobernaciones y Alcaldías | E122: Información de vehículos | F122: 1480 | G122: 10 | H122: No | I122: No | J122: Se debe reportar la información detallada de todos los vehículos sobre los cuales se recaudó el impuesto de vehículos de la vigencia 2024. | K122: Anual | L122: Artículo 53 | M122: Prevalidador de Gobernaciones y Alcaldías | AX122: Formatos según informante | AY122: 1 | AZ122: 95.4 | BA122: =(AX122=Parametros[Segmento])*(AY122>0)*(AZ122>0) -> 0
C123: Gobernaciones y Alcaldías | E123: Impuesto de Industria y Comercio, Avisos y Tableros - ICA | F123: 1481 | G123: 10 | H123: No | I123: No | J123: Se debe reportar en forma consolidada las declaraciones iniciales, o las correcciones que presenten los contribuyentes respecto del año gravable a informar. En caso de existir correcciones a las declaraciones se debe tomar únicamente la última declaración de corrección presentada y cuyo estado sea vigente o válido. | K123: Anual | L123: Artículo 54 | M123: Prevalidador de Gobernaciones y Alcaldías | AX123: Formatos según informante | AY123: 1 | AZ123: 106.2 | BA123: =(AX123=Parametros[Segmento])*(AY123>0)*(AZ123>0) -> 0
C124: Gobernaciones y Alcaldías | E124: Información de resoluciones administrativas relacionadas con obligaciones tributarias del orden municipal o distrital | F124: 2631 | G124: 1 | H124: No | I124: No | J124: Se deben reportar los actos administrativos por incumplimiento de obligaciones tributarias expedidos durante 2024 por las autoridades municipales o distritales, ya sean liquidaciones oficiales relacionadas con el impuesto de industria y comercio, avisos y tableros y la sobretasa bomberil, o resoluciones que imponen sanciones por el incumplimiento de obligaciones tributarias del orden territorial, así como aprobaciones de devoluciones y/o compensaciones por concepto del impuesto de industria y comercio consolidado. Solo se solicita los actos administrativos relacionados con contribuyentes que en el año 2024 hayan obtenido ingresos brutos inferiores a 100.000 UVT ($4.706.500.000). | K124: Anual | L124: Artículo 55 | M124: Prevalidador de Gobernaciones y Alcaldías | AX124: Formatos según informante | AY124: 0 | AZ124: 178.2 | BA124: =(AX124=Parametros[Segmento])*(AY124>0)*(AZ124>0) -> 0
C125: Otros informantes | D125: Todos los reportantes señalados en el artículo 1 de la Resolución 000162 de 2023, que durante el 2024 hayan dado empleo a mujeres víctimas de la violencia y hayan utilizado el beneficio de la deducción especial en el impuesto de renta. | E125: Deducciones empleadas victimas violencia | F125: 2280 | G125: 1 | H125: No | I125: No | J125: Se debe reportar la identificación, cargo, salario y otros datos de todas las mujeres sobre las cuales se haya usado el beneficio tributario del artículo 23 de la Ley 1257 de 2008. | K125: Anual | L125: Artículo 59 | M125: Prevalidador de Otros | AX125: Formatos según informante | AY125: 1 | AZ125: 112.2 | BA125: =(AX125=Parametros[Segmento])*(AY125>0)*(AZ125>0) -> 0
C126: Otros informantes | D126: Entidades públicas (de nivel nacional o territorial) que hayan tenido que elaborar alguno o varios de los reportes mencionados en la Resolución 000162 de 2023. | E126: Código Único Institucional (CUIN) Entidades Públicas | F126: 2279 | G126: 2 | H126: No | I126: N/A | J126: Todas las entidades públicas obligadas a reportar información de acuerdo con la Resolución 000162 de 2023, deberán informar el correspondiente Código Único Institucional (CUIN), asignado por la Contaduría General de la Nación. | K126: Anual | L126: Artículo 60 | M126: Prevalidador de Otros | AX126: Formatos según informante | AY126: 1 | AZ126: 91.2 | BA126: =(AX126=Parametros[Segmento])*(AY126>0)*(AZ126>0) -> 0
C127: Otros informantes | D127: Responsables del impuesto nacional al carbono. | E127: Información de no causación del impuesto al carbono por certificación de carbono neutro | F127: 2574 | G127: 2 | H127: No | I127: No | J127: Los responsables del Impuesto Nacional al Carbono deberán presentar la información en relación con la documentación que acompaña la solicitud de no causación del impuesto por parte de los sujetos pasivos que certifiquen ser carbono neutro. | K127: Anual | L127: Artículo 62 | M127: Prevalidador de Otros | AX127: Formatos según informante | AY127: 1 | AZ127: 90.6 | BA127: =(AX127=Parametros[Segmento])*(AY127>0)*(AZ127>0) -> 0
C128: Otros informantes | D128: Todas las entidades señaladas en los artículos 22 y 23 del ET que durante el 2024 recibieron donaciones y hayan sido certificadas. | E128: Donaciones recibidas y certificadas por entidades no contribuyentes | F128: 2575 | G128: 1 | H128: No | I128: No | J128: Las entidades señaladas en los artículos 22 y 23 del Estatuto Tributario deberán informar las donaciones recibidas durante el 2024, que fueron debidamente certificadas a los donantes. Si una misma persona natural o jurídica realizó donaciones en diferentes formas, debe relacionar al donante tantas veces como formas de donación haya efectuado. | K128: Anual | L128: Artículo 61 | M128: Prevalidador de Otros | AX128: Formatos según informante | AY128: 1 | AZ128: 108.6 | BA128: =(AX128=Parametros[Segmento])*(AY128>0)*(AZ128>0) -> 0
C129: Otros informantes | D129: Personas o entidades que actuaron durante el 2024 como representantes de concesiones o asociaciones público-privadas –APP–. | E129: Información de Concesiones y Asociaciones Público-Privadas - APP | F129: 2625 | G129: 1 | H129: No | I129: No | J129: Las personas o entidades que actúen como representantes de Concesiones o Asociaciones Público-Privadas – APP, debe reportar la información financiera relacionada con cada proyecto ejecutado durante el año 2024 bajo la figura de las APP. | K129: Anual | L129: Artículo 58 | M129: Prevalidador de Otros | AX129: Formatos según informante | AY129: 1 | AZ129: 91.2 | BA129: =(AX129=Parametros[Segmento])*(AY129>0)*(AZ129>0) -> 0
C130: Otros informantes | D130: Entidades que otorgan, cancelan o suspenden personerías jurídicas. | E130: Información de las entidades que otorgan, reconocen, registran, cancelan o suspenden personerías jurídicas | F130: 2683 | G130: 1 | H130: No | I130: No | J130: Se debe reportar la información de las entidades a las que se les haya otorgado, cancelado o suspendido la personería jurídica, así como la de las personas que actúan como representantes legales y de las que integran los órganos directivos. La información a reportar por el año gravable 2024 debe corresponder a la totalidad de las entidades a quienes se les otorga, reconoce, registra, cancela o suspende la personería jurídica en el respectivo año gravable. | K130: Anual | L130: Artículo 56 | M130: Prevalidador de Otros | AX130: Formatos según informante | AY130: 1 | AZ130: 143.4 | BA130: =(AX130=Parametros[Segmento])*(AY130>0)*(AZ130>0) -> 0
C131: Otros informantes | D131: Propiedades horizontales comerciales, industriales y mixtas que hayan obtenido ingresos brutos superiores a 2.400 UVT que durante el año gravable 2024, y/o que hubiesen esta obligados a practicar retenciones y autorretenciones en la fuente a título del impuesto de renta, impuesto sobre las ventas (IVA) y Timbre, durante el año gravable 2024. | E131: Información de los bienes y áreas comunes destinados a la explotación comercial, industrial o mixta de la propiedad horizontal | F131: 2743 | G131: 1 | H131: Nuevo | I131: No | J131: Las propiedades horizontales comerciales, industriales y mixtas obligadas a presentar información, deberán reportar la información de los bienes o áreas comunes destinados a la explotación comercial, industrial o mixta. | K131: Anual | L131: Artículo 57 | M131: Prevalidador de Otros | AX131: Formatos según informante | AY131: 1 | AZ131: 164.4 | BA131: =(AX131=Parametros[Segmento])*(AY131>0)*(AZ131>0) -> 0
AX132: Formatos según informante | AY132: 1 | AZ132: 30 | BA132: =(AX132=Parametros[Segmento])*(AY132>0)*(AZ132>0) -> 0
A133: 3.78 | B133: 2 | C133: 124 | D133: 50 | E133: 10 | AX133: Datos Contribuyente | AY133: 0 | AZ133: 20 | BA133: =(AX133=Parametros[Segmento])*(AY133>0)*(AZ133>0) -> 0
AX134: Datos Contribuyente | AY134: 1 | AZ134: 30 | BA134: =(AX134=Parametros[Segmento])*(AY134>0)*(AZ134>0) -> 0
B135: Datos básicos del contribuyente | AX135: Datos Contribuyente | AY135: 1 | AZ135: 30 | BA135: =(AX135=Parametros[Segmento])*(AY135>0)*(AZ135>0) -> 0
B136: Concepto | D136: Datos | AX136: Datos Contribuyente | AY136: 1 | AZ136: 30 | BA136: =(AX136=Parametros[Segmento])*(AY136>0)*(AZ136>0) -> 0
B137: Razón social del contribuyente | AX137: Datos Contribuyente | AY137: 1 | AZ137: 30 | BA137: =(AX137=Parametros[Segmento])*(AY137>0)*(AZ137>0) -> 0
B138: NIT del contribuyente | AX138: Datos Contribuyente | AY138: 1 | AZ138: 30 | BA138: =(AX138=Parametros[Segmento])*(AY138>0)*(AZ138>0) -> 0
B139: Dígito de verificación | D139: =IF(MOD((VALUE(MID(TEXT(D138,"000000000000000"),15,1))*3+VALUE(MID(TEXT(D138,"000000000000000"),14,1))*7+VALUE(MID(TEXT(D138,"000000000000000"),13,1))*13+VALUE(MID(TEXT(D138,"000000000000000"),12,1))*17+VALUE(MID(TEXT(D138,"000000000000000"),11,1))*19+VALUE(MID(TEXT(D138,"000000000000000"),10,1))*23+VALUE(MID(TEXT(D138,"000000000000000"),9,1))*29+VALUE(MID(TEXT(D138,"000000000000000"),8,1))*37+VALUE(MID(TEXT(D138,"000000000000000"),7,1))*41+VALUE(MID(TEXT(D138,"000000000000000"),6,1))*43+VALUE(MID(TEXT(D138,"000000000000000"),5,1))*47+VALUE(MID(TEXT(D138,"000000000000000"),4,1))*53+VALUE(MID(TEXT(D138,"000000000000000"),3,1))*59+VALUE(MID(TEXT(D138,"000000000000000"),2,1))*67+VALUE(MID(TEXT(D138,"000000000000000"),1,1))*71),11)=0,0,IF(MOD((VALUE(MID(TEXT(D138,"000000000000000"),15,1))*3+VALUE(MID(TEXT(D138,"000000000000000"),14,1))*7+VALUE(MID(TEXT(D138,"000000000000000"),13,1))*13+VALUE(MID(TEXT(D138,"000000000000000"),12,1))*17+VALUE(MID(TEXT(D138,"000000000000000"),11,1))*19+VALUE(MID(TEXT(D138,"000000000000000"),10,1))*23+VALUE(MID(TEXT(D138,"000000000000000"),9,1))*29+VALUE(MID(TEXT(D138,"000000000000000"),8,1))*37+VALUE(MID(TEXT(D138,"000000000000000"),7,1))*41+VALUE(MID(TEXT(D138,"000000000000000"),6,1))*43+VALUE(MID(TEXT(D138,"000000000000000"),5,1))*47+VALUE(MID(TEXT(D138,"000000000000000"),4,1))*53+VALUE(MID(TEXT(D138,"000000000000000"),3,1))*59+VALUE(MID(TEXT(D138,"000000000000000"),2,1))*67+VALUE(MID(TEXT(D138,"000000000000000"),1,1))*71),11)=1,1,11-(MOD((VALUE(MID(TEXT(D138,"000000000000000"),15,1))*3+VALUE(MID(TEXT(D138,"000000000000000"),14,1))*7+VALUE(MID(TEXT(D138,"000000000000000"),13,1))*13+VALUE(MID(TEXT(D138,"000000000000000"),12,1))*17+VALUE(MID(TEXT(D138,"000000000000000"),11,1))*19+VALUE(MID(TEXT(D138,"000000000000000"),10,1))*23+VALUE(MID(TEXT(D138,"000000000000000"),9,1))*29+VALUE(MID(TEXT(D138,"000000000000000"),8,1))*37+VALUE(MID(TEXT(D138,"000000000000000"),7,1))*41+VALUE(MID(TEXT(D138,"000000000000000"),6,1))*43+VALUE(MID(TEXT(D138,"000000000000000"),5,1))*47+VALUE(MID(TEXT(D138,"000000000000000"),4,1))*53+VALUE(MID(TEXT(D138,"000000000000000"),3,1))*59+VALUE(MID(TEXT(D138,"000000000000000"),2,1))*67+VALUE(MID(TEXT(D138,"000000000000000"),1,1))*71),11)))) -> 0 | AX139: Datos Contribuyente | AY139: 1 | AZ139: 30 | BA139: =(AX139=Parametros[Segmento])*(AY139>0)*(AZ139>0) -> 0
B140: Último dígito del NIT | D140: =+RIGHT(D138,1) ->  | AX140: Datos Contribuyente | AY140: 0 | AZ140: 30 | BA140: =(AX140=Parametros[Segmento])*(AY140>0)*(AZ140>0) -> 0
B141: Últimos dos dígitos del NIT | D141: =+RIGHT(D138,2) ->  | AX141: Datos Contribuyente | AY141: 0 | AZ141: 30 | BA141: =(AX141=Parametros[Segmento])*(AY141>0)*(AZ141>0) -> 0
B142: Actividad principal del contribuyente | D142: 4631 - Comercio al por mayor de productos alimenticios | AX142: Datos Contribuyente | AY142: 1 | AZ142: =30+(INT(LEN($D$142)/30))*12 -> 42 | BA142: =(AX142=Parametros[Segmento])*(AY142>0)*(AZ142>0) -> 0
B143: Dirección seccional DIAN | D143: 07 - Dirección Seccional de Impuestos de Cúcuta | AX143: Datos Contribuyente | AY143: 1 | AZ143: =30+(INT(LEN($D$143)/30))*12 -> 42 | BA143: =(AX143=Parametros[Segmento])*(AY143>0)*(AZ143>0) -> 0
B144: El contribuyente es Gran Contribuyente | D144: No | AX144: Datos Contribuyente | AY144: 1 | AZ144: 30 | BA144: =(AX144=Parametros[Segmento])*(AY144>0)*(AZ144>0) -> 0
AX145: Datos Contribuyente | AY145: 1 | AZ145: 30 | BA145: =(AX145=Parametros[Segmento])*(AY145>0)*(AZ145>0) -> 0
B146: Plazo para presentar la información exógena del año gravable 2024 - Personas Jurídicas y Naturales | AX146: Datos Contribuyente | AY146: =IF(Obligatorio_Gran_Contribuyente="No",1,0) -> 1 | AZ146: 30 | BA146: =(AX146=Parametros[Segmento])*(AY146>0)*(AZ146>0) -> 0
B147: Concepto | D147: Datos | AX147: Datos Contribuyente | AY147: =IF(Obligatorio_Gran_Contribuyente="No",1,0) -> 1 | AZ147: 30 | BA147: =(AX147=Parametros[Segmento])*(AY147>0)*(AZ147>0) -> 0
B148: Fecha de vencimiento para presentar la información exógena del año gravable 2024 | D148: =IF(D144="No",IF(D138>0,VLOOKUP(D141,' '!B167:C266,2,0),""),"") ->  | AX148: Datos Contribuyente | AY148: =IF(Obligatorio_Gran_Contribuyente="No",1,0) -> 1 | AZ148: 30 | BA148: =(AX148=Parametros[Segmento])*(AY148>0)*(AZ148>0) -> 0
B149: Fecha en la cual el contribuyente presentará la información exógena del año gravable 2024 | AX149: Datos Contribuyente | AY149: =IF(Obligatorio_Gran_Contribuyente="No",1,0) -> 1 | AZ149: 30 | BA149: =(AX149=Parametros[Segmento])*(AY149>0)*(AZ149>0) -> 0
D150: =IFERROR(IF(ROUNDUP((DAYS360(D148,IF(DAY(D149)=31,D149+1,D149))/30),0)>0,ROUNDUP((DAYS360(D148,IF(DAY(D149)=31,D149+1,D149))/30),0),0),0) -> 0 | AX150: Datos Contribuyente | AY150: 0 | AZ150: 30 | BA150: =(AX150=Parametros[Segmento])*(AY150>0)*(AZ150>0) -> 0
B151: La información exógena del año gravable 2024 se presentará de forma extemporánea | D151: =+IF(D150="","",IF(D150<=0,"No","Sí")) -> No | AX151: Datos Contribuyente | AY151: =IF(Obligatorio_Gran_Contribuyente="No",1,0) -> 1 | AZ151: 30 | BA151: =(AX151=Parametros[Segmento])*(AY151>0)*(AZ151>0) -> 0
B152: ¿El contribuyente recibió un emplazamiento por no declarar? | AX152: Datos Contribuyente | AY152: =IF($D$151="Sí",IF(Obligatorio_Gran_Contribuyente="No",1,0),0) -> 0 | AZ152: 30 | BA152: =(AX152=Parametros[Segmento])*(AY152>0)*(AZ152>0) -> 0
AX153: Datos Contribuyente | AY153: 1 | AZ153: 30 | BA153: =(AX153=Parametros[Segmento])*(AY153>0)*(AZ153>0) -> 0
B154: Plazo para presentar la información exógena del año gravable 2024 - Grandes Contribuyentes | AX154: Datos Contribuyente | AY154: =IF(Obligatorio_Gran_Contribuyente="Sí",1,0) -> 0 | AZ154: 30 | BA154: =(AX154=Parametros[Segmento])*(AY154>0)*(AZ154>0) -> 0
B155: Concepto | D155: Datos | AX155: Datos Contribuyente | AY155: =IF(Obligatorio_Gran_Contribuyente="Sí",1,0) -> 0 | AZ155: 30 | BA155: =(AX155=Parametros[Segmento])*(AY155>0)*(AZ155>0) -> 0
B156: Fecha de vencimiento para presentar la información exógena del año gravable 2024 | D156: =+IF(D144="Sí",IF(D138>0,VLOOKUP(D140,' '!D167:E176,2,0),""),"") ->  | AX156: Datos Contribuyente | AY156: =IF(Obligatorio_Gran_Contribuyente="Sí",1,0) -> 0 | AZ156: 30 | BA156: =(AX156=Parametros[Segmento])*(AY156>0)*(AZ156>0) -> 0
B157: Fecha en la cual el contribuyente presentará la información exógena del año gravable 2024 | AX157: Datos Contribuyente | AY157: =IF(Obligatorio_Gran_Contribuyente="Sí",1,0) -> 0 | AZ157: 30 | BA157: =(AX157=Parametros[Segmento])*(AY157>0)*(AZ157>0) -> 0
B158: Mes o fracción de extemporaneidad | D158: =IFERROR(IF(AND(D156>0,D157>0),IF(ROUNDUP((DAYS360(D156,D157)/30),0)>0,ROUNDUP((DAYS360(D156,D157)/30),0),0),""),"") ->  | AX158: Datos Contribuyente | AY158: 0 | AZ158: 30 | BA158: =(AX158=Parametros[Segmento])*(AY158>0)*(AZ158>0) -> 0
B159: La información exógena se presentará de forma extemporánea | D159: =+IF(D158="","",IF(D158<=0,"No","Sí")) ->  | AX159: Datos Contribuyente | AY159: =IF(Obligatorio_Gran_Contribuyente="Sí",1,0) -> 0 | AZ159: 30 | BA159: =(AX159=Parametros[Segmento])*(AY159>0)*(AZ159>0) -> 0
B160: ¿El contribuyente recibió un emplazamiento por no declarar? | AX160: Datos Contribuyente | AY160: =IF(Obligatorio_Gran_Contribuyente="Sí",IF($D$159="Sí",1,0),0) -> 0 | AZ160: 30 | BA160: =(AX160=Parametros[Segmento])*(AY160>0)*(AZ160>0) -> 0
AX161: Datos Contribuyente | AY161: =IF(Obligatorio_Gran_Contribuyente="Sí",1,0) -> 0 | AZ161: 30 | BA161: =(AX161=Parametros[Segmento])*(AY161>0)*(AZ161>0) -> 0
A162: 4.44 | B162: 29.78 | C162: 59.78 | D162: 29.78 | E162: 59.78 | F162: 10 | AX162: Vencimientos | AY162: 0 | AZ162: 20 | BA162: =(AX162=Parametros[Segmento])*(AY162>0)*(AZ162>0) -> 0
AX163: Vencimientos | AY163: 1 | AZ163: 30 | BA163: =(AX163=Parametros[Segmento])*(AY163>0)*(AZ163>0) -> 0
B164: Vencimientos para la presentación de la información exógena del año gravable 2024 | AX164: Vencimientos | AY164: 1 | AZ164: 40 | BA164: =(AX164=Parametros[Segmento])*(AY164>0)*(AZ164>0) -> 0
B165: Personas jurídicas y naturales | D165: Grandes Contribuyentes | AX165: Vencimientos | AY165: 1 | AZ165: 30 | BA165: =(AX165=Parametros[Segmento])*(AY165>0)*(AZ165>0) -> 0
B166: Último(s) dígito(s) del NIT | C166: Fecha límite | D166: Último dígito del NIT | E166: Fecha límite | AX166: Vencimientos | AY166: 1 | AZ166: 30 | BA166: =(AX166=Parametros[Segmento])*(AY166>0)*(AZ166>0) -> 0
B167: 01 | C167: 2025-05-14 | D167: 1 | E167: 2025-04-25 | AX167: Vencimientos | AY167: 1 | AZ167: 30 | BA167: =(AX167=Parametros[Segmento])*(AY167>0)*(AZ167>0) -> 0
B168: 02 | C168: 2025-05-14 | D168: 2 | E168: 2025-04-28 | AX168: Vencimientos | AY168: 1 | AZ168: 30 | BA168: =(AX168=Parametros[Segmento])*(AY168>0)*(AZ168>0) -> 0
B169: 03 | C169: 2025-05-14 | D169: 3 | E169: 2025-05-02 | AX169: Vencimientos | AY169: 1 | AZ169: 30 | BA169: =(AX169=Parametros[Segmento])*(AY169>0)*(AZ169>0) -> 0
B170: 04 | C170: 2025-05-14 | D170: 4 | E170: 2025-05-05 | AX170: Vencimientos | AY170: 1 | AZ170: 30 | BA170: =(AX170=Parametros[Segmento])*(AY170>0)*(AZ170>0) -> 0
B171: 05 | C171: 2025-05-14 | D171: 5 | E171: 2025-05-06 | AX171: Vencimientos | AY171: 1 | AZ171: 30 | BA171: =(AX171=Parametros[Segmento])*(AY171>0)*(AZ171>0) -> 0
B172: 06 | C172: 2025-05-15 | D172: 6 | E172: 2025-05-07 | AX172: Vencimientos | AY172: 1 | AZ172: 30 | BA172: =(AX172=Parametros[Segmento])*(AY172>0)*(AZ172>0) -> 0
B173: 07 | C173: 2025-05-15 | D173: 7 | E173: 2025-05-08 | AX173: Vencimientos | AY173: 1 | AZ173: 30 | BA173: =(AX173=Parametros[Segmento])*(AY173>0)*(AZ173>0) -> 0
B174: 08 | C174: 2025-05-15 | D174: 8 | E174: 2025-05-09 | AX174: Vencimientos | AY174: 1 | AZ174: 30 | BA174: =(AX174=Parametros[Segmento])*(AY174>0)*(AZ174>0) -> 0
B175: 09 | C175: 2025-05-15 | D175: 9 | E175: 2025-05-12 | AX175: Vencimientos | AY175: 1 | AZ175: 30 | BA175: =(AX175=Parametros[Segmento])*(AY175>0)*(AZ175>0) -> 0
B176: 10 | C176: 2025-05-15 | D176: 0 | E176: 2025-05-13 | AX176: Vencimientos | AY176: 1 | AZ176: 30 | BA176: =(AX176=Parametros[Segmento])*(AY176>0)*(AZ176>0) -> 0
B177: 11 | C177: 2025-05-16 | AX177: Vencimientos | AY177: 1 | AZ177: 30 | BA177: =(AX177=Parametros[Segmento])*(AY177>0)*(AZ177>0) -> 0
B178: 12 | C178: 2025-05-16 | AX178: Vencimientos | AY178: 1 | AZ178: 30 | BA178: =(AX178=Parametros[Segmento])*(AY178>0)*(AZ178>0) -> 0
B179: 13 | C179: 2025-05-16 | AX179: Vencimientos | AY179: 1 | AZ179: 30 | BA179: =(AX179=Parametros[Segmento])*(AY179>0)*(AZ179>0) -> 0
B180: 14 | C180: 2025-05-16 | AX180: Vencimientos | AY180: 1 | AZ180: 30 | BA180: =(AX180=Parametros[Segmento])*(AY180>0)*(AZ180>0) -> 0
B181: 15 | C181: 2025-05-16 | AX181: Vencimientos | AY181: 1 | AZ181: 30 | BA181: =(AX181=Parametros[Segmento])*(AY181>0)*(AZ181>0) -> 0
B182: 16 | C182: 2025-05-19 | AX182: Vencimientos | AY182: 1 | AZ182: 30 | BA182: =(AX182=Parametros[Segmento])*(AY182>0)*(AZ182>0) -> 0
B183: 17 | C183: 2025-05-19 | AX183: Vencimientos | AY183: 1 | AZ183: 30 | BA183: =(AX183=Parametros[Segmento])*(AY183>0)*(AZ183>0) -> 0
B184: 18 | C184: 2025-05-19 | AX184: Vencimientos | AY184: 1 | AZ184: 30 | BA184: =(AX184=Parametros[Segmento])*(AY184>0)*(AZ184>0) -> 0
B185: 19 | C185: 2025-05-19 | AX185: Vencimientos | AY185: 1 | AZ185: 30 | BA185: =(AX185=Parametros[Segmento])*(AY185>0)*(AZ185>0) -> 0
B186: 20 | C186: 2025-05-19 | AX186: Vencimientos | AY186: 1 | AZ186: 30 | BA186: =(AX186=Parametros[Segmento])*(AY186>0)*(AZ186>0) -> 0
B187: 21 | C187: 2025-05-20 | AX187: Vencimientos | AY187: 1 | AZ187: 30 | BA187: =(AX187=Parametros[Segmento])*(AY187>0)*(AZ187>0) -> 0
B188: 22 | C188: 2025-05-20 | AX188: Vencimientos | AY188: 1 | AZ188: 30 | BA188: =(AX188=Parametros[Segmento])*(AY188>0)*(AZ188>0) -> 0
B189: 23 | C189: 2025-05-20 | AX189: Vencimientos | AY189: 1 | AZ189: 30 | BA189: =(AX189=Parametros[Segmento])*(AY189>0)*(AZ189>0) -> 0
B190: 24 | C190: 2025-05-20 | AX190: Vencimientos | AY190: 1 | AZ190: 30 | BA190: =(AX190=Parametros[Segmento])*(AY190>0)*(AZ190>0) -> 0
B191: 25 | C191: 2025-05-20 | AX191: Vencimientos | AY191: 1 | AZ191: 30 | BA191: =(AX191=Parametros[Segmento])*(AY191>0)*(AZ191>0) -> 0
B192: 26 | C192: 2025-05-21 | AX192: Vencimientos | AY192: 1 | AZ192: 30 | BA192: =(AX192=Parametros[Segmento])*(AY192>0)*(AZ192>0) -> 0
B193: 27 | C193: 2025-05-21 | AX193: Vencimientos | AY193: 1 | AZ193: 30 | BA193: =(AX193=Parametros[Segmento])*(AY193>0)*(AZ193>0) -> 0
B194: 28 | C194: 2025-05-21 | AX194: Vencimientos | AY194: 1 | AZ194: 30 | BA194: =(AX194=Parametros[Segmento])*(AY194>0)*(AZ194>0) -> 0
B195: 29 | C195: 2025-05-21 | AX195: Vencimientos | AY195: 1 | AZ195: 30 | BA195: =(AX195=Parametros[Segmento])*(AY195>0)*(AZ195>0) -> 0
B196: 30 | C196: 2025-05-21 | AX196: Vencimientos | AY196: 1 | AZ196: 30 | BA196: =(AX196=Parametros[Segmento])*(AY196>0)*(AZ196>0) -> 0
B197: 31 | C197: 2025-05-22 | AX197: Vencimientos | AY197: 1 | AZ197: 30 | BA197: =(AX197=Parametros[Segmento])*(AY197>0)*(AZ197>0) -> 0
B198: 32 | C198: 2025-05-22 | AX198: Vencimientos | AY198: 1 | AZ198: 30 | BA198: =(AX198=Parametros[Segmento])*(AY198>0)*(AZ198>0) -> 0
B199: 33 | C199: 2025-05-22 | AX199: Vencimientos | AY199: 1 | AZ199: 30 | BA199: =(AX199=Parametros[Segmento])*(AY199>0)*(AZ199>0) -> 0
B200: 34 | C200: 2025-05-22 | AX200: Vencimientos | AY200: 1 | AZ200: 30 | BA200: =(AX200=Parametros[Segmento])*(AY200>0)*(AZ200>0) -> 0
... 1553 more rows

Sheet Pegar_Especial (hidden)

Sheet Alertas (hidden)
A1: ID | B1: Columna | C1: Fila | D1: Observación

Sheet Campos_x_Formato (hidden)
A1: Formato | B1: Ancho_Col | C1: Fichero_Prevalidador | D1: 1 | E1: 2 | F1: Tipo | G1: Longitud | H1: Obligatorio | I1: Comentario para el usuario - DIAN | J1: 8 | K1: 9 | L1: Atributo | M1: 12 | N1: Denominacion_Casilla | O1: Orden | P1: Lista | Q1: Columna1 | R1: Columna2
A2: 1001 | B2: 15 | C2: Prevalidador_Tributario_Informantes.xlsm | D2: *24 | E2: Concepto | F2: N | G2: 4 | H2: S | I2: Seleccione el concepto por el cual efectuó el pago o abono en cuenta. | L2: cpt | N2: Concepto | O2: 1 | P2: DConcepto3 | Q2: DConcepto3 | R2: =Campos_x_Formato[[#This Row],[Columna1]]=Campos_x_Formato[[#This Row],[Lista]] -> TRUE
A3: 1001 | B3: 15 | C3: Prevalidador_Tributario_Informantes.xlsm | D3: *25 | E3: Tipo de documento | F3: N | G3: 2 | H3: S | I3: Seleccione el tipo de documento de identificación que posee el informado. Cuando vaya a informar cuantías menores o personas o entidades del exterior, Utilice el tipo de Documento 43. Si la Persona o Entidad del exterior, tiene Número, Código o Clave Fiscal, Utilice 42. | L3: tdoc | N3: Tipo de documento | O3: 2 | P3: DTiposDocto | Q3: DTiposDocto | R3: =Campos_x_Formato[[#This Row],[Columna1]]=Campos_x_Formato[[#This Row],[Lista]] -> TRUE
A4: 1001 | B4: 25 | C4: Prevalidador_Tributario_Informantes.xlsm | D4: *26 | E4: Número identificación | F4: A | G4: 20 | H4: S | I4: Indique el número de identificación que corresponda al beneficiario del pago informado. Si es por cuantías menores indique el Nit 222222222. Cuando sean transacciones con personas o entidades del exterior que no posea Número, Código o Clave Fiscal deberá informarse con Nit 444444001 aumentando en una unidad cada relacionado hasta el 444449999. | K4: E0064 | L4: nid | N4: Número identificación | O4: 3 | R4: =Campos_x_Formato[[#This Row],[Columna1]]=Campos_x_Formato[[#This Row],[Lista]] -> TRUE
A5: 1001 | B5: 35 | C5: Prevalidador_Tributario_Informantes.xlsm | D5: 27 | E5: Primer apellido del informado | F5: A | G5: 60 | H5: N | I5: Indique el primer apellido del beneficiario del pago. Si es una persona jurídica, deje este espacio en blanco. | K5: E0141(31) | L5: apl1 | N5: Primer apellido del informado | O5: 4 | R5: =Campos_x_Formato[[#This Row],[Columna1]]=Campos_x_Formato[[#This Row],[Lista]] -> TRUE
A6: 1001 | B6: 35 | C6: Prevalidador_Tributario_Informantes.xlsm | D6: 28 | E6: Segundo apellido del informado | F6: A | G6: 60 | H6: N | I6: Indique el segundo apellido del beneficiario del pago. Si no tiene segundo apellido o es una persona jurídica, deje este espacio en blanco | K6: E0143 | L6: apl2 | N6: Segundo apellido del informado | O6: 5 | R6: =Campos_x_Formato[[#This Row],[Columna1]]=Campos_x_Formato[[#This Row],[Lista]] -> TRUE
A7: 1001 | B7: 35 | C7: Prevalidador_Tributario_Informantes.xlsm | D7: 29 | E7: Primer nombre del informado | F7: A | G7: 60 | H7: N | I7: Indique el primer nombre del beneficiario del pago. Si es una persona jurídica, deje este espacio en blanco. | K7: E0141(31) | L7: nom1 | N7: Primer nombre del informado | O7: 6 | R7: =Campos_x_Formato[[#This Row],[Columna1]]=Campos_x_Formato[[#This Row],[Lista]] -> TRUE
A8: 1001 | B8: 35 | C8: Prevalidador_Tributario_Informantes.xlsm | D8: 30 | E8: Otros nombres del informado | F8: A | G8: 60 | H8: N | I8: Indique el segundo nombre u otros nombres del beneficiario del pago. Si no tiene más nombres o es una persona jurídica, deje este espacio en blanco. | K8: E0143 | L8: nom2 | N8: Otros nombres del informado | O8: 7 | R8: =Campos_x_Formato[[#This Row],[Columna1]]=Campos_x_Formato[[#This Row],[Lista]] -> TRUE
A9: 1001 | B9: 80 | C9: Prevalidador_Tributario_Informantes.xlsm | D9: 31 | E9: Razón social informado | F9: A | G9: 450 | H9: N | I9: Indique la razón social del beneficiario del pago. Si es una persona natural, deje la casilla en blanco. Utilice "Cuantías menores" cuando el Nit sea 222222222 y la razón social o nombre que corresponda para Nits 444444001 en adelante. | K9: E0142(27|29) | L9: raz | N9: Razón social informado | O9: 8 | R9: =Campos_x_Formato[[#This Row],[Columna1]]=Campos_x_Formato[[#This Row],[Lista]] -> TRUE
A10: 1001 | B10: 70 | C10: Prevalidador_Tributario_Informantes.xlsm | D10: 32 | E10: Dirección | F10: A | G10: 200 | H10: N | I10: Relacione la dirección del beneficiario del pago o abono en cuenta informado. Cuando se refiera a cuantías menores indique la dirección del informante. Cuando se refiera a personas o entidades del exterior la dirección, no se diligencia. | K10: E0074(8) | L10: dir | N10: Dirección | O10: 9 | R10: =Campos_x_Formato[[#This Row],[Columna1]]=Campos_x_Formato[[#This Row],[Lista]] -> TRUE
A11: 1001 | B11: 15 | C11: Prevalidador_Tributario_Informantes.xlsm | D11: 33 | E11: Código dpto | F11: N | G11: 2 | H11: N | I11: Seleccione el departamento al cual pertenece la dirección informada, conforme con los códigos indicados en las tablas del Dane, se deben incluir los ceros a la izquierda. Para personas o entidades del exterior este campo no se diligencia. | K11: E0075 | L11: dpto | N11: Código dpto | O11: 10 | P11: Departamentos_@pais@ | Q11: Departamentos_@pais@ | R11: =Campos_x_Formato[[#This Row],[Columna1]]=Campos_x_Formato[[#This Row],[Lista]] -> TRUE
A12: 1001 | B12: 15 | C12: Prevalidador_Tributario_Informantes.xlsm | D12: 34 | E12: Código mcp | F12: N | G12: 3 | H12: N | I12: Seleccione el municipio correspondiente a la dirección informada, conforme con los códigos indicados por el Dane, se deben incluir los ceros a la izquierda. Para personas o entidades del exterior este campo no se diligencia. | K12: E0076 | L12: mun | N12: Código mcp | O12: 11 | P12: Municipios_@dpto@ | Q12: Municipios_@dpto@ | R12: =Campos_x_Formato[[#This Row],[Columna1]]=Campos_x_Formato[[#This Row],[Lista]] -> TRUE
A13: 1001 | B13: 15 | C13: Prevalidador_Tributario_Informantes.xlsm | D13: 35 | E13: País de Residencia o domicilio | F13: N | G13: 4 | H13: S | I13: Seleccione el código del país al cual pertenece el informado. | K13: E0087 | L13: pais | N13: País de Residencia o domicilio | O13: 12 | P13: Paises | Q13: Paises | R13: =Campos_x_Formato[[#This Row],[Columna1]]=Campos_x_Formato[[#This Row],[Lista]] -> TRUE
A14: 1001 | B14: 25 | C14: Prevalidador_Tributario_Informantes.xlsm | D14: 36 | E14: Pago o abono en cuenta deducible | F14: N | G14: 18 | H14: S | I14: Digite los pagos o abonos en cuenta (causación) que constituyan costo o deducción o den derecho a impuesto descontable por beneficiario correspondiente al año gravable informado. | K14: E0130(37|38|39|40|41|42|43) | L14: pago | N14: Pago o abono en cuenta deducible | O14: 13 | R14: =Campos_x_Formato[[#This Row],[Columna1]]=Campos_x_Formato[[#This Row],[Lista]] -> TRUE
A15: 1001 | B15: 25 | C15: Prevalidador_Tributario_Informantes.xlsm | D15: 37 | E15: Pago o abono en cuenta NO deducible | F15: N | G15: 18 | H15: S | I15: Informe el Valor de los Pagos o Abonos en cuenta (causación) NO solicitados Fiscalmente como costo o Deducción | K15: E0118 | L15: pnded | N15: Pago o abono en cuenta NO deducible | O15: 14 | R15: =Campos_x_Formato[[#This Row],[Columna1]]=Campos_x_Formato[[#This Row],[Lista]] -> TRUE
A16: 1001 | B16: 25 | C16: Prevalidador_Tributario_Informantes.xlsm | D16: 38 | E16: IVA mayor valor del costo o gasto, deducible | F16: N | G16: 18 | H16: S | I16: Informe el valor del IVA que llevo como Mayor Valor del Costo y solicitado como Deducible. | K16: E0118 | L16: ided | N16: IVA mayor valor del costo o gasto, deducible | O16: 15 | R16: =Campos_x_Formato[[#This Row],[Columna1]]=Campos_x_Formato[[#This Row],[Lista]] -> TRUE
A17: 1001 | B17: 25 | C17: Prevalidador_Tributario_Informantes.xlsm | D17: 39 | E17: IVA mayor valor del costo o gasto no deducible | F17: N | G17: 18 | H17: S | I17: Informe el valor del IVA que llevo como mayor valor del costo y NO solicitado como Deducible | K17: E0118 | L17: inded | N17: IVA mayor valor del costo o gasto no deducible | O17: 16 | R17: =Campos_x_Formato[[#This Row],[Columna1]]=Campos_x_Formato[[#This Row],[Lista]] -> TRUE
A18: 1001 | B18: 25 | C18: Prevalidador_Tributario_Informantes.xlsm | D18: 40 | E18: Retención en la fuente practicada Renta | F18: N | G18: 18 | H18: S | I18: Informe el valor de la Retencion en la Fuente Practicada a Titulo de Renta. | K18: E0118 | L18: retp | N18: Retención en la fuente practicada Renta | O18: 17 | R18: =Campos_x_Formato[[#This Row],[Columna1]]=Campos_x_Formato[[#This Row],[Lista]] -> TRUE
A19: 1001 | B19: 25 | C19: Prevalidador_Tributario_Informantes.xlsm | D19: 41 | E19: Retención en la fuente asumida Renta | F19: N | G19: 18 | H19: S | I19: Informe el valor de la Retencion en la Fuente Asumida a Titulo de Renta. | K19: E0118 | L19: reta | N19: Retención en la fuente asumida Renta | O19: 18 | R19: =Campos_x_Formato[[#This Row],[Columna1]]=Campos_x_Formato[[#This Row],[Lista]] -> TRUE
A20: 1001 | B20: 25 | C20: Prevalidador_Tributario_Informantes.xlsm | D20: 42 | E20: Retención en la fuente practicada IVA a responsables del IVA | F20: N | G20: 18 | H20: S | I20: Informe el valor de la Retención en la fuente practicada IVA a responsables del IVA. | K20: E0118 | L20: comun | N20: Retención en la fuente practicada IVA a responsables del IVA | O20: 19 | R20: =Campos_x_Formato[[#This Row],[Columna1]]=Campos_x_Formato[[#This Row],[Lista]] -> TRUE
A21: 1001 | B21: 25 | C21: Prevalidador_Tributario_Informantes.xlsm | D21: 43 | E21: Retención en la fuente practicada IVA a no residentes o no domiciliados | F21: N | G21: 18 | H21: S | I21: Informe el valor de la Retención en la fuente practicada IVA a no residentes o no domiciliados. | K21: E0118 | L21: ndom | N21: Retención en la fuente practicada IVA a no residentes o no domiciliados | O21: 20 | R21: =Campos_x_Formato[[#This Row],[Columna1]]=Campos_x_Formato[[#This Row],[Lista]] -> TRUE
A22: 1003 | B22: 25 | C22: Prevalidador_Tributario_Informantes.xlsm | D22: *24 | E22: Concepto | F22: N | G22: 4 | H22: S | I22: Seleccione el concepto por el cual le efectuaron la retención en la fuente a informar. | L22: cpt | N22: Concepto | O22: 21 | P22: DConcepto5 | Q22: DConcepto5 | R22: =Campos_x_Formato[[#This Row],[Columna1]]=Campos_x_Formato[[#This Row],[Lista]] -> TRUE
A23: 1003 | B23: 25 | C23: Prevalidador_Tributario_Informantes.xlsm | D23: *25 | E23: Tipo de documento | F23: N | G23: 2 | H23: S | I23: Seleccione el tipo de documento de identificación que posee la persona o entidad que le realizó la retención en la fuente. | L23: tdoc | N23: Tipo de documento | O23: 22 | P23: DTiposDoctoBB | Q23: DTiposDoctoBB | R23: =Campos_x_Formato[[#This Row],[Columna1]]=Campos_x_Formato[[#This Row],[Lista]] -> TRUE
A24: 1003 | B24: 25 | C24: Prevalidador_Tributario_Informantes.xlsm | D24: *26 | E24: Número identificación del informado | F24: A | G24: 20 | H24: S | I24: Indique el número de identificación del informado. Si el tipo de documento seleccionado es pasaporte (41) o Documento extranjero (42) podrá incluir datos alfanuméricos. | K24: E0050 | L24: nid | N24: Número identificación del informado | O24: 23 | R24: =Campos_x_Formato[[#This Row],[Columna1]]=Campos_x_Formato[[#This Row],[Lista]] -> TRUE
A25: 1003 | B25: 6 | C25: Prevalidador_Tributario_Informantes.xlsm | D25: 27 | E25: DV | F25: N | G25: 1 | H25: N | I25: Si el número de identificación informado es un NIT, relacione el dígito de verificación respectivo. | K25: E0012 | L25: dv | N25: DV | O25: 24 | R25: =Campos_x_Formato[[#This Row],[Columna1]]=Campos_x_Formato[[#This Row],[Lista]] -> TRUE
A26: 1003 | B26: 35 | C26: Prevalidador_Tributario_Informantes.xlsm | D26: 28 | E26: Primer apellido del informado | F26: A | G26: 60 | H26: N | I26: Indique el primer apellido de la persona que le practicó la retención en la fuente. Si es una persona jurídica, deje este espacio en blanco. | K26: E0003 | L26: apl1 | N26: Primer apellido del informado | O26: 25 | R26: =Campos_x_Formato[[#This Row],[Columna1]]=Campos_x_Formato[[#This Row],[Lista]] -> TRUE
A27: 1003 | B27: 35 | C27: Prevalidador_Tributario_Informantes.xlsm | D27: 29 | E27: Segundo apellido del informado | F27: A | G27: 60 | H27: N | I27: Indique el segundo apellido de la persona que le practicó la retención en la fuente. Si no tiene segundo apellido o es una persona jurídica, deje este espacio en blanco. | K27: E0054 | L27: apl2 | N27: Segundo apellido del informado | O27: 26 | R27: =Campos_x_Formato[[#This Row],[Columna1]]=Campos_x_Formato[[#This Row],[Lista]] -> TRUE
A28: 1003 | B28: 35 | C28: Prevalidador_Tributario_Informantes.xlsm | D28: 30 | E28: Primer nombre del informado | F28: A | G28: 60 | H28: N | I28: Indique el primer nombre de la persona que le practicó la retención en la fuente. Si es una persona jurídica, deje este espacio en blanco. | K28: E0003 | L28: nom1 | N28: Primer nombre del informado | O28: 27 | R28: =Campos_x_Formato[[#This Row],[Columna1]]=Campos_x_Formato[[#This Row],[Lista]] -> TRUE
A29: 1003 | B29: 35 | C29: Prevalidador_Tributario_Informantes.xlsm | D29: 31 | E29: Otros nombres del informado | F29: A | G29: 60 | H29: N | I29: Indique el segundo nombre u otros nombres de la persona que le practicó la retención en la fuente. Si no tiene más nombres o es una persona jurídica, deje este espacio en blanco. | K29: E0054 | L29: nom2 | N29: Otros nombres del informado | O29: 28 | R29: =Campos_x_Formato[[#This Row],[Columna1]]=Campos_x_Formato[[#This Row],[Lista]] -> TRUE
A30: 1003 | B30: 132 | C30: Prevalidador_Tributario_Informantes.xlsm | D30: 32 | E30: Razón social informado | F30: A | G30: 450 | H30: N | I30: Informe la razón social de la entidad que le practicó la retención en la fuente. Si el retenedor es una persona natural, deje esta casilla en blanco. | K30: E0004 | L30: raz | N30: Razón social informado | O30: 29 | R30: =Campos_x_Formato[[#This Row],[Columna1]]=Campos_x_Formato[[#This Row],[Lista]] -> TRUE
A31: 1003 | B31: 70 | C31: Prevalidador_Tributario_Informantes.xlsm | D31: 33 | E31: Dirección | F31: A | G31: 200 | H31: S | I31: Ingrese la dirección | K31: E0100 | L31: dir | N31: Dirección | O31: 30 | R31: =Campos_x_Formato[[#This Row],[Columna1]]=Campos_x_Formato[[#This Row],[Lista]] -> TRUE
A32: 1003 | B32: 25 | C32: Prevalidador_Tributario_Informantes.xlsm | D32: 34 | E32: Código del Departamento | F32: N | G32: 2 | H32: S | I32: Seleccione el Código del Departamento. | L32: dpto | N32: Código del Departamento | O32: 31 | P32: Departamentos_169 | Q32: Departamentos_169 | R32: =Campos_x_Formato[[#This Row],[Columna1]]=Campos_x_Formato[[#This Row],[Lista]] -> TRUE
A33: 1003 | B33: 25 | C33: Prevalidador_Tributario_Informantes.xlsm | D33: 35 | E33: Código del Municipio | F33: N | G33: 3 | H33: S | I33: Seleccione el municipio luego de haber indicado el Departamento. | L33: mcpo | N33: Código del Municipio | O33: 32 | P33: Municipios_@dpto@ | Q33: Municipios_@dpto@ | R33: =Campos_x_Formato[[#This Row],[Columna1]]=Campos_x_Formato[[#This Row],[Lista]] -> TRUE
A34: 1003 | B34: 25 | C34: Prevalidador_Tributario_Informantes.xlsm | D34: 36 | E34: Valor acumulado del pago o abono sujeto a Retención en la fuente | F34: N | G34: 20 | H34: S | I34: Relacione el valor acumulado del pago o abono en cuenta, de las transacciones sobre las cuales le practicó retención el informado durante el año gravable informado. | K34: E0066 | L34: valor | N34: Valor acumulado del pago o abono sujeto a Retención en la fuente | O34: 33 | R34: =Campos_x_Formato[[#This Row],[Columna1]]=Campos_x_Formato[[#This Row],[Lista]] -> TRUE
A35: 1003 | B35: 25 | C35: Prevalidador_Tributario_Informantes.xlsm | D35: 37 | E35: Retención que le practicaron | F35: N | G35: 20 | H35: S | I35: Relacione el valor total de la retención en la fuente que le practicó el informado durante el año gravable informado. | K35: E0027 | L35: ret | N35: Retención que le practicaron | O35: 34 | R35: =Campos_x_Formato[[#This Row],[Columna1]]=Campos_x_Formato[[#This Row],[Lista]] -> TRUE
A36: 1004 | B36: 25 | C36: Prevalidador_Tributario_Informantes.xlsm | D36: *24 | E36: Concepto | F36: N | G36: 4 | H36: S | I36: Seleccione el codigo concepto al cual pertecene el descuento tributario | L36: cpt | N36: Concepto | O36: 35 | P36: DConcepto9 | Q36: DConcepto9 | R36: =Campos_x_Formato[[#This Row],[Columna1]]=Campos_x_Formato[[#This Row],[Lista]] -> TRUE
A37: 1004 | B37: 25 | C37: Prevalidador_Tributario_Informantes.xlsm | D37: *25 | E37: Tipo de documento del Tercero | F37: N | G37: 2 | H37: S | I37: Selección el Tipo de Documento del tercero | L37: tdoc | N37: Tipo de documento del Tercero | O37: 36 | P37: DTiposDocto | Q37: DTiposDocto | R37: =Campos_x_Formato[[#This Row],[Columna1]]=Campos_x_Formato[[#This Row],[Lista]] -> TRUE
A38: 1004 | B38: 25 | C38: Prevalidador_Tributario_Informantes.xlsm | D38: *26 | E38: Número de Identificación del Tercero | F38: A | G38: 20 | H38: S | I38: Indique el numero de Identificacion del tercero | K38: E0149 | L38: nit | N38: Número de Identificación del Tercero | O38: 37 | R38: =Campos_x_Formato[[#This Row],[Columna1]]=Campos_x_Formato[[#This Row],[Lista]] -> TRUE
A39: 1004 | B39: 35 | C39: Prevalidador_Tributario_Informantes.xlsm | D39: 27 | E39: Primer apellido | F39: A | G39: 60 | H39: N | I39: Indique el Primer Apellido del tercero . Si es una persona jurídica, deje este espacio en blanco | K39: E0072(31) | L39: pap | N39: Primer apellido | O39: 38 | R39: =Campos_x_Formato[[#This Row],[Columna1]]=Campos_x_Formato[[#This Row],[Lista]] -> TRUE
A40: 1004 | B40: 35 | C40: Prevalidador_Tributario_Informantes.xlsm | D40: 28 | E40: Segundo apellido | F40: A | G40: 60 | H40: N | I40: Indique el Primer Apellido del tercero. Si no tiene segundo apellido o si es una persona jurídica, deje este espacio en blanco | K40: E0054 | L40: sap | N40: Segundo apellido | O40: 39 | R40: =Campos_x_Formato[[#This Row],[Columna1]]=Campos_x_Formato[[#This Row],[Lista]] -> TRUE
A41: 1004 | B41: 35 | C41: Prevalidador_Tributario_Informantes.xlsm | D41: 29 | E41: Primer nombre | F41: A | G41: 60 | H41: N | I41: Indique el Primer Nombre del tercero . Si es una persona jurídica, deje este espacio en blanco | K41: E0072(31) | L41: pno | N41: Primer nombre | O41: 40 | R41: =Campos_x_Formato[[#This Row],[Columna1]]=Campos_x_Formato[[#This Row],[Lista]] -> TRUE
A42: 1004 | B42: 35 | C42: Prevalidador_Tributario_Informantes.xlsm | D42: 30 | E42: Otros nombres | F42: A | G42: 60 | H42: N | I42: Indique el Otro Nombre del tercero. Si no tiene otro nombre o si es una persona jurídica, deje este espacio en blanco | K42: E0054 | L42: ono | N42: Otros nombres | O42: 41 | R42: =Campos_x_Formato[[#This Row],[Columna1]]=Campos_x_Formato[[#This Row],[Lista]] -> TRUE
A43: 1004 | B43: 132 | C43: Prevalidador_Tributario_Informantes.xlsm | D43: 31 | E43: Razón Social | F43: A | G43: 450 | H43: N | I43: Indique la razón social del Tercero. Si es una persona natural, deje la casilla en blanco. | K43: E0073(27|29) | L43: raz | N43: Razón Social | O43: 42 | R43: =Campos_x_Formato[[#This Row],[Columna1]]=Campos_x_Formato[[#This Row],[Lista]] -> TRUE
A44: 1004 | B44: 82 | C44: Prevalidador_Tributario_Informantes.xlsm | D44: 32 | E44: Dirección | F44: A | G44: 250 | H44: N | I44: Indique la dirreccion del tercero que esta informando | K44: E0131(35|169|8) | L44: dir | N44: Dirección | O44: 43 | R44: =Campos_x_Formato[[#This Row],[Columna1]]=Campos_x_Formato[[#This Row],[Lista]] -> TRUE
A45: 1004 | B45: 25 | C45: Prevalidador_Tributario_Informantes.xlsm | D45: 33 | E45: Código dpto | F45: A | G45: 2 | H45: N | I45: Seleccione el codigo departamento de la direccion informada | K45: E0075 | L45: dpto | N45: Código dpto | O45: 44 | P45: Departamentos_@pais@ | Q45: Departamentos_@pais@ | R45: =Campos_x_Formato[[#This Row],[Columna1]]=Campos_x_Formato[[#This Row],[Lista]] -> TRUE
A46: 1004 | B46: 25 | C46: Prevalidador_Tributario_Informantes.xlsm | D46: 34 | E46: Código mcp | F46: A | G46: 3 | H46: N | I46: Seleccione el codigo municipio de la direccion informada | K46: E0076 | L46: mun | N46: Código mcp | O46: 45 | P46: Municipios_@dpto@ | Q46: Municipios_@dpto@ | R46: =Campos_x_Formato[[#This Row],[Columna1]]=Campos_x_Formato[[#This Row],[Lista]] -> TRUE
A47: 1004 | B47: 25 | C47: Prevalidador_Tributario_Informantes.xlsm | D47: 35 | E47: Código País | F47: A | G47: 4 | H47: S | I47: Seleccióne el codgo del pais del tercero informado | K47: E0087 | L47: pais | N47: Código País | O47: 46 | P47: Paises | Q47: Paises | R47: =Campos_x_Formato[[#This Row],[Columna1]]=Campos_x_Formato[[#This Row],[Lista]] -> TRUE
A48: 1004 | B48: 32 | C48: Prevalidador_Tributario_Informantes.xlsm | D48: 36 | E48: Buzón, correo o dirección electrónicos | F48: A | G48: 50 | H48: N | I48: Indique el correo electronico | K48: E0147 | L48: email | N48: Buzón, correo o dirección electrónicos | O48: 47 | R48: =Campos_x_Formato[[#This Row],[Columna1]]=Campos_x_Formato[[#This Row],[Lista]] -> TRUE
A49: 1004 | B49: 25 | C49: Prevalidador_Tributario_Informantes.xlsm | D49: 37 | E49: Valor del descuento tributario total del año | F49: N | G49: 18 | H49: S | I49: Informe el valor del Pago o abono en CTA | K49: E0120 | L49: vdesc | N49: Valor del descuento tributario total del año | O49: 48 | R49: =Campos_x_Formato[[#This Row],[Columna1]]=Campos_x_Formato[[#This Row],[Lista]] -> TRUE
A50: 1004 | B50: 25 | C50: Prevalidador_Tributario_Informantes.xlsm | D50: 38 | E50: Valor del descuento tributario efectivamente solicitado en el año gravable | F50: N | G50: 18 | H50: S | I50: Informe el valor del descuento tributario | K50: E0146 | L50: vdescsol | N50: Valor del descuento tributario efectivamente solicitado en el año gravable | O50: 49 | R50: =Campos_x_Formato[[#This Row],[Columna1]]=Campos_x_Formato[[#This Row],[Lista]] -> TRUE
A51: 1005 | B51: 25 | C51: Prevalidador_Tributario_Informantes.xlsm | D51: *24 | E51: Tipo de documento | F51: N | G51: 2 | H51: S | I51: Seleccione el tipo de documento de identificación del tercero y/o proveedor que le facturó el correspondiente impuesto a las ventas. Cuando vaya a informar a personas o entidades del exterior que posean Número, Código o Clave Fiscal, Utilice 42, de lo contrario utilice el tipo de documento 43. | L51: tdoc | N51: Tipo de documento | O51: 50 | P51: DTiposDocto | Q51: DTiposDocto | R51: =Campos_x_Formato[[#This Row],[Columna1]]=Campos_x_Formato[[#This Row],[Lista]] -> TRUE
A52: 1005 | B52: 25 | C52: Prevalidador_Tributario_Informantes.xlsm | D52: *25 | E52: Número identificación | F52: A | G52: 20 | H52: S | I52: Indique el número de identificación que corresponda al beneficiario del pago informado. Si es por cuantías menores indique el Nit 222222222. Cuando sean transacciones con personas o entidades del exterior que no posea Número, Código o Clave Fiscal deberá informarse con Nit 444444001 aumentando en una unidad cada relacionado hasta el 444449999. | K52: E0151 | L52: nid | N52: Número identificación | O52: 51 | R52: =Campos_x_Formato[[#This Row],[Columna1]]=Campos_x_Formato[[#This Row],[Lista]] -> TRUE
A53: 1005 | B53: 6 | C53: Prevalidador_Tributario_Informantes.xlsm | D53: 26 | E53: DV | F53: N | G53: 1 | H53: N | I53: Si el número de identificación informado es un NIT, relacione el dígito de verificación respectivo. | K53: E0012 | L53: dv | N53: DV | O53: 52 | R53: =Campos_x_Formato[[#This Row],[Columna1]]=Campos_x_Formato[[#This Row],[Lista]] -> TRUE
A54: 1005 | B54: 35 | C54: Prevalidador_Tributario_Informantes.xlsm | D54: 27 | E54: Primer apellido del informado | F54: A | G54: 60 | H54: N | I54: Indique el primer apellido del proveedor y/o tercero informado. Si es una persona jurídica, deje este espacio en blanco. | K54: E0141(31) | L54: apl1 | N54: Primer apellido del informado | O54: 53 | R54: =Campos_x_Formato[[#This Row],[Columna1]]=Campos_x_Formato[[#This Row],[Lista]] -> TRUE
A55: 1005 | B55: 35 | C55: Prevalidador_Tributario_Informantes.xlsm | D55: 28 | E55: Segundo apellido del informado | F55: A | G55: 60 | H55: N | I55: Indique el segundo apellido del proveedor y/o tercero informado. Si no tiene segundo apellido o es una persona jurídica, deje este espacio en blanco. | K55: E0143 | L55: apl2 | N55: Segundo apellido del informado | O55: 54 | R55: =Campos_x_Formato[[#This Row],[Columna1]]=Campos_x_Formato[[#This Row],[Lista]] -> TRUE
A56: 1005 | B56: 35 | C56: Prevalidador_Tributario_Informantes.xlsm | D56: 29 | E56: Primer nombre del informado | F56: A | G56: 60 | H56: N | I56: Indique el primer nombre del proveedor y/o tercero informado. Si es una persona jurídica, deje este espacio en blanco. | K56: E0141(31) | L56: nom1 | N56: Primer nombre del informado | O56: 55 | R56: =Campos_x_Formato[[#This Row],[Columna1]]=Campos_x_Formato[[#This Row],[Lista]] -> TRUE
A57: 1005 | B57: 35 | C57: Prevalidador_Tributario_Informantes.xlsm | D57: 30 | E57: Otros nombres del informado | F57: A | G57: 60 | H57: N | I57: Indique el segundo nombre u otros nombres del proveedor y/o tercero informado. Si no tiene más nombres o es una persona jurídica, deje este espacio en blanco. | K57: E0143 | L57: nom2 | N57: Otros nombres del informado | O57: 56 | R57: =Campos_x_Formato[[#This Row],[Columna1]]=Campos_x_Formato[[#This Row],[Lista]] -> TRUE
A58: 1005 | B58: 132 | C58: Prevalidador_Tributario_Informantes.xlsm | D58: 31 | E58: Razón social informado | F58: A | G58: 450 | H58: N | I58: Indique la razón social del tercero y/o proveedor informado. Si es una persona natural, deje la casilla en blanco. Utilice la razón social o nombre que corresponda para Nits 444444001 en adelante. | K58: E0142(27|29) | L58: raz | N58: Razón social informado | O58: 57 | R58: =Campos_x_Formato[[#This Row],[Columna1]]=Campos_x_Formato[[#This Row],[Lista]] -> TRUE
A59: 1005 | B59: 25 | C59: Prevalidador_Tributario_Informantes.xlsm | D59: 32 | E59: Impuesto Descontable | F59: N | G59: 18 | H59: S | I59: Informe el valor del Impuesto a las ventas por pagar Descontable. | K59: E0118 | L59: vimp | N59: Impuesto Descontable | O59: 58 | R59: =Campos_x_Formato[[#This Row],[Columna1]]=Campos_x_Formato[[#This Row],[Lista]] -> TRUE
A60: 1005 | B60: 25 | C60: Prevalidador_Tributario_Informantes.xlsm | D60: 33 | E60: IVA resultante por devoluciones en ventas anuladas, rescindidas o resueltas | F60: N | G60: 18 | H60: S | I60: Informe el valor del IVA Resultante por Devoluciones en Ventas Anuladas, Rescindidas o Resultas. | K60: E0122(Impuesto Descontable) | L60: ivade | N60: IVA resultante por devoluciones en ventas anuladas, rescindidas o resueltas | O60: 59 | R60: =Campos_x_Formato[[#This Row],[Columna1]]=Campos_x_Formato[[#This Row],[Lista]] -> TRUE
A61: 1005 | B61: 25 | C61: Prevalidador_Tributario_Informantes.xlsm | D61: 34 | E61: IVA tratado como mayor valor del costo o gasto (Art.490 E.T) | F61: N | G61: 18 | H61: N | I61: Informe el valor del IVA tratado como mayor valor del costo o gasto (Art.490 E.T). | K61: E0103 | L61: ivavcg | N61: IVA tratado como mayor valor del costo o gasto (Art.490 E.T) | O61: 59 | R61: =Campos_x_Formato[[#This Row],[Columna1]]=Campos_x_Formato[[#This Row],[Lista]] -> TRUE
A62: 1006 | B62: 25 | C62: Prevalidador_Tributario_Informantes.xlsm | D62: *24 | E62: Tipo de Documento | F62: N | G62: 2 | H62: S | I62: Seleccione el tipo de documento de identificación del cliente y/o tercero a quien le facturó el correspondiente impuesto a las ventas. Cuando vaya a informar cuantías menores ó transacciones con personas o entidades del exterior que no posea número. Código o clave fiscal. Utilice el tipo de documento 43 | L62: tdoc | N62: Tipo de Documento | O62: 60 | P62: DTIPOSDOCTO | Q62: DTiposDocto | R62: =Campos_x_Formato[[#This Row],[Columna1]]=Campos_x_Formato[[#This Row],[Lista]] -> TRUE
A63: 1006 | B63: 25 | C63: Prevalidador_Tributario_Informantes.xlsm | D63: *25 | E63: Número identificación | F63: A | G63: 20 | H63: S | I63: Indique el número de identificación que corresponda al beneficiario del pago informado. Si es por cuantías menores indique el Nit 222222222. Cuando sean transacciones con personas o entidades del exterior que no posea Número, Código o Clave Fiscal deberá informarse con Nit 444444001 aumentando en una unidad cada relacionado hasta el 444449999. | K63: E0064 | L63: nid | N63: Número identificación | O63: 61 | R63: =Campos_x_Formato[[#This Row],[Columna1]]=Campos_x_Formato[[#This Row],[Lista]] -> TRUE
A64: 1006 | B64: 6 | C64: Prevalidador_Tributario_Informantes.xlsm | D64: 26 | E64: DV | F64: N | G64: 1 | H64: N | I64: Si el número de identificación informado es un NIT. relacione el dígito de verificación respectivo. | K64: E0012 | L64: dv | N64: DV | O64: 62 | R64: =Campos_x_Formato[[#This Row],[Columna1]]=Campos_x_Formato[[#This Row],[Lista]] -> TRUE
A65: 1006 | B65: 35 | C65: Prevalidador_Tributario_Informantes.xlsm | D65: 27 | E65: Primer apellido del informado | F65: A | G65: 60 | H65: N | I65: Indique el primer apellido del cliente y/o tercero informado. Si es una persona jurídica, deje este espacio en blanco. | K65: E0141(31) | L65: apl1 | N65: Primer apellido del informado | O65: 63 | R65: =Campos_x_Formato[[#This Row],[Columna1]]=Campos_x_Formato[[#This Row],[Lista]] -> TRUE
A66: 1006 | B66: 35 | C66: Prevalidador_Tributario_Informantes.xlsm | D66: 28 | E66: Segundo apellido del informado | F66: A | G66: 60 | H66: N | I66: Indique el segundo apellido del cliente y/o tercero informado. Si no tiene segundo apellido o es una persona jurídica, deje este espacio en blanco. | K66: E0143 | L66: apl2 | N66: Segundo apellido del informado | O66: 64 | R66: =Campos_x_Formato[[#This Row],[Columna1]]=Campos_x_Formato[[#This Row],[Lista]] -> TRUE
A67: 1006 | B67: 35 | C67: Prevalidador_Tributario_Informantes.xlsm | D67: 29 | E67: Primer nombre del informado | F67: A | G67: 60 | H67: N | I67: Indique el primer nombre del cliente y/o tercero informado. Si es una persona jurídica, deje este espacio en blanco. | K67: E0141(31) | L67: nom1 | N67: Primer nombre del informado | O67: 65 | R67: =Campos_x_Formato[[#This Row],[Columna1]]=Campos_x_Formato[[#This Row],[Lista]] -> TRUE
A68: 1006 | B68: 35 | C68: Prevalidador_Tributario_Informantes.xlsm | D68: 30 | E68: Otros nombres del informado | F68: A | G68: 60 | H68: N | I68: Indique el segundo nombre u otros nombres del cliente y/o tercero informado. Si no tiene más nombres o es una persona jurídica, deje este espacio en blanco. | K68: E0143 | L68: nom2 | N68: Otros nombres del informado | O68: 66 | R68: =Campos_x_Formato[[#This Row],[Columna1]]=Campos_x_Formato[[#This Row],[Lista]] -> TRUE
A69: 1006 | B69: 132 | C69: Prevalidador_Tributario_Informantes.xlsm | D69: 31 | E69: Razón social informado | F69: A | G69: 450 | H69: N | I69: Informe la razón social del cliente y/o tercero informado. Si es una persona natural, deje la casilla en blanco. Utilice "Cuantías menores" para el Nit 222222222. | K69: E0142(27|29) | L69: raz | N69: Razón social informado | O69: 67 | R69: =Campos_x_Formato[[#This Row],[Columna1]]=Campos_x_Formato[[#This Row],[Lista]] -> TRUE
A70: 1006 | B70: 25 | C70: Prevalidador_Tributario_Informantes.xlsm | D70: 32 | E70: Impuesto generado | F70: N | G70: 20 | H70: S | I70: Informe el Valor de Impuesto a las ventas por pagar Generado. | K70: E0118 | L70: imp | N70: Impuesto generado | O70: 68 | R70: =Campos_x_Formato[[#This Row],[Columna1]]=Campos_x_Formato[[#This Row],[Lista]] -> TRUE
A71: 1006 | B71: 25 | C71: Prevalidador_Tributario_Informantes.xlsm | D71: 33 | E71: IVA recuperado en devoluciones en compras anuladas. rescindidas o resueltas | F71: N | G71: 20 | H71: S | I71: Informe el valor del IVA Recuperado en Devoluciones en Compras Anuladas. Rescendidas o Resueltas. | K71: E0130(32|34) | L71: iva | N71: IVA recuperado en devoluciones en compras anuladas. rescindidas o resueltas | O71: 69 | R71: =Campos_x_Formato[[#This Row],[Columna1]]=Campos_x_Formato[[#This Row],[Lista]] -> TRUE
A72: 1006 | B72: 25 | C72: Prevalidador_Tributario_Informantes.xlsm | D72: 34 | E72: Impuesto nacional al consumo | F72: N | G72: 20 | H72: S | I72: Informe el Valor de Impuesto nacional al consumo | K72: E0118 | L72: icon | N72: Impuesto al consumo | O72: 70 | R72: =Campos_x_Formato[[#This Row],[Columna1]]=Campos_x_Formato[[#This Row],[Lista]] -> TRUE
A73: 1007 | B73: 25 | C73: Prevalidador_Tributario_Informantes.xlsm | D73: *24 | E73: Concepto | F73: N | G73: 4 | H73: S | I73: Seleccione el concepto a que correspondan los ingresos recibidos. | L73: cpt | N73: Concepto | O73: 71 | P73: DConcepto_F1007_V9 | Q73: DConcepto_F1007_V9 | R73: =Campos_x_Formato[[#This Row],[Columna1]]=Campos_x_Formato[[#This Row],[Lista]] -> TRUE
A74: 1007 | B74: 25 | C74: Prevalidador_Tributario_Informantes.xlsm | D74: *25 | E74: Tipo de documento | F74: N | G74: 2 | H74: S | I74: Seleccione el tipo de documento de identificación que posea la persona o entidad de quien se recibió el correspondiente ingreso. Cuando vaya a informar cuantías menores o personas o entidades del exterior, Utilice el tipo de Documento 43. Si la Persona o Entidad del exterior, tiene Número, Código o Clave Fiscal, Utilice 42. | L74: tdoc | N74: Tipo de documento | O74: 72 | P74: DTiposDocto | Q74: DTiposDocto | R74: =Campos_x_Formato[[#This Row],[Columna1]]=Campos_x_Formato[[#This Row],[Lista]] -> TRUE
A75: 1007 | B75: 25 | C75: Prevalidador_Tributario_Informantes.xlsm | D75: *26 | E75: Número identificación | F75: A | G75: 20 | H75: S | I75: Indique el número de identificación que corresponda al beneficiario del pago informado. Si es por cuantías menores indique el Nit 222222222. Cuando sean transacciones con personas o entidades del exterior que no posea Número, Código o Clave Fiscal deberá informarse con Nit 444444001 aumentando en una unidad cada relacionado hasta el 444449999. | K75: E0064 | L75: nid | N75: Número identificación | O75: 73 | R75: =Campos_x_Formato[[#This Row],[Columna1]]=Campos_x_Formato[[#This Row],[Lista]] -> TRUE
A76: 1007 | B76: 35 | C76: Prevalidador_Tributario_Informantes.xlsm | D76: 27 | E76: Primer apellido del informado | F76: A | G76: 60 | H76: N | I76: Indique el primer apellido del cliente y/o tercero de quien se obtuvo el ingreso. Si es una persona jurídica, deje este espacio en blanco. | K76: E0141(31) | L76: apl1 | N76: Primer apellido del informado | O76: 74 | R76: =Campos_x_Formato[[#This Row],[Columna1]]=Campos_x_Formato[[#This Row],[Lista]] -> TRUE
A77: 1007 | B77: 35 | C77: Prevalidador_Tributario_Informantes.xlsm | D77: 28 | E77: Segundo apellido del informado | F77: A | G77: 60 | H77: N | I77: Indique el segundo apellido del cliente y/o tercero de quien se obtuvo el ingreso. Si no tiene segundo apellido o es una persona jurídica, deje esta casilla en blanco. | K77: E0143 | L77: apl2 | N77: Segundo apellido del informado | O77: 75 | R77: =Campos_x_Formato[[#This Row],[Columna1]]=Campos_x_Formato[[#This Row],[Lista]] -> TRUE
A78: 1007 | B78: 35 | C78: Prevalidador_Tributario_Informantes.xlsm | D78: 29 | E78: Primer nombre del informado | F78: A | G78: 60 | H78: N | I78: Indique el primer nombre del cliente y/o tercero de quien se recibió el ingreso. Si es una persona jurídica, deje este espacio en blanco. | K78: E0141(31) | L78: nom1 | N78: Primer nombre del informado | O78: 76 | R78: =Campos_x_Formato[[#This Row],[Columna1]]=Campos_x_Formato[[#This Row],[Lista]] -> TRUE
A79: 1007 | B79: 35 | C79: Prevalidador_Tributario_Informantes.xlsm | D79: 30 | E79: Otros nombres del informado | F79: A | G79: 60 | H79: N | I79: Indique el segundo nombre u otros nombres del cliente y/o tercero de quien se recibió el ingreso. Si no tiene más nombres o es una persona jurídica, deje este espacio en blanco. | K79: E0143 | L79: nom2 | N79: Otros nombres del informado | O79: 77 | R79: =Campos_x_Formato[[#This Row],[Columna1]]=Campos_x_Formato[[#This Row],[Lista]] -> TRUE
A80: 1007 | B80: 132 | C80: Prevalidador_Tributario_Informantes.xlsm | D80: 31 | E80: Razón social informado | F80: A | G80: 450 | H80: N | I80: Relacione la razón social del cliente o tercero de quien generó el ingreso. Si es una persona natural, deje esta casilla en blanco. Utilice "Cuantías menores" cuando el Nit sea 222222222, y la razón social o nombre que corresponda para Nits 444444001 en adelante. | K80: E0142(27|29) | L80: raz | N80: Razón social informado | O80: 78 | R80: =Campos_x_Formato[[#This Row],[Columna1]]=Campos_x_Formato[[#This Row],[Lista]] -> TRUE
A81: 1007 | B81: 25 | C81: Prevalidador_Tributario_Informantes.xlsm | D81: 32 | E81: País de Residencia o domicilio | F81: N | G81: 4 | H81: S | I81: Seleccione el código del país al cual pertenece el informado. | K81: E0087 | L81: pais | N81: País de Residencia o domicilio | O81: 79 | P81: Paises | Q81: Paises | R81: =Campos_x_Formato[[#This Row],[Columna1]]=Campos_x_Formato[[#This Row],[Lista]] -> TRUE
A82: 1007 | B82: 25 | C82: Prevalidador_Tributario_Informantes.xlsm | D82: 33 | E82: Ingresos brutos recibidos | F82: N | G82: 18 | H82: S | I82: Informe el Valor de los Ingresos Brutos recibidos. | K82: E0130(34) | L82: ibru | N82: Ingresos brutos recibidos | O82: 80 | R82: =Campos_x_Formato[[#This Row],[Columna1]]=Campos_x_Formato[[#This Row],[Lista]] -> TRUE
A83: 1007 | B83: 25 | C83: Prevalidador_Tributario_Informantes.xlsm | D83: 34 | E83: Devoluciones, rebajas y descuentos | F83: N | G83: 18 | H83: S | I83: Informe el valor de las Devoluciones , Rebajas y Descuentos. | K83: E0118 | L83: dred | N83: Devoluciones, rebajas y descuentos | O83: 81 | R83: =Campos_x_Formato[[#This Row],[Columna1]]=Campos_x_Formato[[#This Row],[Lista]] -> TRUE
A84: 1008 | B84: 25 | C84: Prevalidador_Tributario_Informantes.xlsm | D84: *24 | E84: Concepto | F84: N | G84: 4 | H84: S | I84: Seleccione el concepto que corresponda con el origen del saldo a favor. | L84: cpt | N84: Concepto | O84: 82 | P84: DConcepto7_2 | Q84: DConcepto7_2 | R84: =Campos_x_Formato[[#This Row],[Columna1]]=Campos_x_Formato[[#This Row],[Lista]] -> TRUE
A85: 1008 | B85: 25 | C85: Prevalidador_Tributario_Informantes.xlsm | D85: *25 | E85: Tipo de documento | F85: N | G85: 2 | H85: S | I85: Seleccione el tipo de documento de identificación que posea el deudor. Cuando vaya a informar cuantías menores o personas o entidades del exterior, Utilice el tipo de Documento 43. Si la persona o entidad del exterior, tiene Número, Código o Clave Fiscal, Utilice 42. | L85: tdoc | N85: Tipo de documento | O85: 83 | P85: DTiposDocto | Q85: DTiposDocto | R85: =Campos_x_Formato[[#This Row],[Columna1]]=Campos_x_Formato[[#This Row],[Lista]] -> TRUE
A86: 1008 | B86: 25 | C86: Prevalidador_Tributario_Informantes.xlsm | D86: *26 | E86: Número identificación deudor | F86: A | G86: 20 | H86: S | I86: Indique el número de identificación que corresponda al beneficiario del pago informado. Cuando sean transacciones con personas o entidades del exterior que no posea Número, Código o Clave Fiscal deberá informarse con Nit 444444001 aumentando en una unidad cada relacionado hasta el 444449999 | K86: E0136 | L86: nid | N86: Número identificación deudor | O86: 84 | R86: =Campos_x_Formato[[#This Row],[Columna1]]=Campos_x_Formato[[#This Row],[Lista]] -> TRUE
A87: 1008 | B87: 6 | C87: Prevalidador_Tributario_Informantes.xlsm | D87: 27 | E87: DV | F87: N | G87: 1 | H87: N | I87: Si el número de identificación informado es un NIT, relacione el dígito de verificación respectivo. | K87: E0012 | L87: dv | N87: DV | O87: 85 | R87: =Campos_x_Formato[[#This Row],[Columna1]]=Campos_x_Formato[[#This Row],[Lista]] -> TRUE
A88: 1008 | B88: 35 | C88: Prevalidador_Tributario_Informantes.xlsm | D88: 28 | E88: Primer apellido deudor | F88: A | G88: 60 | H88: N | I88: Indique el primer apellido del deudor informado. Si es una persona jurídica, deje este espacio en blanco. | K88: E0141(32) | L88: apl1 | N88: Primer apellido deudor | O88: 86 | R88: =Campos_x_Formato[[#This Row],[Columna1]]=Campos_x_Formato[[#This Row],[Lista]] -> TRUE
A89: 1008 | B89: 35 | C89: Prevalidador_Tributario_Informantes.xlsm | D89: 29 | E89: Segundo apellido deudor | F89: A | G89: 60 | H89: N | I89: Indique el segundo apellido del deudor informado. Si no tiene segundo apellido o es una persona jurídica, deje esta casilla en blanco. | K89: E0143 | L89: apl2 | N89: Segundo apellido deudor | O89: 87 | R89: =Campos_x_Formato[[#This Row],[Columna1]]=Campos_x_Formato[[#This Row],[Lista]] -> TRUE
A90: 1008 | B90: 35 | C90: Prevalidador_Tributario_Informantes.xlsm | D90: 30 | E90: Primer nombre deudor | F90: A | G90: 60 | H90: N | I90: Indique el primer nombre del deudor informado. Si es una persona jurídica, deje este espacio en blanco. | K90: E0141(32) | L90: nom1 | N90: Primer nombre deudor | O90: 88 | R90: =Campos_x_Formato[[#This Row],[Columna1]]=Campos_x_Formato[[#This Row],[Lista]] -> TRUE
A91: 1008 | B91: 35 | C91: Prevalidador_Tributario_Informantes.xlsm | D91: 31 | E91: Otros nombres deudor | F91: A | G91: 60 | H91: N | I91: Indique el segundo nombre u otros nombres del deudor informado. Si no tiene más nombres o es una persona jurídica, deje este espacio en blanco. | K91: E0143 | L91: nom2 | N91: Otros nombres deudor | O91: 89 | R91: =Campos_x_Formato[[#This Row],[Columna1]]=Campos_x_Formato[[#This Row],[Lista]] -> TRUE
A92: 1008 | B92: 132 | C92: Prevalidador_Tributario_Informantes.xlsm | D92: 32 | E92: Razón social deudor | F92: A | G92: 450 | H92: N | I92: Indique la razón social del deudor relacionado. Si es una persona natural, deje la casilla en blanco y la razón social o nombre que corresponda para Nits 444444001 en adelante | K92: E0142(28|30) | L92: raz | N92: Razón social deudor | O92: 90 | R92: =Campos_x_Formato[[#This Row],[Columna1]]=Campos_x_Formato[[#This Row],[Lista]] -> TRUE
A93: 1008 | B93: 70 | C93: Prevalidador_Tributario_Informantes.xlsm | D93: 33 | E93: Dirección | F93: A | G93: 200 | H93: N | I93: Relacione la dirección del deudor reportado. Cuando se refiera a cuantías menores indique la dirección del informante. Cuando se refiera a personas o entidades del exterior la dirección, no se diligencia. | K93: E0074(8) | L93: dir | N93: Dirección | O93: 91 | R93: =Campos_x_Formato[[#This Row],[Columna1]]=Campos_x_Formato[[#This Row],[Lista]] -> TRUE
A94: 1008 | B94: 25 | C94: Prevalidador_Tributario_Informantes.xlsm | D94: 34 | E94: Código dpto | F94: N | G94: 2 | H94: N | I94: Seleccione el departamento al cual pertenece la dirección informada, conforme con los códigos indicados en las tablas del Dane, se deben incluir los ceros a la izquierda. Para personas o entidades del exterior este campo no se diligencia. | K94: E0075 | L94: dpto | N94: Código dpto | O94: 92 | P94: Departamentos_@pais@ | Q94: Departamentos_@pais@ | R94: =Campos_x_Formato[[#This Row],[Columna1]]=Campos_x_Formato[[#This Row],[Lista]] -> TRUE
A95: 1008 | B95: 25 | C95: Prevalidador_Tributario_Informantes.xlsm | D95: 35 | E95: Código mcp | F95: N | G95: 3 | H95: N | I95: Seleccione el municipio correspondiente a la dirección informada, conforme con los códigos indicados por el Dane, se deben incluir los ceros a la izquierda. Para personas o entidades del exterior este campo no se diligencia. | K95: E0076 | L95: mun | N95: Código mcp | O95: 93 | P95: Municipios_@dpto@ | Q95: Municipios_@dpto@ | R95: =Campos_x_Formato[[#This Row],[Columna1]]=Campos_x_Formato[[#This Row],[Lista]] -> TRUE
A96: 1008 | B96: 25 | C96: Prevalidador_Tributario_Informantes.xlsm | D96: 36 | E96: País de Residencia o domicilio | F96: N | G96: 3 | H96: S | I96: Seleccione el código del país al cual pertenece el informado. | K96: E0127 | L96: pais | N96: País de Residencia o domicilio | O96: 94 | P96: Paises | Q96: Paises | R96: =Campos_x_Formato[[#This Row],[Columna1]]=Campos_x_Formato[[#This Row],[Lista]] -> TRUE
A97: 1008 | B97: 25 | C97: Prevalidador_Tributario_Informantes.xlsm | D97: 37 | E97: Saldo cuentas por cobrar al 31-12 | F97: N | G97: 20 | H97: S | I97: Informe el saldo de la cuenta por cobrar a nombre del deudor relacionado al 31 de diciembre del año informado. | K97: E0027 | L97: sal | N97: Saldo cuentas por cobrar al 31-12 | O97: 95 | R97: =Campos_x_Formato[[#This Row],[Columna1]]=Campos_x_Formato[[#This Row],[Lista]] -> TRUE
A98: 1009 | B98: 25 | C98: Prevalidador_Tributario_Informantes.xlsm | D98: *24 | E98: Concepto | F98: N | G98: 4 | H98: S | I98: Seleccione el concepto que corresponda con el origen del saldo a cargo. | L98: cpt | N98: Concepto | O98: 96 | P98: DConcepto8 | Q98: DConcepto8 | R98: =Campos_x_Formato[[#This Row],[Columna1]]=Campos_x_Formato[[#This Row],[Lista]] -> TRUE
A99: 1009 | B99: 25 | C99: Prevalidador_Tributario_Informantes.xlsm | D99: *25 | E99: Tipo de documento | F99: N | G99: 2 | H99: S | I99: Seleccione el tipo de documento de identificación que posea el acreedor a reportar. Cuando vaya a informar cuantías menores o personas o entidades del exterior, Utilice el tipo de Documento 43. Si la Persona o Entidad del exterior, tiene Número, Código o Clave Fiscal, Utilice 42. | L99: tdoc | N99: Tipo de documento | O99: 97 | P99: DTiposDocto | Q99: DTiposDocto | R99: =Campos_x_Formato[[#This Row],[Columna1]]=Campos_x_Formato[[#This Row],[Lista]] -> TRUE
A100: 1009 | B100: 25 | C100: Prevalidador_Tributario_Informantes.xlsm | D100: *26 | E100: Número identificación acreedor | F100: A | G100: 20 | H100: S | I100: Indique el número de identificación que corresponda al beneficiario del pago informado. Cuando sean transacciones con personas o entidades del exterior que no posea Número, Código o Clave Fiscal deberá informarse con Nit 444444001 aumentando en una unidad cada relacionado hasta el 444449999. | K100: E0136 | L100: nid | N100: Número identificación acreedor | O100: 98 | R100: =Campos_x_Formato[[#This Row],[Columna1]]=Campos_x_Formato[[#This Row],[Lista]] -> TRUE
A101: 1009 | B101: 6 | C101: Prevalidador_Tributario_Informantes.xlsm | D101: 27 | E101: DV | F101: N | G101: 1 | H101: N | I101: Si el número de identificación informado es un NIT, relacione el dígito de verificación respectivo. | K101: E0012 | L101: dv | N101: DV | O101: 99 | R101: =Campos_x_Formato[[#This Row],[Columna1]]=Campos_x_Formato[[#This Row],[Lista]] -> TRUE
A102: 1009 | B102: 35 | C102: Prevalidador_Tributario_Informantes.xlsm | D102: 28 | E102: Primer apellido acreedor | F102: A | G102: 60 | H102: N | I102: Indique el primer apellido del acreedor informado. Si es una persona jurídica, deje este espacio en blanco. | K102: E0141(32) | L102: apl1 | N102: Primer apellido acreedor | O102: 100 | R102: =Campos_x_Formato[[#This Row],[Columna1]]=Campos_x_Formato[[#This Row],[Lista]] -> TRUE
A103: 1009 | B103: 35 | C103: Prevalidador_Tributario_Informantes.xlsm | D103: 29 | E103: Segundo apellido acreedor | F103: A | G103: 60 | H103: N | I103: Indique el segundo apellido del acreedor informado. Si no tiene segundo apellido o es una persona jurídica, deje esta casilla en blanco. | K103: E0143 | L103: apl2 | N103: Segundo apellido acreedor | O103: 101 | R103: =Campos_x_Formato[[#This Row],[Columna1]]=Campos_x_Formato[[#This Row],[Lista]] -> TRUE
A104: 1009 | B104: 35 | C104: Prevalidador_Tributario_Informantes.xlsm | D104: 30 | E104: Primer nombre acreedor | F104: A | G104: 60 | H104: N | I104: Indique el primer nombre del acreedor. Si es una persona jurídica, deje este espacio en blanco. | K104: E0141(32) | L104: nom1 | N104: Primer nombre acreedor | O104: 102 | R104: =Campos_x_Formato[[#This Row],[Columna1]]=Campos_x_Formato[[#This Row],[Lista]] -> TRUE
A105: 1009 | B105: 35 | C105: Prevalidador_Tributario_Informantes.xlsm | D105: 31 | E105: Otros nombres acreedor | F105: A | G105: 60 | H105: N | I105: Indique el segundo nombre u otros nombres del acreedor informado. Si no tiene más nombres o es una persona jurídica, deje este espacio en blanco. | K105: E0143 | L105: nom2 | N105: Otros nombres acreedor | O105: 103 | R105: =Campos_x_Formato[[#This Row],[Columna1]]=Campos_x_Formato[[#This Row],[Lista]] -> TRUE
A106: 1009 | B106: 132 | C106: Prevalidador_Tributario_Informantes.xlsm | D106: 32 | E106: Razón social acreedor | F106: A | G106: 450 | H106: N | I106: Indique la razón social del acreedor relacionado. Si es una persona natural, deje la casilla en blanco y la razón social o nombre que corresponda para Nits 444444001 en adelante. | K106: E0142(28|30) | L106: raz | N106: Razón social acreedor | O106: 104 | R106: =Campos_x_Formato[[#This Row],[Columna1]]=Campos_x_Formato[[#This Row],[Lista]] -> TRUE
A107: 1009 | B107: 70 | C107: Prevalidador_Tributario_Informantes.xlsm | D107: 33 | E107: Dirección | F107: A | G107: 200 | H107: N | I107: Relacione la dirección del acreedor reportado. Cuando se refiera a cuantías menores indique la dirección del informante. Cuando se refiera a personas o entidades del exterior, este campo no se diligencia. | K107: E0074(8) | L107: dir | N107: Dirección | O107: 105 | R107: =Campos_x_Formato[[#This Row],[Columna1]]=Campos_x_Formato[[#This Row],[Lista]] -> TRUE
A108: 1009 | B108: 25 | C108: Prevalidador_Tributario_Informantes.xlsm | D108: 34 | E108: Código dpto | F108: N | G108: 2 | H108: N | I108: Seleccione el departamento al cual pertenece la dirección informada, conforme con los códigos indicados en las tablas del Dane, se deben incluir los ceros a la izquierda. Para personas o entidades del exterior este campo no se diligencia. | K108: E0075 | L108: dpto | N108: Código dpto | O108: 106 | P108: Departamentos_@pais@ | Q108: Departamentos_@pais@ | R108: =Campos_x_Formato[[#This Row],[Columna1]]=Campos_x_Formato[[#This Row],[Lista]] -> TRUE
A109: 1009 | B109: 25 | C109: Prevalidador_Tributario_Informantes.xlsm | D109: 35 | E109: Código mcp | F109: N | G109: 3 | H109: N | I109: Seleccione el municipio correspondiente a la dirección informada, conforme con los códigos indicados por el Dane, se deben incluir los ceros a la izquierda. Para personas o entidades del exterior este campo no se diligencia. | K109: E0076 | L109: mun | N109: Código mcp | O109: 107 | P109: Municipios_@dpto@ | Q109: Municipios_@dpto@ | R109: =Campos_x_Formato[[#This Row],[Columna1]]=Campos_x_Formato[[#This Row],[Lista]] -> TRUE
A110: 1009 | B110: 25 | C110: Prevalidador_Tributario_Informantes.xlsm | D110: 36 | E110: País de Residencia o domicilio | F110: N | G110: 3 | H110: S | I110: Seleccione el código del país al cual pertenece el informado. | K110: E0127 | L110: pais | N110: País de Residencia o domicilio | O110: 108 | P110: Paises | Q110: Paises | R110: =Campos_x_Formato[[#This Row],[Columna1]]=Campos_x_Formato[[#This Row],[Lista]] -> TRUE
A111: 1009 | B111: 25 | C111: Prevalidador_Tributario_Informantes.xlsm | D111: 37 | E111: Saldo cuentas por pagar al 31-12 | F111: N | G111: 20 | H111: S | I111: Informe el saldo de la cuenta que tenga por pagar a 31 de diciembre del año informado y que corresponda al acreedor reportado. | K111: E0027 | L111: sal | N111: Saldo cuentas por pagar al 31-12 | O111: 109 | R111: =Campos_x_Formato[[#This Row],[Columna1]]=Campos_x_Formato[[#This Row],[Lista]] -> TRUE
A112: 1010 | B112: 25 | C112: Prevalidador_Tributario_Informantes.xlsm | D112: *24 | E112: Tipo de documento | F112: N | G112: 2 | H112: S | I112: Seleccione el tipo de documento de identificación que posea el socio o accionista a reportar. Cuando vaya a informar a personas o entidades del exterior, Utilice el tipo de documento 43. Si la persona o entidad del exterior, tiene número código o clave fiscal. Utilice 42 | L112: tdoc | N112: Tipo de documento | O112: 110 | P112: DTiposDocto | Q112: DTiposDocto | R112: =Campos_x_Formato[[#This Row],[Columna1]]=Campos_x_Formato[[#This Row],[Lista]] -> TRUE
A113: 1010 | B113: 25 | C113: Prevalidador_Tributario_Informantes.xlsm | D113: *25 | E113: Número identificación del socio o accionista | F113: A | G113: 20 | H113: S | I113: Indique el número de identificación que corresponda al beneficiario del pago informado. Si las transacciones son con personas o entidades del exterior que no posea Número, Código o Clave Fiscal deberá informarse con Nit 444444001 aumentando en una unidad cada relacionado hasta el 444449999. | K113: E0152 | L113: nid | N113: Número identificación del socio o accionista | O113: 111 | R113: =Campos_x_Formato[[#This Row],[Columna1]]=Campos_x_Formato[[#This Row],[Lista]] -> TRUE
A114: 1010 | B114: 6 | C114: Prevalidador_Tributario_Informantes.xlsm | D114: 26 | E114: DV | F114: N | G114: 1 | H114: N | I114: Si el número de identificación informado es un NIT. relacione el dígito de verificación respectivo. | K114: E0012 | L114: dv | N114: DV | O114: 112 | R114: =Campos_x_Formato[[#This Row],[Columna1]]=Campos_x_Formato[[#This Row],[Lista]] -> TRUE
A115: 1010 | B115: 35 | C115: Prevalidador_Tributario_Informantes.xlsm | D115: 27 | E115: Primer apellido del accionista | F115: A | G115: 60 | H115: N | I115: Indique el primer apellido del socio o accionista informado. Si es una persona jurídica, deje este espacio en blanco. | K115: E0141(31) | L115: apl1 | N115: Primer apellido del accionista | O115: 113 | R115: =Campos_x_Formato[[#This Row],[Columna1]]=Campos_x_Formato[[#This Row],[Lista]] -> TRUE
A116: 1010 | B116: 35 | C116: Prevalidador_Tributario_Informantes.xlsm | D116: 28 | E116: Segundo apellido del accionista | F116: A | G116: 60 | H116: N | I116: Indique el segundo apellido del socio o accionista reportado. Si no tiene segundo apellido o es una persona jurídica, deje esta casilla en blanco. | K116: E0143 | L116: apl2 | N116: Segundo apellido del accionista | O116: 114 | R116: =Campos_x_Formato[[#This Row],[Columna1]]=Campos_x_Formato[[#This Row],[Lista]] -> TRUE
A117: 1010 | B117: 35 | C117: Prevalidador_Tributario_Informantes.xlsm | D117: 29 | E117: Primer nombre del accionista | F117: A | G117: 60 | H117: N | I117: Indique el primer nombre del socio o accionista. Si es una persona jurídica, deje este espacio en blanco. | K117: E0141(31) | L117: nom1 | N117: Primer nombre del accionista | O117: 115 | R117: =Campos_x_Formato[[#This Row],[Columna1]]=Campos_x_Formato[[#This Row],[Lista]] -> TRUE
A118: 1010 | B118: 35 | C118: Prevalidador_Tributario_Informantes.xlsm | D118: 30 | E118: Otros nombres del accionista | F118: A | G118: 60 | H118: N | I118: Indique el segundo nombre u otros nombres del socio o accionista informado. Si no tiene más nombres o es una persona jurídica, deje este espacio en blanco. | K118: E0143 | L118: nom2 | N118: Otros nombres del accionista | O118: 116 | R118: =Campos_x_Formato[[#This Row],[Columna1]]=Campos_x_Formato[[#This Row],[Lista]] -> TRUE
A119: 1010 | B119: 132 | C119: Prevalidador_Tributario_Informantes.xlsm | D119: 31 | E119: Razón social del accionista | F119: A | G119: 450 | H119: N | I119: Indique la razón social del socio o accionista. Si es una persona natural, deje la casilla en blanco. Utilice razón social que corresponda para Nits 444444001 en adelante. | K119: E0142(27|29) | L119: raz | N119: Razón social del accionista | O119: 117 | R119: =Campos_x_Formato[[#This Row],[Columna1]]=Campos_x_Formato[[#This Row],[Lista]] -> TRUE
A120: 1010 | B120: 70 | C120: Prevalidador_Tributario_Informantes.xlsm | D120: 32 | E120: Dirección | F120: A | G120: 200 | H120: N | I120: Relacione la dirección del socio o accionista reportado. Cuando se refiera a personas o entidades del exterior, este campo no se diligencia. | K120: E0074(8) | L120: dir | N120: Dirección | O120: 118 | R120: =Campos_x_Formato[[#This Row],[Columna1]]=Campos_x_Formato[[#This Row],[Lista]] -> TRUE
A121: 1010 | B121: 25 | C121: Prevalidador_Tributario_Informantes.xlsm | D121: 33 | E121: Código Departamento | F121: N | G121: 2 | H121: N | I121: Seleccione el departamento al cual pertenece la dirección informada. Conforme con los códigos indicados en las tablas del DANE. Se deben incluir los ceros a la izquierda. Para personas o entidades del exterior este campo no se diligencia. | K121: E0075 | L121: dpto | N121: Código Departamento | O121: 119 | P121: Departamentos_@pais@ | Q121: Departamentos_@pais@ | R121: =Campos_x_Formato[[#This Row],[Columna1]]=Campos_x_Formato[[#This Row],[Lista]] -> TRUE
A122: 1010 | B122: 25 | C122: Prevalidador_Tributario_Informantes.xlsm | D122: 34 | E122: Código Municipio | F122: N | G122: 3 | H122: N | I122: Seleccione el municipio correspondiente a la dirección informada. Conforme con los códigos indicados por el DANE. Se deben incluir los ceros a la izquierda. Para personas o entidades del exterior este campo no se diligencia. | K122: E0076 | L122: mun | N122: Código Municipio | O122: 120 | P122: Municipios_@dpto@ | Q122: Municipios_@dpto@ | R122: =Campos_x_Formato[[#This Row],[Columna1]]=Campos_x_Formato[[#This Row],[Lista]] -> TRUE
A123: 1010 | B123: 25 | C123: Prevalidador_Tributario_Informantes.xlsm | D123: 35 | E123: PAIS RESIDENCIA O DOMICILIO | F123: N | G123: 4 | H123: S | I123: Seleccione el código del país al cual pertenece el informado. | K123: E0087 | L123: pais | N123: PAIS RESIDENCIA O DOMICILIO | O123: 121 | P123: Paises | Q123: Paises | R123: =Campos_x_Formato[[#This Row],[Columna1]]=Campos_x_Formato[[#This Row],[Lista]] -> TRUE
A124: 1010 | B124: 25 | C124: Prevalidador_Tributario_Informantes.xlsm | D124: 36 | E124: Valor Nominal de la Accion, Aporte o Derecho Social a 31 diciembre | F124: N | G124: 18 | H124: S | I124: Informe el valor de las acciones o aportes que figuran a nombre del socio reportado a 31 de diciembre del año informado. | K124: E0027 | L124: valnom | N124: Valor Nominal de la Accion, Aporte o Derecho Social a 31 diciembre | O124: 121 | R124: =Campos_x_Formato[[#This Row],[Columna1]]=Campos_x_Formato[[#This Row],[Lista]] -> TRUE | T124: =O123 -> 121
A125: 1010 | B125: 25 | C125: Prevalidador_Tributario_Informantes.xlsm | D125: 37 | E125: Valor prima en colocacion de acciones a 31 diciembre | F125: N | G125: 18 | H125: S | K125: E0027 | L125: valprm | N125: Valor prima en colocacion de acciones a 31 diciembre | O125: 121 | R125: =Campos_x_Formato[[#This Row],[Columna1]]=Campos_x_Formato[[#This Row],[Lista]] -> TRUE | T125: =O124 -> 121
A126: 1010 | B126: 25 | C126: Prevalidador_Tributario_Informantes.xlsm | D126: 38 | E126: Porcentaje de participación | F126: N | G126: 20 | H126: S | I126: Siempre debe diligenciarse. Para valores con parte decimal, se debe diligenciar el valor sin separación decimal. Ejemplo: - Para el valor 12.78915, diligencie 1278915. - Para el valor 0.000001 diligencie 1. - Para el valor 100% diligencie 100. El porcentaje de participación máximo es 100%. | K126: E0150 | L126: por | N126: Porcentaje de participación | O126: 123 | R126: =Campos_x_Formato[[#This Row],[Columna1]]=Campos_x_Formato[[#This Row],[Lista]] -> TRUE
A127: 1010 | B127: 25 | C127: Prevalidador_Tributario_Informantes.xlsm | D127: 39 | E127: Porcentaje de participación (posición decimal) | F127: N | G127: 2 | H127: S | I127: Siempre debe diligenciarse. Diligencie el número de posiciones decimales para el valor de la casilla anterior, contada desde la derecha del valor de la casilla. El valor de esta casilla puede ser máximo 20. Ejemplo: - Para el valor 12.78915, diligencie 5. - Para el valor 0.000001 diligencie 6. - Para el valor 100% diligencie 0. En caso de no tener valor decimal diligencie 0 (Cero). | K127: E0304(16) | L127: dec | N127: Porcentaje de participación (posición decimal) | O127: 124 | R127: =Campos_x_Formato[[#This Row],[Columna1]]=Campos_x_Formato[[#This Row],[Lista]] -> TRUE
A128: 1011 | B128: 25 | C128: Prevalidador_Tributario_Informantes.xlsm | D128: *25 | E128: Concepto | F128: N | G128: 4 | H128: S | I128: Seleccione el concepto que corresponda. | L128: cpt | N128: Concepto | O128: 125 | P128: DConceptos_F1011_V6_2013 | Q128: DConceptos_F1011_V6_2013 | R128: =Campos_x_Formato[[#This Row],[Columna1]]=Campos_x_Formato[[#This Row],[Lista]] -> TRUE
A129: 1011 | B129: 25 | C129: Prevalidador_Tributario_Informantes.xlsm | D129: 26 | E129: Saldos al 31-12 | F129: N | G129: 20 | H129: S | I129: Diligencie los valores correspondientes a la declaración de renta y complementarios o de ingresos y patrimonio de acuerdo a la codificación de la normatividad vigente. | K129: E0027 | L129: sal | N129: Saldos al 31-12 | O129: 126 | R129: =Campos_x_Formato[[#This Row],[Columna1]]=Campos_x_Formato[[#This Row],[Lista]] -> TRUE
A130: 1012 | B130: 25 | C130: Prevalidador_Tributario_Informantes.xlsm | D130: *24 | E130: Concepto | F130: N | G130: 4 | H130: S | I130: Seleccione el concepto que identifica la partida a informar. | L130: cpt | N130: Concepto | O130: 127 | P130: DConcepto16 | Q130: DConcepto16 | R130: =Campos_x_Formato[[#This Row],[Columna1]]=Campos_x_Formato[[#This Row],[Lista]] -> TRUE
A131: 1012 | B131: 25 | C131: Prevalidador_Tributario_Informantes.xlsm | D131: *25 | E131: Tipo de documento | F131: N | G131: 2 | H131: S | I131: Seleccione el tipo de documento de identificación del informado a reportar. Cuando vaya a informar a personas o entidades del exterior, Utilice el tipo de Documento 43. Si la Persona o Entidad del exterior, tiene Número, Código o Clave Fiscal, Utilice 42. | K131: E0049 | L131: tdoc | N131: Tipo de documento | O131: 128 | P131: DTiposDocto | Q131: DTiposDocto | R131: =Campos_x_Formato[[#This Row],[Columna1]]=Campos_x_Formato[[#This Row],[Lista]] -> TRUE
A132: 1012 | B132: 25 | C132: Prevalidador_Tributario_Informantes.xlsm | D132: *26 | E132: NIT informado | F132: A | G132: 20 | H132: S | I132: Cuando sean transacciones con personas o entidades del exterior que no posea Número, Código o Clave Fiscal deberá informarse con Nit 444444001 aumentando en una unidad cada relacionado hasta el 444449999. | K132: E0048 | L132: nid | N132: NIT informado | O132: 129 | R132: =Campos_x_Formato[[#This Row],[Columna1]]=Campos_x_Formato[[#This Row],[Lista]] -> TRUE
A133: 1012 | B133: 6 | C133: Prevalidador_Tributario_Informantes.xlsm | D133: 27 | E133: DV | F133: N | G133: 1 | H133: N | I133: Si el número de identificación informado es un NIT, relacione el dígito de verificación respectivo. | K133: E0012 | L133: dv | N133: DV | O133: 130 | R133: =Campos_x_Formato[[#This Row],[Columna1]]=Campos_x_Formato[[#This Row],[Lista]] -> TRUE
A134: 1012 | B134: 35 | C134: Prevalidador_Tributario_Informantes.xlsm | D134: 28 | E134: Primer apellido del informado | F134: A | G134: 60 | H134: N | I134: Indique el primer apellido del informado. Si es una persona jurídica, deje este espacio en blanco. | K134: E0141(32) | L134: apl1 | N134: Primer apellido del informado | O134: 131 | R134: =Campos_x_Formato[[#This Row],[Columna1]]=Campos_x_Formato[[#This Row],[Lista]] -> TRUE
A135: 1012 | B135: 35 | C135: Prevalidador_Tributario_Informantes.xlsm | D135: 29 | E135: Segundo apellido del informado | F135: A | G135: 60 | H135: N | I135: Indique el segundo apellido del informado. Si no tiene segundo apellido o es una persona jurídica, deje esta casilla en blanco. | K135: E0143 | L135: apl2 | N135: Segundo apellido del informado | O135: 132 | R135: =Campos_x_Formato[[#This Row],[Columna1]]=Campos_x_Formato[[#This Row],[Lista]] -> TRUE
A136: 1012 | B136: 35 | C136: Prevalidador_Tributario_Informantes.xlsm | D136: 30 | E136: Primer nombre del informado | F136: A | G136: 60 | H136: N | I136: Indique el primer nombre del informado. Si es una persona jurídica, deje este espacio en blanco. | K136: E0141(32) | L136: nom1 | N136: Primer nombre del informado | O136: 133 | R136: =Campos_x_Formato[[#This Row],[Columna1]]=Campos_x_Formato[[#This Row],[Lista]] -> TRUE
A137: 1012 | B137: 35 | C137: Prevalidador_Tributario_Informantes.xlsm | D137: 31 | E137: Otros nombres del informado | F137: A | G137: 60 | H137: N | I137: Indique el segundo nombre u otros nombres del informado. Si no tiene más nombres o es una persona jurídica, deje este espacio en blanco. | K137: E0143 | L137: nom2 | N137: Otros nombres del informado | O137: 134 | R137: =Campos_x_Formato[[#This Row],[Columna1]]=Campos_x_Formato[[#This Row],[Lista]] -> TRUE
A138: 1012 | B138: 132 | C138: Prevalidador_Tributario_Informantes.xlsm | D138: 32 | E138: Razón social informado | F138: A | G138: 450 | H138: N | I138: Indique la razón social del informado. Si es una persona natural, deje la casilla en blanco. Utilice razón social o nombre que corresponda para Nits 444444001 en adelante. | K138: E0142(28|30) | L138: raz | N138: Razón social informado | O138: 135 | R138: =Campos_x_Formato[[#This Row],[Columna1]]=Campos_x_Formato[[#This Row],[Lista]] -> TRUE
A139: 1012 | B139: 25 | C139: Prevalidador_Tributario_Informantes.xlsm | D139: 33 | E139: País de Residencia o domicilio | F139: N | G139: 4 | H139: S | I139: Seleccione el código del país al cual pertenece el informado. | K139: E0127 | L139: pais | N139: País de Residencia o domicilio | O139: 136 | P139: Paises | Q139: Paises | R139: =Campos_x_Formato[[#This Row],[Columna1]]=Campos_x_Formato[[#This Row],[Lista]] -> TRUE
A140: 1012 | B140: 25 | C140: Prevalidador_Tributario_Informantes.xlsm | D140: 34 | E140: Valor al 31-12 | F140: N | G140: 20 | H140: S | I140: Ingrese el valor al 31-12 | K140: E0027 | L140: val | N140: Valor al 31-12 | O140: 137 | R140: =Campos_x_Formato[[#This Row],[Columna1]]=Campos_x_Formato[[#This Row],[Lista]] -> TRUE
A141: 1056 | B141: 25 | C141: Prevalidador_Tributario_Informantes.xlsm | D141: 0 | E141: Concepto | F141: N | G141: 4 | H141: S | I141: Seleccione el tipo de operación por el cual efectuó el pago o abono en cuenta. | K141: E0300(5061) | L141: cpto | N141: Concepto | O141: 425 | P141: DConcepto3 | Q141: DConcepto3 | R141: =Campos_x_Formato[[#This Row],[Columna1]]=Campos_x_Formato[[#This Row],[Lista]] -> TRUE
A142: 1056 | B142: 25 | C142: Prevalidador_Tributario_Informantes.xlsm | D142: *25 | E142: Tipo de documento | F142: N | G142: 2 | H142: S | I142: Seleccione el tipo de documento de identificación que posee el informado. Cuando vaya a informar cuantías menores o personas o entidades del exterior. Utilice el tipo de documento 43. Si la persona o entidad del exterior. Tiene número. Código o clave fiscal. Utilice 42. | L142: tdoc | N142: Tipo de documento | O142: 426 | P142: DTiposDocTo | Q142: DTiposDocTo | R142: =Campos_x_Formato[[#This Row],[Columna1]]=Campos_x_Formato[[#This Row],[Lista]] -> TRUE
A143: 1056 | B143: 25 | C143: Prevalidador_Tributario_Informantes.xlsm | D143: *26 | E143: Número identificación | F143: A | G143: 20 | H143: S | I143: Indique el número de identificación que corresponda al beneficiario del pago informado. Si es por cuantías menores indique el Nit 222222222. Cuando sean transacciones con personas o entidades del exterior que no posea Número, Código o Clave Fiscal deberá informarse con Nit 444444001 aumentando en una unidad cada relacionado hasta el 444449999. | K143: E0064 | L143: nid | N143: Número identificación | O143: 427 | R143: =Campos_x_Formato[[#This Row],[Columna1]]=Campos_x_Formato[[#This Row],[Lista]] -> TRUE
A144: 1056 | B144: 35 | C144: Prevalidador_Tributario_Informantes.xlsm | D144: 27 | E144: Primer apellido del informado | F144: A | G144: 60 | H144: N | I144: Indique el primer apellido del beneficiario del pago. Si es una persona jurídica, deje este espacio en blanco. | K144: E0141(31) | L144: apl1 | N144: Primer apellido del informado | O144: 428 | R144: =Campos_x_Formato[[#This Row],[Columna1]]=Campos_x_Formato[[#This Row],[Lista]] -> TRUE
A145: 1056 | B145: 35 | C145: Prevalidador_Tributario_Informantes.xlsm | D145: 28 | E145: Segundo apellido del informado | F145: A | G145: 60 | H145: N | I145: Indique el segundo apellido del beneficiario del pago. Si no tiene segundo apellido o es una persona jurídica, deje este espacio en blanco. | K145: E0143 | L145: apl2 | N145: Segundo apellido del informado | O145: 429 | R145: =Campos_x_Formato[[#This Row],[Columna1]]=Campos_x_Formato[[#This Row],[Lista]] -> TRUE
A146: 1056 | B146: 35 | C146: Prevalidador_Tributario_Informantes.xlsm | D146: 29 | E146: Primer nombre del informado | F146: A | G146: 60 | H146: N | I146: Indique el primer nombre del beneficiario del pago. Si es una persona jurídica, deje este espacio en blanco. | K146: E0141(31) | L146: nom1 | N146: Primer nombre del informado | O146: 430 | R146: =Campos_x_Formato[[#This Row],[Columna1]]=Campos_x_Formato[[#This Row],[Lista]] -> TRUE
A147: 1056 | B147: 35 | C147: Prevalidador_Tributario_Informantes.xlsm | D147: 30 | E147: Otros nombres del informado | F147: A | G147: 60 | H147: N | I147: Indique el segundo nombre u otros nombres del beneficiario del pago. Si no tiene más nombres o es una persona jurídica, deje este espacio en blanco. | K147: E0143 | L147: nom2 | N147: Otros nombres del informado | O147: 431 | R147: =Campos_x_Formato[[#This Row],[Columna1]]=Campos_x_Formato[[#This Row],[Lista]] -> TRUE
A148: 1056 | B148: 132 | C148: Prevalidador_Tributario_Informantes.xlsm | D148: 31 | E148: Razón social informado | F148: A | G148: 450 | H148: N | I148: Indique la razón social del beneficiario del pago. Si es una persona natural, deje la casilla en blanco. Utilice "Cuantías menores" cuando el Nit sea 222222222 y la razón social o nombre que corresponda para Nits 444444001 en adelante. | K148: E0142(27|29) | L148: raz | N148: Razón social informado | O148: 432 | R148: =Campos_x_Formato[[#This Row],[Columna1]]=Campos_x_Formato[[#This Row],[Lista]] -> TRUE
A149: 1056 | B149: 70 | C149: Prevalidador_Tributario_Informantes.xlsm | D149: 32 | E149: Dirección | F149: A | G149: 200 | H149: N | I149: Relacione la dirección del beneficiario del pago o abono en cuenta. Cuando se refiera a cuantías menores indique la dirección del informante. Cuando se refiera a personas o entidades del exterior la dirección, no se diligencia. | K149: E0074(8) | L149: dir | N149: Dirección | O149: 433 | R149: =Campos_x_Formato[[#This Row],[Columna1]]=Campos_x_Formato[[#This Row],[Lista]] -> TRUE
A150: 1056 | B150: 25 | C150: Prevalidador_Tributario_Informantes.xlsm | D150: 33 | E150: Código dpto | F150: N | G150: 2 | H150: N | I150: Seleccione el departamento al cual pertenece la dirección informada, conforme con los códigos indicados en las tablas del Dane, se deben incluir los ceros a la izquierda. Para personas o entidades del exterior este campo no se diligencia. | K150: E0075 | L150: dpto | N150: Código dpto | O150: 434 | P150: Departamentos_@pais@ | Q150: Departamentos_@pais@ | R150: =Campos_x_Formato[[#This Row],[Columna1]]=Campos_x_Formato[[#This Row],[Lista]] -> TRUE
A151: 1056 | B151: 25 | C151: Prevalidador_Tributario_Informantes.xlsm | D151: 34 | E151: Código mcp | F151: N | G151: 3 | H151: N | I151: Seleccione el municipio correspondiente a la dirección informada, conforme con los códigos indicados por el Dane, se deben incluir los ceros a la izquierda. Para personas o entidades del exterior este campo no se diligencia. | K151: E0076 | L151: mun | N151: Código mcp | O151: 435 | P151: Municipios_@dpto@ | Q151: Municipios_@dpto@ | R151: =Campos_x_Formato[[#This Row],[Columna1]]=Campos_x_Formato[[#This Row],[Lista]] -> TRUE
A152: 1056 | B152: 25 | C152: Prevalidador_Tributario_Informantes.xlsm | D152: 35 | E152: País de Residencia o domicilio | F152: N | G152: 4 | H152: S | I152: Seleccione el código del país al cual pertenece el informado | K152: E0087 | L152: pais | N152: País de Residencia o domicilio | O152: 436 | P152: Paises | Q152: Paises | R152: =Campos_x_Formato[[#This Row],[Columna1]]=Campos_x_Formato[[#This Row],[Lista]] -> TRUE
A153: 1056 | B153: 25 | C153: Prevalidador_Tributario_Informantes.xlsm | D153: 36 | E153: Pago o abono en cuenta | F153: N | G153: 18 | H153: S | I153: Digite los pagos o abonos en cuenta (causación) que constituyan costo o deducción o den derecho a impuesto descontable por beneficiario correspondiente al año gravable informado. | K153: E0130(37|38|39|40|41) | L153: pag | N153: Pago o abono en cuenta | O153: 437 | R153: =Campos_x_Formato[[#This Row],[Columna1]]=Campos_x_Formato[[#This Row],[Lista]] -> TRUE
A154: 1056 | B154: 25 | C154: Prevalidador_Tributario_Informantes.xlsm | D154: 37 | E154: IVA mayor valor del costo o gasto | F154: N | G154: 18 | H154: S | I154: Informe el valor del IVA que llevo como mayor valor del costo. | K154: E0118 | L154: iva | N154: IVA mayor valor del costo o gasto | O154: 438 | R154: =Campos_x_Formato[[#This Row],[Columna1]]=Campos_x_Formato[[#This Row],[Lista]] -> TRUE
A155: 1056 | B155: 25 | C155: Prevalidador_Tributario_Informantes.xlsm | D155: 38 | E155: Retención en la fuente practicada RENTA | F155: N | G155: 18 | H155: S | I155: Informe el valor de la Retencion en la Fuente Practicada a Titulo de Renta. | K155: E0118 | L155: rpren | N155: Retención en la fuente practicada RENTA | O155: 439 | R155: =Campos_x_Formato[[#This Row],[Columna1]]=Campos_x_Formato[[#This Row],[Lista]] -> TRUE
A156: 1056 | B156: 25 | C156: Prevalidador_Tributario_Informantes.xlsm | D156: 39 | E156: Retención en la fuente asumida RENTA | F156: N | G156: 18 | H156: S | I156: Informe el valor de la Retencion en la Fuente Asumida a Titulo de Renta. | K156: E0118 | L156: raren | N156: Retención en la fuente asumida RENTA | O156: 440 | R156: =Campos_x_Formato[[#This Row],[Columna1]]=Campos_x_Formato[[#This Row],[Lista]] -> TRUE
A157: 1056 | B157: 25 | C157: Prevalidador_Tributario_Informantes.xlsm | D157: 40 | E157: Retención en la fuente practicada IVA a responsables del IVA | F157: N | G157: 18 | H157: S | I157: Informe el valor de la Retención en la fuente practicada IVA a responsables del IVA. | K157: E0118 | L157: rpirc | N157: Retención en la fuente practicada IVA a responsables del IVA | O157: 441 | R157: =Campos_x_Formato[[#This Row],[Columna1]]=Campos_x_Formato[[#This Row],[Lista]] -> TRUE
A158: 1056 | B158: 25 | C158: Prevalidador_Tributario_Informantes.xlsm | D158: 41 | E158: Retención en la fuente practicada IVA a no residentes o no domiciliados | F158: N | G158: 18 | H158: S | I158: Informe el valor de la Retención en la fuente practicada IVA a no residentes o no domiciliados | K158: E0118 | L158: rpind | N158: Retención en la fuente practicada IVA a no residentes o no domiciliados | O158: 442 | R158: =Campos_x_Formato[[#This Row],[Columna1]]=Campos_x_Formato[[#This Row],[Lista]] -> TRUE
A159: 1647 | B159: 25 | C159: Prevalidador_Tributario_Informantes.xlsm | D159: *24 | E159: Concepto | F159: N | G159: 4 | H159: S | I159: Seleccione el concepto a que correspondan los ingresos recibidos | K159: E0124 | L159: con | N159: Concepto | O159: 548 | P159: DConcepto_F1647 | Q159: DConcepto_F1647 | R159: =Campos_x_Formato[[#This Row],[Columna1]]=Campos_x_Formato[[#This Row],[Lista]] -> TRUE
A160: 1647 | B160: 25 | C160: Prevalidador_Tributario_Informantes.xlsm | D160: *25 | E160: Tipo de documento de quien se recibe ingreso | F160: N | G160: 2 | H160: S | I160: Seleccione el tipo de documento de identificación que posea la persona o entidad de quien se recibió el correspondiente ingreso. Cuando vaya a informar cuantías menores o personas o entidades del exterior, Utilice el tipo de Documento 43. Si la Persona o Entidad del exterior, tiene Número, Código o Clave Fiscal, Utilice 42. | L160: tdoc | N160: Tipo de documento de quien se recibe ingreso | O160: 549 | P160: DTiposDocto | Q160: DTiposDocto | R160: =Campos_x_Formato[[#This Row],[Columna1]]=Campos_x_Formato[[#This Row],[Lista]] -> TRUE
A161: 1647 | B161: 25 | C161: Prevalidador_Tributario_Informantes.xlsm | D161: *26 | E161: Número identificación de quien se recibe ingreso | F161: A | G161: 20 | H161: S | I161: Indique el número de identificación que corresponda al informado. Cuando sean transacciones con entidades del exterior que no posean Número, Código o Clave Fiscal deberá informarse con Nit 444444001 aumentando en una unidad cada relacionado hasta el 444449999. | K161: E0153 | L161: nid | N161: Número identificación de quien se recibe ingreso | O161: 550 | R161: =Campos_x_Formato[[#This Row],[Columna1]]=Campos_x_Formato[[#This Row],[Lista]] -> TRUE
A162: 1647 | B162: 6 | C162: Prevalidador_Tributario_Informantes.xlsm | D162: 27 | E162: DV | F162: N | G162: 1 | H162: N | I162: Si el número de identificación informado es un NIT, relacione el dígito de verificación respectivo. | K162: E0012 | L162: dv | N162: DV | O162: 551 | R162: =Campos_x_Formato[[#This Row],[Columna1]]=Campos_x_Formato[[#This Row],[Lista]] -> TRUE
A163: 1647 | B163: 35 | C163: Prevalidador_Tributario_Informantes.xlsm | D163: 28 | E163: Primer apellido de quien se recibe ingreso | F163: A | G163: 60 | H163: N | I163: Indique el primer apellido del cliente y/o tercero de quien se obtuvo el ingreso. Si es una persona jurídica, deje este espacio en blanco. | K163: E0141(32) | L163: apl1 | N163: Primer apellido de quien se recibe ingreso | O163: 552 | R163: =Campos_x_Formato[[#This Row],[Columna1]]=Campos_x_Formato[[#This Row],[Lista]] -> TRUE
A164: 1647 | B164: 35 | C164: Prevalidador_Tributario_Informantes.xlsm | D164: 29 | E164: Segundo apellido de quien se recibe ingreso | F164: A | G164: 60 | H164: N | I164: Indique el segundo apellido del cliente y/o tercero de quien se obtuvo el ingreso. Si no tiene segundo apellido o es una persona jurídica, deje esta casilla en blanco. | K164: E0143 | L164: apl2 | N164: Segundo apellido de quien se recibe ingreso | O164: 553 | R164: =Campos_x_Formato[[#This Row],[Columna1]]=Campos_x_Formato[[#This Row],[Lista]] -> TRUE
A165: 1647 | B165: 35 | C165: Prevalidador_Tributario_Informantes.xlsm | D165: 30 | E165: Primer nombre de quien se recibe ingreso | F165: A | G165: 60 | H165: N | I165: Indique el primer nombre del cliente y/o tercero de quien se recibió el ingreso. Si es una persona jurídica, deje este espacio en blanco. | K165: E0141(32) | L165: nom1 | N165: Primer nombre de quien se recibe ingreso | O165: 554 | R165: =Campos_x_Formato[[#This Row],[Columna1]]=Campos_x_Formato[[#This Row],[Lista]] -> TRUE
A166: 1647 | B166: 35 | C166: Prevalidador_Tributario_Informantes.xlsm | D166: 31 | E166: Otros nombres de quien se recibe ingreso | F166: A | G166: 60 | H166: N | I166: Indique el segundo nombre u otros nombres del cliente y/o tercero de quien se recibió el ingreso. Si no tiene más nombres o es una persona jurídica, deje este espacio en blanco. | K166: E0143 | L166: nom2 | N166: Otros nombres de quien se recibe ingreso | O166: 555 | R166: =Campos_x_Formato[[#This Row],[Columna1]]=Campos_x_Formato[[#This Row],[Lista]] -> TRUE
A167: 1647 | B167: 132 | C167: Prevalidador_Tributario_Informantes.xlsm | D167: 32 | E167: Razón social de quien se recibe ingreso | F167: A | G167: 450 | H167: N | I167: Relacione la razón social del cliente o tercero de quien generó el ingreso. Si es una persona natural, deje esta casilla en blanco. Utilice "Cuantías menores" cuando el Nit sea 222222222, y la razón social o nombre que corresponda para Nits 444444001 en adelante. | K167: E0142(28|30) | L167: raz | N167: Razón social de quien se recibe ingreso | O167: 556 | R167: =Campos_x_Formato[[#This Row],[Columna1]]=Campos_x_Formato[[#This Row],[Lista]] -> TRUE
A168: 1647 | B168: 25 | C168: Prevalidador_Tributario_Informantes.xlsm | D168: 33 | E168: País de residencia o domicilio de quien se recibe ingreso | F168: N | G168: 4 | H168: S | I168: Seleccione el código del país al cual pertenece el informado. | K168: E0127 | L168: pais | N168: País de residencia o domicilio de quien se recibe ingreso | O168: 557 | P168: Paises | Q168: Paises | R168: =Campos_x_Formato[[#This Row],[Columna1]]=Campos_x_Formato[[#This Row],[Lista]] -> TRUE
A169: 1647 | B169: 25 | C169: Prevalidador_Tributario_Informantes.xlsm | D169: 46 | E169: Valor total de la operación | F169: N | G169: 18 | H169: S | I169: Informe el valor total de la Operación | K169: E0118 | L169: vtotal | N169: Valor total de la operación | O169: 558 | R169: =Campos_x_Formato[[#This Row],[Columna1]]=Campos_x_Formato[[#This Row],[Lista]] -> TRUE
A170: 1647 | B170: 25 | C170: Prevalidador_Tributario_Informantes.xlsm | D170: 47 | E170: Valor ingreso reintegrado transferido distribuido al tercero | F170: N | G170: 18 | H170: S | I170: Informe el valor del ingreso reintegro, tranferido o distribuido al tercero | K170: E0118 | L170: ving | N170: Valor ingreso reintegrado transferido distribuido al tercero | O170: 559 | R170: =Campos_x_Formato[[#This Row],[Columna1]]=Campos_x_Formato[[#This Row],[Lista]] -> TRUE
A171: 1647 | B171: 25 | C171: Prevalidador_Tributario_Informantes.xlsm | D171: 48 | E171: Valor Retención reintegrada transferida distribuida al tercero | F171: N | G171: 18 | H171: S | I171: Informe el valor de la retencion que le efectu al tercero | K171: E0310(46,47) | L171: vret | N171: Valor Retención reintegrada transferida distribuida al tercero | O171: 560 | R171: =Campos_x_Formato[[#This Row],[Columna1]]=Campos_x_Formato[[#This Row],[Lista]] -> TRUE
A172: 1647 | B172: 25 | C172: Prevalidador_Tributario_Informantes.xlsm | D172: *35 | E172: Tipo de documento del tercero para quien se recibió ingreso | F172: N | G172: 2 | H172: S | I172: Seleccione el tipo de documento de identificación que posea la persona o entidad para quien se recibió el correspondiente ingreso. Cuando vaya a informar cuantías menores o personas o entidades del exterior, Utilice el tipo de Documento 43. Si la Persona o Entidad del exterior, tiene Número, Código o Clave Fiscal, Utilice 42. | L172: tdoc2 | N172: Tipo de documento del tercero para quien se recibió ingreso | O172: 561 | P172: DTiposDocto | Q172: DTiposDocto | R172: =Campos_x_Formato[[#This Row],[Columna1]]=Campos_x_Formato[[#This Row],[Lista]] -> TRUE
A173: 1647 | B173: 25 | C173: Prevalidador_Tributario_Informantes.xlsm | D173: *36 | E173: Identificación del tercero para quien se recibió ingreso | F173: A | G173: 20 | H173: S | I173: Indique el número de identificación que corresponda al informado. Cuando sean transacciones con entidades del exterior que no posean Número, Código o Clave Fiscal deberá informarse con Nit 444444001 aumentando en una unidad cada relacionado hasta el 444449999.. | K173: E0154 | L173: nid2i | N173: Identificación del tercero para quien se recibió ingreso | O173: 562 | R173: =Campos_x_Formato[[#This Row],[Columna1]]=Campos_x_Formato[[#This Row],[Lista]] -> TRUE
A174: 1647 | B174: 35 | C174: Prevalidador_Tributario_Informantes.xlsm | D174: 37 | E174: Primer apellido del tercero para quien se recibió ingreso | F174: A | G174: 60 | H174: N | I174: Indique el primer apellido del cliente y/o tercero para quien se obtuvo el ingreso. Si es una persona jurídica, deje este espacio en blanco. | K174: E0077 | L174: apl1i | N174: Primer apellido del tercero para quien se recibió ingreso | O174: 563 | R174: =Campos_x_Formato[[#This Row],[Columna1]]=Campos_x_Formato[[#This Row],[Lista]] -> TRUE
A175: 1647 | B175: 35 | C175: Prevalidador_Tributario_Informantes.xlsm | D175: 38 | E175: Segundo apellido del tercero para quien se recibió ingreso | F175: A | G175: 60 | H175: N | I175: Indique el segundo apellido del cliente y/o tercero para quien se obtuvo el ingreso. Si no tiene segundo apellido o es una persona jurídica, deje esta casilla en blanco. | K175: E0078 | L175: apl2i | N175: Segundo apellido del tercero para quien se recibió ingreso | O175: 564 | R175: =Campos_x_Formato[[#This Row],[Columna1]]=Campos_x_Formato[[#This Row],[Lista]] -> TRUE
A176: 1647 | B176: 35 | C176: Prevalidador_Tributario_Informantes.xlsm | D176: 39 | E176: Primer nombre del tercero para quien se recibió ingreso | F176: A | G176: 60 | H176: N | I176: Indique el primer nombre del cliente y/o tercero de para quien se recibió el ingreso. Si es una persona jurídica, deje este espacio en blanco. | K176: E0077 | L176: nom1i | N176: Primer nombre del tercero para quien se recibió ingreso | O176: 565 | R176: =Campos_x_Formato[[#This Row],[Columna1]]=Campos_x_Formato[[#This Row],[Lista]] -> TRUE
A177: 1647 | B177: 35 | C177: Prevalidador_Tributario_Informantes.xlsm | D177: 40 | E177: Otros nombres del tercero para quien se recibió ingreso | F177: A | G177: 60 | H177: N | I177: Indique el segundo nombre u otros nombres del cliente y/o tercero de para quien se recibió el ingreso. Si no tiene más nombres o es una persona jurídica, deje este espacio en blanco. | K177: E0078 | L177: nom2i | N177: Otros nombres del tercero para quien se recibió ingreso | O177: 566 | R177: =Campos_x_Formato[[#This Row],[Columna1]]=Campos_x_Formato[[#This Row],[Lista]] -> TRUE
A178: 1647 | B178: 132 | C178: Prevalidador_Tributario_Informantes.xlsm | D178: 41 | E178: Razón social del tercero para quien se recibió ingreso | F178: A | G178: 450 | H178: N | I178: Relacione la razón social del cliente o tercero de quien generó el ingreso. Si es una persona natural, deje esta casilla en blanco. Utilice Cuantías menores cuand el Nit sea 222222222 y la Razón social o nombre corresponda para Nits 444444001 en adelante. | K178: E0079 | L178: razi | N178: Razón social del tercero para quien se recibió ingreso | O178: 567 | R178: =Campos_x_Formato[[#This Row],[Columna1]]=Campos_x_Formato[[#This Row],[Lista]] -> TRUE
A179: 1647 | B179: 70 | C179: Prevalidador_Tributario_Informantes.xlsm | D179: 42 | E179: Dirección | F179: A | G179: 200 | H179: N | I179: Relacione la dirección del tercero para quien se recibio el ingreso reportado. Cuando se refiera a cuantías menores indique la dirección del informante. Cuando se refiera a personas o entidades del exterior la dirección, no se diligencia. | K179: E0131(45|169|8) | L179: dir | N179: Dirección | O179: 568 | R179: =Campos_x_Formato[[#This Row],[Columna1]]=Campos_x_Formato[[#This Row],[Lista]] -> TRUE
A180: 1647 | B180: 25 | C180: Prevalidador_Tributario_Informantes.xlsm | D180: 43 | E180: Código dpto | F180: N | G180: 2 | H180: N | I180: Seleccione el departamento al cual pertenece la dirección informada, conforme con los códigos indicados en las tablas del Dane, se deben incluir los ceros a la izquierda. Para personas o entidades del exterior este campo no se diligencia. | K180: E0075 | L180: cdpt | N180: Código dpto | O180: 569 | P180: Departamentos_@paist@ | Q180: Departamentos_@paist@ | R180: =Campos_x_Formato[[#This Row],[Columna1]]=Campos_x_Formato[[#This Row],[Lista]] -> TRUE
A181: 1647 | B181: 25 | C181: Prevalidador_Tributario_Informantes.xlsm | D181: 44 | E181: Código mcp | F181: N | G181: 3 | H181: N | I181: Seleccione el municipio correspondiente a la dirección informada, conforme con los códigos indicados por el Dane, se deben incluir los ceros a la izquierda. Para personas o entidades del exterior este campo no se diligencia. | K181: E0076 | L181: cmcp | N181: Código mcp | O181: 570 | P181: Municipios_@cdpt@ | Q181: Municipios_@cdpt@ | R181: =Campos_x_Formato[[#This Row],[Columna1]]=Campos_x_Formato[[#This Row],[Lista]] -> TRUE
A182: 1647 | B182: 25 | C182: Prevalidador_Tributario_Informantes.xlsm | D182: 45 | E182: País de residencia o domicilio | F182: N | G182: 4 | H182: S | I182: Seleccione el código del país al cual pertenece el informado. | K182: E0128 | L182: paist | N182: País de residencia o domicilio | O182: 571 | P182: Paises | Q182: Paises | R182: =Campos_x_Formato[[#This Row],[Columna1]]=Campos_x_Formato[[#This Row],[Lista]] -> TRUE
A183: 2275 | B183: 25 | C183: Prevalidador_Tributario_Informantes.xlsm | D183: *24 | E183: Concepto | F183: N | G183: 4 | H183: S | I183: Seleccione el concepto por el cual se dio lugar a la solicitud de ingresos no constitutivos de renta o ganancia ocasional | L183: cpt | N183: Concepto | O183: 622 | P183: DConcepto2275 | Q183: DConcepto2275 | R183: =Campos_x_Formato[[#This Row],[Columna1]]=Campos_x_Formato[[#This Row],[Lista]] -> TRUE
A184: 2275 | B184: 25 | C184: Prevalidador_Tributario_Informantes.xlsm | D184: *25 | E184: Tipo de documento del Tercero | F184: N | G184: 2 | H184: S | I184: Seleccione el tipo de documento de identificación que posee el tercero. | L184: tdoc | N184: Tipo de documento del Tercero | O184: 623 | P184: DTiposDocto | Q184: DTiposDocto | R184: =Campos_x_Formato[[#This Row],[Columna1]]=Campos_x_Formato[[#This Row],[Lista]] -> TRUE
A185: 2275 | B185: 25 | C185: Prevalidador_Tributario_Informantes.xlsm | D185: *26 | E185: Número de Identificación del Tercero | F185: A | G185: 20 | H185: S | I185: Indique el número de identificación que corresponda al tercero. Cuando sean transacciones con personas o entidades del exterior que no posea Número, Código o Clave Fiscal deberá informarse con Nit 444444001 aumentando en una unidad cada relacionado hasta el 444449999. | K185: E0149 | L185: nit | N185: Número de Identificación del Tercero | O185: 624 | R185: =Campos_x_Formato[[#This Row],[Columna1]]=Campos_x_Formato[[#This Row],[Lista]] -> TRUE
A186: 2275 | B186: 35 | C186: Prevalidador_Tributario_Informantes.xlsm | D186: 27 | E186: Primer apellido | F186: A | G186: 60 | H186: N | I186: Indique el Primer Apellido del tercero . Si es una persona jurídica, deje este espacio en blanco | K186: E0072(31) | L186: pap | N186: Primer apellido | O186: 625 | R186: =Campos_x_Formato[[#This Row],[Columna1]]=Campos_x_Formato[[#This Row],[Lista]] -> TRUE
A187: 2275 | B187: 35 | C187: Prevalidador_Tributario_Informantes.xlsm | D187: 28 | E187: Segundo apellido | F187: A | G187: 60 | H187: N | I187: Indique el Primer Apellido del tercero. Si no tiene segundo apellido o si es una persona jurídica, deje este espacio en blanco | K187: E0054 | L187: sap | N187: Segundo apellido | O187: 626 | R187: =Campos_x_Formato[[#This Row],[Columna1]]=Campos_x_Formato[[#This Row],[Lista]] -> TRUE
A188: 2275 | B188: 35 | C188: Prevalidador_Tributario_Informantes.xlsm | D188: 29 | E188: Primer nombre | F188: A | G188: 60 | H188: N | I188: Indique el Primer Nombre del tercero . Si es una persona jurídica, deje este espacio en blanco | K188: E0072(31) | L188: pno | N188: Primer nombre | O188: 627 | R188: =Campos_x_Formato[[#This Row],[Columna1]]=Campos_x_Formato[[#This Row],[Lista]] -> TRUE
A189: 2275 | B189: 35 | C189: Prevalidador_Tributario_Informantes.xlsm | D189: 30 | E189: Otros nombres | F189: A | G189: 60 | H189: N | I189: Indique el Otro Nombre del tercero. Si no tiene otro nombre o si es una persona jurídica, deje este espacio en blanco | K189: E0054 | L189: ono | N189: Otros nombres | O189: 628 | R189: =Campos_x_Formato[[#This Row],[Columna1]]=Campos_x_Formato[[#This Row],[Lista]] -> TRUE
A190: 2275 | B190: 132 | C190: Prevalidador_Tributario_Informantes.xlsm | D190: 31 | E190: Razón Social | F190: A | G190: 450 | H190: N | I190: Indique la razón social del Tercero. Si es una persona natural, deje la casilla en blanco. | K190: E0073(27|29) | L190: raz | N190: Razón Social | O190: 629 | R190: =Campos_x_Formato[[#This Row],[Columna1]]=Campos_x_Formato[[#This Row],[Lista]] -> TRUE
A191: 2275 | B191: 70 | C191: Prevalidador_Tributario_Informantes.xlsm | D191: 32 | E191: Dirección | F191: A | G191: 200 | H191: N | I191: Indique la dirreccion del tercero que esta informando | K191: E0131(35|169|8) | L191: dir | N191: Dirección | O191: 630 | R191: =Campos_x_Formato[[#This Row],[Columna1]]=Campos_x_Formato[[#This Row],[Lista]] -> TRUE
A192: 2275 | B192: 25 | C192: Prevalidador_Tributario_Informantes.xlsm | D192: 33 | E192: Código departamento | F192: N | G192: 2 | H192: N | I192: Seleccione el codigo departamento de la direccion informada | K192: E0075 | L192: dpto | N192: Código departamento | O192: 631 | P192: Departamentos_@pais@ | Q192: Departamentos_@pais@ | R192: =Campos_x_Formato[[#This Row],[Columna1]]=Campos_x_Formato[[#This Row],[Lista]] -> TRUE
A193: 2275 | B193: 25 | C193: Prevalidador_Tributario_Informantes.xlsm | D193: 34 | E193: Código municipio | F193: N | G193: 3 | H193: N | I193: Seleccione el codigo municipio de la direccion informada | K193: E0076 | L193: mun | N193: Código municipio | O193: 632 | P193: Municipios_@dpto@ | Q193: Municipios_@dpto@ | R193: =Campos_x_Formato[[#This Row],[Columna1]]=Campos_x_Formato[[#This Row],[Lista]] -> TRUE
A194: 2275 | B194: 25 | C194: Prevalidador_Tributario_Informantes.xlsm | D194: 35 | E194: Código País | F194: N | G194: 4 | H194: S | I194: Seleccióne el codgo del pais del tercero informado | K194: E0087 | L194: pais | N194: Código País | O194: 633 | P194: Paises | Q194: Paises | R194: =Campos_x_Formato[[#This Row],[Columna1]]=Campos_x_Formato[[#This Row],[Lista]] -> TRUE
A195: 2275 | B195: 32 | C195: Prevalidador_Tributario_Informantes.xlsm | D195: 36 | E195: Buzón, correo o dirección electrónicos | F195: A | G195: 50 | H195: N | I195: Indique el correo electronico | K195: E0147 | L195: email | N195: Buzón, correo o dirección electrónicos | O195: 634 | R195: =Campos_x_Formato[[#This Row],[Columna1]]=Campos_x_Formato[[#This Row],[Lista]] -> TRUE
A196: 2275 | B196: 25 | C196: Prevalidador_Tributario_Informantes.xlsm | D196: 37 | E196: Valor del ingreso no constitutivo de renta ni ganancia ocasional Solicitado | F196: N | G196: 18 | H196: S | I196: Informe el valor del ingreso no constitutivo de renta ni ganacia | K196: E0120 | L196: vrenta | N196: Valor del ingreso no constitutivo de renta ni ganancia ocasional Solicitado | O196: 635 | R196: =Campos_x_Formato[[#This Row],[Columna1]]=Campos_x_Formato[[#This Row],[Lista]] -> TRUE
A197: 2276 | B197: 25 | C197: Prevalidador_Tributario_Informantes.xlsm | D197: *24 | E197: Entidad Informante | F197: N | G197: 2 | H197: S | I197: Indique el Tipo de entidad | L197: entinfo | N197: Entidad Informante | O197: 636 | P197: DEntidadInfor | Q197: DEntidadInfor | R197: =Campos_x_Formato[[#This Row],[Columna1]]=Campos_x_Formato[[#This Row],[Lista]] -> TRUE
A198: 2276 | B198: 25 | C198: Prevalidador_Tributario_Informantes.xlsm | D198: *25 | E198: Tipo de documento del beneficiario | F198: N | G198: 2 | H198: S | I198: Indique el Tipo de Documento del Beneficiario | L198: tdocb | N198: Tipo de documento del beneficiario | O198: 637 | P198: DTiposDoctoBB | Q198: DTiposDoctoBB | R198: =Campos_x_Formato[[#This Row],[Columna1]]=Campos_x_Formato[[#This Row],[Lista]] -> TRUE
A199: 2276 | B199: 25 | C199: Prevalidador_Tributario_Informantes.xlsm | D199: *26 | E199: Número de Identificación del beneficiario | F199: A | G199: 20 | H199: S | I199: Indique el número de identificación que corresponda al Beneficiario | K199: E0133 | L199: nitb | N199: Número de Identificación del beneficiario | O199: 638 | R199: =Campos_x_Formato[[#This Row],[Columna1]]=Campos_x_Formato[[#This Row],[Lista]] -> TRUE
A200: 2276 | B200: 35 | C200: Prevalidador_Tributario_Informantes.xlsm | D200: 27 | E200: Primer Apellido del beneficiario | F200: A | G200: 60 | H200: N | I200: Indique el Primer Apellido del Beneficiario | K200: E0311 | L200: pap | N200: Primer Apellido del beneficiario | O200: 639 | R200: =Campos_x_Formato[[#This Row],[Columna1]]=Campos_x_Formato[[#This Row],[Lista]] -> TRUE
... 1231 more rows

Sheet Terceros (hidden)
A1: Formato | B1: NIT | C1: DV | D1: Primer apellido | E1: Segundo apellido | F1: Primer nombre | G1: Otros nombres | H1: Razón social | I1: Estado
A2: 1001 | B2: nid | D2: apl1 | E2: apl2 | F2: nom1 | G2: nom2 | H2: raz | I2: 1
A3: 1003 | B3: nid | D3: apl1 | E3: apl2 | F3: nom1 | G3: nom2 | H3: raz | I3: 1
A4: 1004 | B4: nit | D4: pap | E4: sap | F4: pno | G4: ono | H4: raz | I4: 1
A5: 1005 | B5: nid | D5: apl1 | E5: apl2 | F5: nom1 | G5: nom2 | H5: raz | I5: 1
A6: 1006 | B6: nid | D6: apl1 | E6: apl2 | F6: nom1 | G6: nom2 | H6: raz | I6: 1
A7: 1007 | B7: nid | D7: apl1 | E7: apl2 | F7: nom1 | G7: nom2 | H7: raz | I7: 1
A8: 1008 | B8: nid | D8: apl1 | E8: apl2 | F8: nom1 | G8: nom2 | H8: raz | I8: 1
A9: 1009 | B9: nid | D9: apl1 | E9: apl2 | F9: nom1 | G9: nom2 | H9: raz | I9: 1
A10: 1010 | B10: nid | D10: apl1 | E10: apl2 | F10: nom1 | G10: nom2 | H10: raz | I10: 1
A11: 1012 | B11: nid | D11: apl1 | E11: apl2 | F11: nom1 | G11: nom2 | H11: raz | I11: 1
A12: 1013 | B12: nid | D12: apl1 | E12: apl2 | F12: nom1 | G12: nom2 | H12: raz | I12: 1
A13: 1014 | B13: nid | D13: apl1 | E13: apl2 | F13: nom1 | G13: nom2 | H13: raz | I13: 1
A14: 1019 | B14: nid | D14: apl1 | E14: apl2 | F14: nom1 | G14: nom2 | H14: raz | I14: 1
A15: 1020 | B15: nid | D15: apl1 | E15: apl2 | F15: nom1 | G15: nom2 | H15: raz | I15: 1
A16: 1021 | B16: nid | D16: apl1 | E16: apl2 | F16: nom1 | G16: nom2 | H16: raz | I16: 1
A17: 1022 | B17: nita | D17: papa | E17: sapa | F17: pnoa | G17: onoa | I17: 1
A18: 1023 | B18: nid | D18: apl1 | E18: apl2 | F18: nom1 | G18: nom2 | H18: raz | I18: 1
A19: 1024 | B19: nit | D19: apl1 | E19: apl2 | F19: nom1 | G19: nom2 | H19: raz | I19: 1
A20: 1026 | B20: nid | D20: apl1 | E20: apl2 | F20: nom1 | G20: nom2 | H20: raz | I20: 1
A21: 1028 | B21: nid | D21: apl1 | E21: apl2 | F21: nom1 | G21: nom2 | I21: 1
A22: 1032 | B22: nid | D22: apl1 | E22: apl2 | F22: nom1 | G22: nom2 | H22: raz | I22: 1
A23: 1032 | B23: nida | D23: apl1a | E23: apl2a | F23: nom1a | G23: nom2a | H23: raza | I23: 2
A24: 1035 | B24: nid | D24: apl1 | E24: apl2 | F24: nom1 | G24: nom2 | H24: raz | I24: 1
A25: 1036 | H25: razs | I25: 1
A26: 1037 | B26: nit | D26: apl1 | E26: apl2 | F26: nom1 | G26: nom2 | H26: raz | I26: 1
A27: 1038 | B27: nit | H27: raz | I27: 1
A28: 1039 | B28: nit | H28: raz | I28: 1
A29: 1041 | B29: nit | H29: raz | I29: 1
A30: 1042 | B30: nid | D30: apl1 | E30: apl2 | F30: nom1 | G30: nom2 | H30: raz | I30: 1
A31: 1056 | B31: nid | D31: apl1 | E31: apl2 | F31: nom1 | G31: nom2 | H31: raz | I31: 1
A32: 1058 | B32: nid | D32: apl1 | E32: apl2 | F32: nom1 | G32: nom2 | H32: raz | I32: 1
A33: 1159 | H33: raz | I33: 1
A34: 1406 | B34: nit | D34: pap | E34: sap | F34: pno | G34: ono | H34: raz | I34: 1
A35: 1476 | B35: nit | D35: pap | E35: sap | F35: pno | G35: ono | H35: raz | I35: 1
A36: 1480 | B36: nit | D36: pap | E36: sap | F36: pno | G36: ono | H36: raz | I36: 1
A37: 1481 | B37: nit | D37: pap | E37: sap | F37: pno | G37: ono | H37: raz | I37: 1
A38: 1647 | B38: nid | D38: apl1 | E38: apl2 | F38: nom1 | G38: nom2 | H38: raz | I38: 1
A39: 1647 | B39: nid2i | D39: apl1i | E39: apl2i | F39: nom1i | G39: nom2i | H39: razi | I39: 2
A40: 2273 | B40: nite | H40: raze | I40: 1
A41: 2273 | B41: niti | D41: aplinv1 | E41: aplinv2 | F41: pnoi | G41: onoi | H41: razi | I41: 2
A42: 2274 | B42: nita | D42: pap | E42: sap | F42: pno | G42: ono | I42: 1
A43: 2275 | B43: nit | D43: pap | E43: sap | F43: pno | G43: ono | H43: raz | I43: 1
A44: 2276 | B44: nitb | D44: pap | E44: sap | F44: pno | G44: ono | I44: 1
A45: 2277 | B45: nita | D45: papa | E45: sapa | F45: pnoa | G45: onoa | I45: 1
A46: 2279 | B46: nitt | H46: raz | I46: 1
A47: 2280 | B47: nite | D47: pap | E47: sap | F47: pno | G47: ono | I47: 1
A48: 2574 | B48: nid | D48: apl1 | E48: apl2 | F48: nom1 | G48: nom2 | H48: raz | I48: 1
A49: 2574 | B49: nidov | D49: apl1ov | E49: apl2ov | F49: nom1ov | G49: nom2ov | H49: razov | I49: 2
A50: 2575 | B50: nid | F50: prinom | G50: otronom | H50: raz | I50: 1
A51: 2631 | B51: nit | D51: pap | E51: sap | F51: pno | G51: ono | H51: raz | I51: 1
A52: 2683 | B52: nit | H52: raz | I52: 1
A53: 5247 | B53: nid | D53: apl1 | E53: apl2 | F53: nom1 | G53: nom2 | H53: raz | I53: 1
A54: 5248 | B54: nid | D54: apl1 | E54: apl2 | F54: nom1 | G54: nom2 | H54: raz | I54: 1
A55: 5249 | B55: nid | D55: apl1 | E55: apl2 | F55: nom1 | G55: nom2 | H55: raz | I55: 1
A56: 5250 | B56: nid | D56: apl1 | E56: apl2 | F56: nom1 | G56: nom2 | H56: raz | I56: 1
A57: 5251 | B57: nid | D57: apl1 | E57: apl2 | F57: nom1 | G57: nom2 | H57: raz | I57: 1
A58: 5252 | B58: nid | D58: apl1 | E58: apl2 | F58: nom1 | G58: nom2 | H58: raz | I58: 1
A92: NIT | B92: DV | C92: Primer apellido | D92: Segundo apellido | E92: Primer nombre | F92: Otros nombres | G92: Razón social | H92: Estado

Sheet Listas (hidden)
A1: Renombrado | B1: Mostrar_Lista | C1: ID | D1: Descripcion | E1: Orden | F1: Lista | G1: Prevalidador
A2: =Listas[[#This Row],[Lista]]&"_"&SUBSTITUTE(SUBSTITUTE(SUBSTITUTE(Listas[[#This Row],[Prevalidador]],".xlsm",""),"Prevalidador_Tributario_",""),"Prevalidador_","") -> Departamentos_169_Informantes | B2: =Listas[[#This Row],[ID]]&" "&IF(Listas[[#This Row],[Descripcion]]="","","- "&Listas[[#This Row],[Descripcion]]) -> 91 - Amazonas | C2: 91 | D2: Amazonas | E2: 22 | F2: Departamentos_169 | G2: Prevalidador_Tributario_Informantes.xlsm
A3: =Listas[[#This Row],[Lista]]&"_"&SUBSTITUTE(SUBSTITUTE(SUBSTITUTE(Listas[[#This Row],[Prevalidador]],".xlsm",""),"Prevalidador_Tributario_",""),"Prevalidador_","") -> Departamentos_169_Informantes | B3: =Listas[[#This Row],[ID]]&" "&IF(Listas[[#This Row],[Descripcion]]="","","- "&Listas[[#This Row],[Descripcion]]) -> 05 - Antioquia | C3: 05 | D3: Antioquia | E3: 23 | F3: Departamentos_169 | G3: Prevalidador_Tributario_Informantes.xlsm
A4: =Listas[[#This Row],[Lista]]&"_"&SUBSTITUTE(SUBSTITUTE(SUBSTITUTE(Listas[[#This Row],[Prevalidador]],".xlsm",""),"Prevalidador_Tributario_",""),"Prevalidador_","") -> Departamentos_169_Informantes | B4: =Listas[[#This Row],[ID]]&" "&IF(Listas[[#This Row],[Descripcion]]="","","- "&Listas[[#This Row],[Descripcion]]) -> 81 - Arauca | C4: 81 | D4: Arauca | E4: 24 | F4: Departamentos_169 | G4: Prevalidador_Tributario_Informantes.xlsm
A5: =Listas[[#This Row],[Lista]]&"_"&SUBSTITUTE(SUBSTITUTE(SUBSTITUTE(Listas[[#This Row],[Prevalidador]],".xlsm",""),"Prevalidador_Tributario_",""),"Prevalidador_","") -> Departamentos_169_Informantes | B5: =Listas[[#This Row],[ID]]&" "&IF(Listas[[#This Row],[Descripcion]]="","","- "&Listas[[#This Row],[Descripcion]]) -> 08 - Atlántico | C5: 08 | D5: Atlántico | E5: 25 | F5: Departamentos_169 | G5: Prevalidador_Tributario_Informantes.xlsm
A6: =Listas[[#This Row],[Lista]]&"_"&SUBSTITUTE(SUBSTITUTE(SUBSTITUTE(Listas[[#This Row],[Prevalidador]],".xlsm",""),"Prevalidador_Tributario_",""),"Prevalidador_","") -> Departamentos_169_Informantes | B6: =Listas[[#This Row],[ID]]&" "&IF(Listas[[#This Row],[Descripcion]]="","","- "&Listas[[#This Row],[Descripcion]]) -> 11 - Bogotá D.C. | C6: 11 | D6: Bogotá D.C. | E6: 26 | F6: Departamentos_169 | G6: Prevalidador_Tributario_Informantes.xlsm
A7: =Listas[[#This Row],[Lista]]&"_"&SUBSTITUTE(SUBSTITUTE(SUBSTITUTE(Listas[[#This Row],[Prevalidador]],".xlsm",""),"Prevalidador_Tributario_",""),"Prevalidador_","") -> Departamentos_169_Informantes | B7: =Listas[[#This Row],[ID]]&" "&IF(Listas[[#This Row],[Descripcion]]="","","- "&Listas[[#This Row],[Descripcion]]) -> 13 - Bolívar | C7: 13 | D7: Bolívar | E7: 27 | F7: Departamentos_169 | G7: Prevalidador_Tributario_Informantes.xlsm
A8: =Listas[[#This Row],[Lista]]&"_"&SUBSTITUTE(SUBSTITUTE(SUBSTITUTE(Listas[[#This Row],[Prevalidador]],".xlsm",""),"Prevalidador_Tributario_",""),"Prevalidador_","") -> Departamentos_169_Informantes | B8: =Listas[[#This Row],[ID]]&" "&IF(Listas[[#This Row],[Descripcion]]="","","- "&Listas[[#This Row],[Descripcion]]) -> 15 - Boyacá | C8: 15 | D8: Boyacá | E8: 28 | F8: Departamentos_169 | G8: Prevalidador_Tributario_Informantes.xlsm
A9: =Listas[[#This Row],[Lista]]&"_"&SUBSTITUTE(SUBSTITUTE(SUBSTITUTE(Listas[[#This Row],[Prevalidador]],".xlsm",""),"Prevalidador_Tributario_",""),"Prevalidador_","") -> Departamentos_169_Informantes | B9: =Listas[[#This Row],[ID]]&" "&IF(Listas[[#This Row],[Descripcion]]="","","- "&Listas[[#This Row],[Descripcion]]) -> 17 - Caldas | C9: 17 | D9: Caldas | E9: 29 | F9: Departamentos_169 | G9: Prevalidador_Tributario_Informantes.xlsm
A10: =Listas[[#This Row],[Lista]]&"_"&SUBSTITUTE(SUBSTITUTE(SUBSTITUTE(Listas[[#This Row],[Prevalidador]],".xlsm",""),"Prevalidador_Tributario_",""),"Prevalidador_","") -> Departamentos_169_Informantes | B10: =Listas[[#This Row],[ID]]&" "&IF(Listas[[#This Row],[Descripcion]]="","","- "&Listas[[#This Row],[Descripcion]]) -> 18 - Caquetá | C10: 18 | D10: Caquetá | E10: 30 | F10: Departamentos_169 | G10: Prevalidador_Tributario_Informantes.xlsm
A11: =Listas[[#This Row],[Lista]]&"_"&SUBSTITUTE(SUBSTITUTE(SUBSTITUTE(Listas[[#This Row],[Prevalidador]],".xlsm",""),"Prevalidador_Tributario_",""),"Prevalidador_","") -> Departamentos_169_Informantes | B11: =Listas[[#This Row],[ID]]&" "&IF(Listas[[#This Row],[Descripcion]]="","","- "&Listas[[#This Row],[Descripcion]]) -> 85 - Casanare | C11: 85 | D11: Casanare | E11: 31 | F11: Departamentos_169 | G11: Prevalidador_Tributario_Informantes.xlsm
A12: =Listas[[#This Row],[Lista]]&"_"&SUBSTITUTE(SUBSTITUTE(SUBSTITUTE(Listas[[#This Row],[Prevalidador]],".xlsm",""),"Prevalidador_Tributario_",""),"Prevalidador_","") -> Departamentos_169_Informantes | B12: =Listas[[#This Row],[ID]]&" "&IF(Listas[[#This Row],[Descripcion]]="","","- "&Listas[[#This Row],[Descripcion]]) -> 19 - Cauca | C12: 19 | D12: Cauca | E12: 32 | F12: Departamentos_169 | G12: Prevalidador_Tributario_Informantes.xlsm
A13: =Listas[[#This Row],[Lista]]&"_"&SUBSTITUTE(SUBSTITUTE(SUBSTITUTE(Listas[[#This Row],[Prevalidador]],".xlsm",""),"Prevalidador_Tributario_",""),"Prevalidador_","") -> Departamentos_169_Informantes | B13: =Listas[[#This Row],[ID]]&" "&IF(Listas[[#This Row],[Descripcion]]="","","- "&Listas[[#This Row],[Descripcion]]) -> 20 - Cesar | C13: 20 | D13: Cesar | E13: 33 | F13: Departamentos_169 | G13: Prevalidador_Tributario_Informantes.xlsm
A14: =Listas[[#This Row],[Lista]]&"_"&SUBSTITUTE(SUBSTITUTE(SUBSTITUTE(Listas[[#This Row],[Prevalidador]],".xlsm",""),"Prevalidador_Tributario_",""),"Prevalidador_","") -> Departamentos_169_Informantes | B14: =Listas[[#This Row],[ID]]&" "&IF(Listas[[#This Row],[Descripcion]]="","","- "&Listas[[#This Row],[Descripcion]]) -> 27 - Chocó | C14: 27 | D14: Chocó | E14: 34 | F14: Departamentos_169 | G14: Prevalidador_Tributario_Informantes.xlsm
A15: =Listas[[#This Row],[Lista]]&"_"&SUBSTITUTE(SUBSTITUTE(SUBSTITUTE(Listas[[#This Row],[Prevalidador]],".xlsm",""),"Prevalidador_Tributario_",""),"Prevalidador_","") -> Departamentos_169_Informantes | B15: =Listas[[#This Row],[ID]]&" "&IF(Listas[[#This Row],[Descripcion]]="","","- "&Listas[[#This Row],[Descripcion]]) -> 23 - Córdoba | C15: 23 | D15: Córdoba | E15: 35 | F15: Departamentos_169 | G15: Prevalidador_Tributario_Informantes.xlsm
A16: =Listas[[#This Row],[Lista]]&"_"&SUBSTITUTE(SUBSTITUTE(SUBSTITUTE(Listas[[#This Row],[Prevalidador]],".xlsm",""),"Prevalidador_Tributario_",""),"Prevalidador_","") -> Departamentos_169_Informantes | B16: =Listas[[#This Row],[ID]]&" "&IF(Listas[[#This Row],[Descripcion]]="","","- "&Listas[[#This Row],[Descripcion]]) -> 25 - Cundinamarca | C16: 25 | D16: Cundinamarca | E16: 36 | F16: Departamentos_169 | G16: Prevalidador_Tributario_Informantes.xlsm
A17: =Listas[[#This Row],[Lista]]&"_"&SUBSTITUTE(SUBSTITUTE(SUBSTITUTE(Listas[[#This Row],[Prevalidador]],".xlsm",""),"Prevalidador_Tributario_",""),"Prevalidador_","") -> Departamentos_169_Informantes | B17: =Listas[[#This Row],[ID]]&" "&IF(Listas[[#This Row],[Descripcion]]="","","- "&Listas[[#This Row],[Descripcion]]) -> 94 - Guainía | C17: 94 | D17: Guainía | E17: 37 | F17: Departamentos_169 | G17: Prevalidador_Tributario_Informantes.xlsm
A18: =Listas[[#This Row],[Lista]]&"_"&SUBSTITUTE(SUBSTITUTE(SUBSTITUTE(Listas[[#This Row],[Prevalidador]],".xlsm",""),"Prevalidador_Tributario_",""),"Prevalidador_","") -> Departamentos_169_Informantes | B18: =Listas[[#This Row],[ID]]&" "&IF(Listas[[#This Row],[Descripcion]]="","","- "&Listas[[#This Row],[Descripcion]]) -> 95 - Guaviare | C18: 95 | D18: Guaviare | E18: 38 | F18: Departamentos_169 | G18: Prevalidador_Tributario_Informantes.xlsm
A19: =Listas[[#This Row],[Lista]]&"_"&SUBSTITUTE(SUBSTITUTE(SUBSTITUTE(Listas[[#This Row],[Prevalidador]],".xlsm",""),"Prevalidador_Tributario_",""),"Prevalidador_","") -> Departamentos_169_Informantes | B19: =Listas[[#This Row],[ID]]&" "&IF(Listas[[#This Row],[Descripcion]]="","","- "&Listas[[#This Row],[Descripcion]]) -> 41 - Huila | C19: 41 | D19: Huila | E19: 39 | F19: Departamentos_169 | G19: Prevalidador_Tributario_Informantes.xlsm
A20: =Listas[[#This Row],[Lista]]&"_"&SUBSTITUTE(SUBSTITUTE(SUBSTITUTE(Listas[[#This Row],[Prevalidador]],".xlsm",""),"Prevalidador_Tributario_",""),"Prevalidador_","") -> Departamentos_169_Informantes | B20: =Listas[[#This Row],[ID]]&" "&IF(Listas[[#This Row],[Descripcion]]="","","- "&Listas[[#This Row],[Descripcion]]) -> 44 - La Guajira | C20: 44 | D20: La Guajira | E20: 40 | F20: Departamentos_169 | G20: Prevalidador_Tributario_Informantes.xlsm
A21: =Listas[[#This Row],[Lista]]&"_"&SUBSTITUTE(SUBSTITUTE(SUBSTITUTE(Listas[[#This Row],[Prevalidador]],".xlsm",""),"Prevalidador_Tributario_",""),"Prevalidador_","") -> Departamentos_169_Informantes | B21: =Listas[[#This Row],[ID]]&" "&IF(Listas[[#This Row],[Descripcion]]="","","- "&Listas[[#This Row],[Descripcion]]) -> 47 - Magdalena | C21: 47 | D21: Magdalena | E21: 41 | F21: Departamentos_169 | G21: Prevalidador_Tributario_Informantes.xlsm
A22: =Listas[[#This Row],[Lista]]&"_"&SUBSTITUTE(SUBSTITUTE(SUBSTITUTE(Listas[[#This Row],[Prevalidador]],".xlsm",""),"Prevalidador_Tributario_",""),"Prevalidador_","") -> Departamentos_169_Informantes | B22: =Listas[[#This Row],[ID]]&" "&IF(Listas[[#This Row],[Descripcion]]="","","- "&Listas[[#This Row],[Descripcion]]) -> 50 - Meta | C22: 50 | D22: Meta | E22: 42 | F22: Departamentos_169 | G22: Prevalidador_Tributario_Informantes.xlsm
A23: =Listas[[#This Row],[Lista]]&"_"&SUBSTITUTE(SUBSTITUTE(SUBSTITUTE(Listas[[#This Row],[Prevalidador]],".xlsm",""),"Prevalidador_Tributario_",""),"Prevalidador_","") -> Departamentos_169_Informantes | B23: =Listas[[#This Row],[ID]]&" "&IF(Listas[[#This Row],[Descripcion]]="","","- "&Listas[[#This Row],[Descripcion]]) -> 52 - Nariño | C23: 52 | D23: Nariño | E23: 43 | F23: Departamentos_169 | G23: Prevalidador_Tributario_Informantes.xlsm
A24: =Listas[[#This Row],[Lista]]&"_"&SUBSTITUTE(SUBSTITUTE(SUBSTITUTE(Listas[[#This Row],[Prevalidador]],".xlsm",""),"Prevalidador_Tributario_",""),"Prevalidador_","") -> Departamentos_169_Informantes | B24: =Listas[[#This Row],[ID]]&" "&IF(Listas[[#This Row],[Descripcion]]="","","- "&Listas[[#This Row],[Descripcion]]) -> 54 - Norte de Santander | C24: 54 | D24: Norte de Santander | E24: 44 | F24: Departamentos_169 | G24: Prevalidador_Tributario_Informantes.xlsm
A25: =Listas[[#This Row],[Lista]]&"_"&SUBSTITUTE(SUBSTITUTE(SUBSTITUTE(Listas[[#This Row],[Prevalidador]],".xlsm",""),"Prevalidador_Tributario_",""),"Prevalidador_","") -> Departamentos_169_Informantes | B25: =Listas[[#This Row],[ID]]&" "&IF(Listas[[#This Row],[Descripcion]]="","","- "&Listas[[#This Row],[Descripcion]]) -> 86 - Putumayo | C25: 86 | D25: Putumayo | E25: 45 | F25: Departamentos_169 | G25: Prevalidador_Tributario_Informantes.xlsm
A26: =Listas[[#This Row],[Lista]]&"_"&SUBSTITUTE(SUBSTITUTE(SUBSTITUTE(Listas[[#This Row],[Prevalidador]],".xlsm",""),"Prevalidador_Tributario_",""),"Prevalidador_","") -> Departamentos_169_Informantes | B26: =Listas[[#This Row],[ID]]&" "&IF(Listas[[#This Row],[Descripcion]]="","","- "&Listas[[#This Row],[Descripcion]]) -> 63 - Quindío | C26: 63 | D26: Quindío | E26: 46 | F26: Departamentos_169 | G26: Prevalidador_Tributario_Informantes.xlsm
A27: =Listas[[#This Row],[Lista]]&"_"&SUBSTITUTE(SUBSTITUTE(SUBSTITUTE(Listas[[#This Row],[Prevalidador]],".xlsm",""),"Prevalidador_Tributario_",""),"Prevalidador_","") -> Departamentos_169_Informantes | B27: =Listas[[#This Row],[ID]]&" "&IF(Listas[[#This Row],[Descripcion]]="","","- "&Listas[[#This Row],[Descripcion]]) -> 66 - Risaralda | C27: 66 | D27: Risaralda | E27: 47 | F27: Departamentos_169 | G27: Prevalidador_Tributario_Informantes.xlsm
A28: =Listas[[#This Row],[Lista]]&"_"&SUBSTITUTE(SUBSTITUTE(SUBSTITUTE(Listas[[#This Row],[Prevalidador]],".xlsm",""),"Prevalidador_Tributario_",""),"Prevalidador_","") -> Departamentos_169_Informantes | B28: =Listas[[#This Row],[ID]]&" "&IF(Listas[[#This Row],[Descripcion]]="","","- "&Listas[[#This Row],[Descripcion]]) -> 88 - San Andrés | C28: 88 | D28: San Andrés | E28: 48 | F28: Departamentos_169 | G28: Prevalidador_Tributario_Informantes.xlsm
A29: =Listas[[#This Row],[Lista]]&"_"&SUBSTITUTE(SUBSTITUTE(SUBSTITUTE(Listas[[#This Row],[Prevalidador]],".xlsm",""),"Prevalidador_Tributario_",""),"Prevalidador_","") -> Departamentos_169_Informantes | B29: =Listas[[#This Row],[ID]]&" "&IF(Listas[[#This Row],[Descripcion]]="","","- "&Listas[[#This Row],[Descripcion]]) -> 68 - Santander | C29: 68 | D29: Santander | E29: 49 | F29: Departamentos_169 | G29: Prevalidador_Tributario_Informantes.xlsm
A30: =Listas[[#This Row],[Lista]]&"_"&SUBSTITUTE(SUBSTITUTE(SUBSTITUTE(Listas[[#This Row],[Prevalidador]],".xlsm",""),"Prevalidador_Tributario_",""),"Prevalidador_","") -> Departamentos_169_Informantes | B30: =Listas[[#This Row],[ID]]&" "&IF(Listas[[#This Row],[Descripcion]]="","","- "&Listas[[#This Row],[Descripcion]]) -> 70 - Sucre | C30: 70 | D30: Sucre | E30: 50 | F30: Departamentos_169 | G30: Prevalidador_Tributario_Informantes.xlsm
A31: =Listas[[#This Row],[Lista]]&"_"&SUBSTITUTE(SUBSTITUTE(SUBSTITUTE(Listas[[#This Row],[Prevalidador]],".xlsm",""),"Prevalidador_Tributario_",""),"Prevalidador_","") -> Departamentos_169_Informantes | B31: =Listas[[#This Row],[ID]]&" "&IF(Listas[[#This Row],[Descripcion]]="","","- "&Listas[[#This Row],[Descripcion]]) -> 73 - Tolima | C31: 73 | D31: Tolima | E31: 51 | F31: Departamentos_169 | G31: Prevalidador_Tributario_Informantes.xlsm
A32: =Listas[[#This Row],[Lista]]&"_"&SUBSTITUTE(SUBSTITUTE(SUBSTITUTE(Listas[[#This Row],[Prevalidador]],".xlsm",""),"Prevalidador_Tributario_",""),"Prevalidador_","") -> Departamentos_169_Informantes | B32: =Listas[[#This Row],[ID]]&" "&IF(Listas[[#This Row],[Descripcion]]="","","- "&Listas[[#This Row],[Descripcion]]) -> 76 - Valle del Cauca | C32: 76 | D32: Valle del Cauca | E32: 52 | F32: Departamentos_169 | G32: Prevalidador_Tributario_Informantes.xlsm
A33: =Listas[[#This Row],[Lista]]&"_"&SUBSTITUTE(SUBSTITUTE(SUBSTITUTE(Listas[[#This Row],[Prevalidador]],".xlsm",""),"Prevalidador_Tributario_",""),"Prevalidador_","") -> Departamentos_169_Informantes | B33: =Listas[[#This Row],[ID]]&" "&IF(Listas[[#This Row],[Descripcion]]="","","- "&Listas[[#This Row],[Descripcion]]) -> 97 - Vaupés | C33: 97 | D33: Vaupés | E33: 53 | F33: Departamentos_169 | G33: Prevalidador_Tributario_Informantes.xlsm
A34: =Listas[[#This Row],[Lista]]&"_"&SUBSTITUTE(SUBSTITUTE(SUBSTITUTE(Listas[[#This Row],[Prevalidador]],".xlsm",""),"Prevalidador_Tributario_",""),"Prevalidador_","") -> Departamentos_169_Informantes | B34: =Listas[[#This Row],[ID]]&" "&IF(Listas[[#This Row],[Descripcion]]="","","- "&Listas[[#This Row],[Descripcion]]) -> 99 - Vichada | C34: 99 | D34: Vichada | E34: 54 | F34: Departamentos_169 | G34: Prevalidador_Tributario_Informantes.xlsm
A35: =Listas[[#This Row],[Lista]]&"_"&SUBSTITUTE(SUBSTITUTE(SUBSTITUTE(Listas[[#This Row],[Prevalidador]],".xlsm",""),"Prevalidador_Tributario_",""),"Prevalidador_","") -> Departamentos_169_E_Financieras | B35: =Listas[[#This Row],[ID]]&" "&IF(Listas[[#This Row],[Descripcion]]="","","- "&Listas[[#This Row],[Descripcion]]) -> 91 - Amazonas | C35: 91 | D35: Amazonas | E35: 392 | F35: Departamentos_169 | G35: Prevalidador_Tributario_E_Financieras.xlsm
A36: =Listas[[#This Row],[Lista]]&"_"&SUBSTITUTE(SUBSTITUTE(SUBSTITUTE(Listas[[#This Row],[Prevalidador]],".xlsm",""),"Prevalidador_Tributario_",""),"Prevalidador_","") -> Departamentos_169_E_Financieras | B36: =Listas[[#This Row],[ID]]&" "&IF(Listas[[#This Row],[Descripcion]]="","","- "&Listas[[#This Row],[Descripcion]]) -> 05 - Antioquia | C36: 05 | D36: Antioquia | E36: 393 | F36: Departamentos_169 | G36: Prevalidador_Tributario_E_Financieras.xlsm
A37: =Listas[[#This Row],[Lista]]&"_"&SUBSTITUTE(SUBSTITUTE(SUBSTITUTE(Listas[[#This Row],[Prevalidador]],".xlsm",""),"Prevalidador_Tributario_",""),"Prevalidador_","") -> Departamentos_169_E_Financieras | B37: =Listas[[#This Row],[ID]]&" "&IF(Listas[[#This Row],[Descripcion]]="","","- "&Listas[[#This Row],[Descripcion]]) -> 81 - Arauca | C37: 81 | D37: Arauca | E37: 394 | F37: Departamentos_169 | G37: Prevalidador_Tributario_E_Financieras.xlsm
A38: =Listas[[#This Row],[Lista]]&"_"&SUBSTITUTE(SUBSTITUTE(SUBSTITUTE(Listas[[#This Row],[Prevalidador]],".xlsm",""),"Prevalidador_Tributario_",""),"Prevalidador_","") -> Departamentos_169_E_Financieras | B38: =Listas[[#This Row],[ID]]&" "&IF(Listas[[#This Row],[Descripcion]]="","","- "&Listas[[#This Row],[Descripcion]]) -> 08 - Atlántico | C38: 08 | D38: Atlántico | E38: 395 | F38: Departamentos_169 | G38: Prevalidador_Tributario_E_Financieras.xlsm
A39: =Listas[[#This Row],[Lista]]&"_"&SUBSTITUTE(SUBSTITUTE(SUBSTITUTE(Listas[[#This Row],[Prevalidador]],".xlsm",""),"Prevalidador_Tributario_",""),"Prevalidador_","") -> Departamentos_169_E_Financieras | B39: =Listas[[#This Row],[ID]]&" "&IF(Listas[[#This Row],[Descripcion]]="","","- "&Listas[[#This Row],[Descripcion]]) -> 11 - Bogotá D.C. | C39: 11 | D39: Bogotá D.C. | E39: 396 | F39: Departamentos_169 | G39: Prevalidador_Tributario_E_Financieras.xlsm
A40: =Listas[[#This Row],[Lista]]&"_"&SUBSTITUTE(SUBSTITUTE(SUBSTITUTE(Listas[[#This Row],[Prevalidador]],".xlsm",""),"Prevalidador_Tributario_",""),"Prevalidador_","") -> Departamentos_169_E_Financieras | B40: =Listas[[#This Row],[ID]]&" "&IF(Listas[[#This Row],[Descripcion]]="","","- "&Listas[[#This Row],[Descripcion]]) -> 13 - Bolívar | C40: 13 | D40: Bolívar | E40: 397 | F40: Departamentos_169 | G40: Prevalidador_Tributario_E_Financieras.xlsm
A41: =Listas[[#This Row],[Lista]]&"_"&SUBSTITUTE(SUBSTITUTE(SUBSTITUTE(Listas[[#This Row],[Prevalidador]],".xlsm",""),"Prevalidador_Tributario_",""),"Prevalidador_","") -> Departamentos_169_E_Financieras | B41: =Listas[[#This Row],[ID]]&" "&IF(Listas[[#This Row],[Descripcion]]="","","- "&Listas[[#This Row],[Descripcion]]) -> 15 - Boyacá | C41: 15 | D41: Boyacá | E41: 398 | F41: Departamentos_169 | G41: Prevalidador_Tributario_E_Financieras.xlsm
A42: =Listas[[#This Row],[Lista]]&"_"&SUBSTITUTE(SUBSTITUTE(SUBSTITUTE(Listas[[#This Row],[Prevalidador]],".xlsm",""),"Prevalidador_Tributario_",""),"Prevalidador_","") -> Departamentos_169_E_Financieras | B42: =Listas[[#This Row],[ID]]&" "&IF(Listas[[#This Row],[Descripcion]]="","","- "&Listas[[#This Row],[Descripcion]]) -> 17 - Caldas | C42: 17 | D42: Caldas | E42: 399 | F42: Departamentos_169 | G42: Prevalidador_Tributario_E_Financieras.xlsm
A43: =Listas[[#This Row],[Lista]]&"_"&SUBSTITUTE(SUBSTITUTE(SUBSTITUTE(Listas[[#This Row],[Prevalidador]],".xlsm",""),"Prevalidador_Tributario_",""),"Prevalidador_","") -> Departamentos_169_E_Financieras | B43: =Listas[[#This Row],[ID]]&" "&IF(Listas[[#This Row],[Descripcion]]="","","- "&Listas[[#This Row],[Descripcion]]) -> 18 - Caquetá | C43: 18 | D43: Caquetá | E43: 400 | F43: Departamentos_169 | G43: Prevalidador_Tributario_E_Financieras.xlsm
A44: =Listas[[#This Row],[Lista]]&"_"&SUBSTITUTE(SUBSTITUTE(SUBSTITUTE(Listas[[#This Row],[Prevalidador]],".xlsm",""),"Prevalidador_Tributario_",""),"Prevalidador_","") -> Departamentos_169_E_Financieras | B44: =Listas[[#This Row],[ID]]&" "&IF(Listas[[#This Row],[Descripcion]]="","","- "&Listas[[#This Row],[Descripcion]]) -> 85 - Casanare | C44: 85 | D44: Casanare | E44: 401 | F44: Departamentos_169 | G44: Prevalidador_Tributario_E_Financieras.xlsm
A45: =Listas[[#This Row],[Lista]]&"_"&SUBSTITUTE(SUBSTITUTE(SUBSTITUTE(Listas[[#This Row],[Prevalidador]],".xlsm",""),"Prevalidador_Tributario_",""),"Prevalidador_","") -> Departamentos_169_E_Financieras | B45: =Listas[[#This Row],[ID]]&" "&IF(Listas[[#This Row],[Descripcion]]="","","- "&Listas[[#This Row],[Descripcion]]) -> 19 - Cauca | C45: 19 | D45: Cauca | E45: 402 | F45: Departamentos_169 | G45: Prevalidador_Tributario_E_Financieras.xlsm
A46: =Listas[[#This Row],[Lista]]&"_"&SUBSTITUTE(SUBSTITUTE(SUBSTITUTE(Listas[[#This Row],[Prevalidador]],".xlsm",""),"Prevalidador_Tributario_",""),"Prevalidador_","") -> Departamentos_169_E_Financieras | B46: =Listas[[#This Row],[ID]]&" "&IF(Listas[[#This Row],[Descripcion]]="","","- "&Listas[[#This Row],[Descripcion]]) -> 20 - Cesar | C46: 20 | D46: Cesar | E46: 403 | F46: Departamentos_169 | G46: Prevalidador_Tributario_E_Financieras.xlsm
A47: =Listas[[#This Row],[Lista]]&"_"&SUBSTITUTE(SUBSTITUTE(SUBSTITUTE(Listas[[#This Row],[Prevalidador]],".xlsm",""),"Prevalidador_Tributario_",""),"Prevalidador_","") -> Departamentos_169_E_Financieras | B47: =Listas[[#This Row],[ID]]&" "&IF(Listas[[#This Row],[Descripcion]]="","","- "&Listas[[#This Row],[Descripcion]]) -> 27 - Chocó | C47: 27 | D47: Chocó | E47: 404 | F47: Departamentos_169 | G47: Prevalidador_Tributario_E_Financieras.xlsm
A48: =Listas[[#This Row],[Lista]]&"_"&SUBSTITUTE(SUBSTITUTE(SUBSTITUTE(Listas[[#This Row],[Prevalidador]],".xlsm",""),"Prevalidador_Tributario_",""),"Prevalidador_","") -> Departamentos_169_E_Financieras | B48: =Listas[[#This Row],[ID]]&" "&IF(Listas[[#This Row],[Descripcion]]="","","- "&Listas[[#This Row],[Descripcion]]) -> 23 - Córdoba | C48: 23 | D48: Córdoba | E48: 405 | F48: Departamentos_169 | G48: Prevalidador_Tributario_E_Financieras.xlsm
A49: =Listas[[#This Row],[Lista]]&"_"&SUBSTITUTE(SUBSTITUTE(SUBSTITUTE(Listas[[#This Row],[Prevalidador]],".xlsm",""),"Prevalidador_Tributario_",""),"Prevalidador_","") -> Departamentos_169_E_Financieras | B49: =Listas[[#This Row],[ID]]&" "&IF(Listas[[#This Row],[Descripcion]]="","","- "&Listas[[#This Row],[Descripcion]]) -> 25 - Cundinamarca | C49: 25 | D49: Cundinamarca | E49: 406 | F49: Departamentos_169 | G49: Prevalidador_Tributario_E_Financieras.xlsm
A50: =Listas[[#This Row],[Lista]]&"_"&SUBSTITUTE(SUBSTITUTE(SUBSTITUTE(Listas[[#This Row],[Prevalidador]],".xlsm",""),"Prevalidador_Tributario_",""),"Prevalidador_","") -> Departamentos_169_E_Financieras | B50: =Listas[[#This Row],[ID]]&" "&IF(Listas[[#This Row],[Descripcion]]="","","- "&Listas[[#This Row],[Descripcion]]) -> 94 - Guainía | C50: 94 | D50: Guainía | E50: 407 | F50: Departamentos_169 | G50: Prevalidador_Tributario_E_Financieras.xlsm
A51: =Listas[[#This Row],[Lista]]&"_"&SUBSTITUTE(SUBSTITUTE(SUBSTITUTE(Listas[[#This Row],[Prevalidador]],".xlsm",""),"Prevalidador_Tributario_",""),"Prevalidador_","") -> Departamentos_169_E_Financieras | B51: =Listas[[#This Row],[ID]]&" "&IF(Listas[[#This Row],[Descripcion]]="","","- "&Listas[[#This Row],[Descripcion]]) -> 95 - Guaviare | C51: 95 | D51: Guaviare | E51: 408 | F51: Departamentos_169 | G51: Prevalidador_Tributario_E_Financieras.xlsm
A52: =Listas[[#This Row],[Lista]]&"_"&SUBSTITUTE(SUBSTITUTE(SUBSTITUTE(Listas[[#This Row],[Prevalidador]],".xlsm",""),"Prevalidador_Tributario_",""),"Prevalidador_","") -> Departamentos_169_E_Financieras | B52: =Listas[[#This Row],[ID]]&" "&IF(Listas[[#This Row],[Descripcion]]="","","- "&Listas[[#This Row],[Descripcion]]) -> 41 - Huila | C52: 41 | D52: Huila | E52: 409 | F52: Departamentos_169 | G52: Prevalidador_Tributario_E_Financieras.xlsm
A53: =Listas[[#This Row],[Lista]]&"_"&SUBSTITUTE(SUBSTITUTE(SUBSTITUTE(Listas[[#This Row],[Prevalidador]],".xlsm",""),"Prevalidador_Tributario_",""),"Prevalidador_","") -> Departamentos_169_E_Financieras | B53: =Listas[[#This Row],[ID]]&" "&IF(Listas[[#This Row],[Descripcion]]="","","- "&Listas[[#This Row],[Descripcion]]) -> 44 - La Guajira | C53: 44 | D53: La Guajira | E53: 410 | F53: Departamentos_169 | G53: Prevalidador_Tributario_E_Financieras.xlsm
A54: =Listas[[#This Row],[Lista]]&"_"&SUBSTITUTE(SUBSTITUTE(SUBSTITUTE(Listas[[#This Row],[Prevalidador]],".xlsm",""),"Prevalidador_Tributario_",""),"Prevalidador_","") -> Departamentos_169_E_Financieras | B54: =Listas[[#This Row],[ID]]&" "&IF(Listas[[#This Row],[Descripcion]]="","","- "&Listas[[#This Row],[Descripcion]]) -> 47 - Magdalena | C54: 47 | D54: Magdalena | E54: 411 | F54: Departamentos_169 | G54: Prevalidador_Tributario_E_Financieras.xlsm
A55: =Listas[[#This Row],[Lista]]&"_"&SUBSTITUTE(SUBSTITUTE(SUBSTITUTE(Listas[[#This Row],[Prevalidador]],".xlsm",""),"Prevalidador_Tributario_",""),"Prevalidador_","") -> Departamentos_169_E_Financieras | B55: =Listas[[#This Row],[ID]]&" "&IF(Listas[[#This Row],[Descripcion]]="","","- "&Listas[[#This Row],[Descripcion]]) -> 50 - Meta | C55: 50 | D55: Meta | E55: 412 | F55: Departamentos_169 | G55: Prevalidador_Tributario_E_Financieras.xlsm
A56: =Listas[[#This Row],[Lista]]&"_"&SUBSTITUTE(SUBSTITUTE(SUBSTITUTE(Listas[[#This Row],[Prevalidador]],".xlsm",""),"Prevalidador_Tributario_",""),"Prevalidador_","") -> Departamentos_169_E_Financieras | B56: =Listas[[#This Row],[ID]]&" "&IF(Listas[[#This Row],[Descripcion]]="","","- "&Listas[[#This Row],[Descripcion]]) -> 52 - Nariño | C56: 52 | D56: Nariño | E56: 413 | F56: Departamentos_169 | G56: Prevalidador_Tributario_E_Financieras.xlsm
A57: =Listas[[#This Row],[Lista]]&"_"&SUBSTITUTE(SUBSTITUTE(SUBSTITUTE(Listas[[#This Row],[Prevalidador]],".xlsm",""),"Prevalidador_Tributario_",""),"Prevalidador_","") -> Departamentos_169_E_Financieras | B57: =Listas[[#This Row],[ID]]&" "&IF(Listas[[#This Row],[Descripcion]]="","","- "&Listas[[#This Row],[Descripcion]]) -> 54 - Norte de Santander | C57: 54 | D57: Norte de Santander | E57: 414 | F57: Departamentos_169 | G57: Prevalidador_Tributario_E_Financieras.xlsm
A58: =Listas[[#This Row],[Lista]]&"_"&SUBSTITUTE(SUBSTITUTE(SUBSTITUTE(Listas[[#This Row],[Prevalidador]],".xlsm",""),"Prevalidador_Tributario_",""),"Prevalidador_","") -> Departamentos_169_E_Financieras | B58: =Listas[[#This Row],[ID]]&" "&IF(Listas[[#This Row],[Descripcion]]="","","- "&Listas[[#This Row],[Descripcion]]) -> 86 - Putumayo | C58: 86 | D58: Putumayo | E58: 415 | F58: Departamentos_169 | G58: Prevalidador_Tributario_E_Financieras.xlsm
A59: =Listas[[#This Row],[Lista]]&"_"&SUBSTITUTE(SUBSTITUTE(SUBSTITUTE(Listas[[#This Row],[Prevalidador]],".xlsm",""),"Prevalidador_Tributario_",""),"Prevalidador_","") -> Departamentos_169_E_Financieras | B59: =Listas[[#This Row],[ID]]&" "&IF(Listas[[#This Row],[Descripcion]]="","","- "&Listas[[#This Row],[Descripcion]]) -> 63 - Quindío | C59: 63 | D59: Quindío | E59: 416 | F59: Departamentos_169 | G59: Prevalidador_Tributario_E_Financieras.xlsm
A60: =Listas[[#This Row],[Lista]]&"_"&SUBSTITUTE(SUBSTITUTE(SUBSTITUTE(Listas[[#This Row],[Prevalidador]],".xlsm",""),"Prevalidador_Tributario_",""),"Prevalidador_","") -> Departamentos_169_E_Financieras | B60: =Listas[[#This Row],[ID]]&" "&IF(Listas[[#This Row],[Descripcion]]="","","- "&Listas[[#This Row],[Descripcion]]) -> 66 - Risaralda | C60: 66 | D60: Risaralda | E60: 417 | F60: Departamentos_169 | G60: Prevalidador_Tributario_E_Financieras.xlsm
A61: =Listas[[#This Row],[Lista]]&"_"&SUBSTITUTE(SUBSTITUTE(SUBSTITUTE(Listas[[#This Row],[Prevalidador]],".xlsm",""),"Prevalidador_Tributario_",""),"Prevalidador_","") -> Departamentos_169_E_Financieras | B61: =Listas[[#This Row],[ID]]&" "&IF(Listas[[#This Row],[Descripcion]]="","","- "&Listas[[#This Row],[Descripcion]]) -> 88 - San Andrés | C61: 88 | D61: San Andrés | E61: 418 | F61: Departamentos_169 | G61: Prevalidador_Tributario_E_Financieras.xlsm
A62: =Listas[[#This Row],[Lista]]&"_"&SUBSTITUTE(SUBSTITUTE(SUBSTITUTE(Listas[[#This Row],[Prevalidador]],".xlsm",""),"Prevalidador_Tributario_",""),"Prevalidador_","") -> Departamentos_169_E_Financieras | B62: =Listas[[#This Row],[ID]]&" "&IF(Listas[[#This Row],[Descripcion]]="","","- "&Listas[[#This Row],[Descripcion]]) -> 68 - Santander | C62: 68 | D62: Santander | E62: 419 | F62: Departamentos_169 | G62: Prevalidador_Tributario_E_Financieras.xlsm
A63: =Listas[[#This Row],[Lista]]&"_"&SUBSTITUTE(SUBSTITUTE(SUBSTITUTE(Listas[[#This Row],[Prevalidador]],".xlsm",""),"Prevalidador_Tributario_",""),"Prevalidador_","") -> Departamentos_169_E_Financieras | B63: =Listas[[#This Row],[ID]]&" "&IF(Listas[[#This Row],[Descripcion]]="","","- "&Listas[[#This Row],[Descripcion]]) -> 70 - Sucre | C63: 70 | D63: Sucre | E63: 420 | F63: Departamentos_169 | G63: Prevalidador_Tributario_E_Financieras.xlsm
A64: =Listas[[#This Row],[Lista]]&"_"&SUBSTITUTE(SUBSTITUTE(SUBSTITUTE(Listas[[#This Row],[Prevalidador]],".xlsm",""),"Prevalidador_Tributario_",""),"Prevalidador_","") -> Departamentos_169_E_Financieras | B64: =Listas[[#This Row],[ID]]&" "&IF(Listas[[#This Row],[Descripcion]]="","","- "&Listas[[#This Row],[Descripcion]]) -> 73 - Tolima | C64: 73 | D64: Tolima | E64: 421 | F64: Departamentos_169 | G64: Prevalidador_Tributario_E_Financieras.xlsm
A65: =Listas[[#This Row],[Lista]]&"_"&SUBSTITUTE(SUBSTITUTE(SUBSTITUTE(Listas[[#This Row],[Prevalidador]],".xlsm",""),"Prevalidador_Tributario_",""),"Prevalidador_","") -> Departamentos_169_E_Financieras | B65: =Listas[[#This Row],[ID]]&" "&IF(Listas[[#This Row],[Descripcion]]="","","- "&Listas[[#This Row],[Descripcion]]) -> 76 - Valle del Cauca | C65: 76 | D65: Valle del Cauca | E65: 422 | F65: Departamentos_169 | G65: Prevalidador_Tributario_E_Financieras.xlsm
A66: =Listas[[#This Row],[Lista]]&"_"&SUBSTITUTE(SUBSTITUTE(SUBSTITUTE(Listas[[#This Row],[Prevalidador]],".xlsm",""),"Prevalidador_Tributario_",""),"Prevalidador_","") -> Departamentos_169_E_Financieras | B66: =Listas[[#This Row],[ID]]&" "&IF(Listas[[#This Row],[Descripcion]]="","","- "&Listas[[#This Row],[Descripcion]]) -> 97 - Vaupés | C66: 97 | D66: Vaupés | E66: 423 | F66: Departamentos_169 | G66: Prevalidador_Tributario_E_Financieras.xlsm
A67: =Listas[[#This Row],[Lista]]&"_"&SUBSTITUTE(SUBSTITUTE(SUBSTITUTE(Listas[[#This Row],[Prevalidador]],".xlsm",""),"Prevalidador_Tributario_",""),"Prevalidador_","") -> Departamentos_169_E_Financieras | B67: =Listas[[#This Row],[ID]]&" "&IF(Listas[[#This Row],[Descripcion]]="","","- "&Listas[[#This Row],[Descripcion]]) -> 99 - Vichada | C67: 99 | D67: Vichada | E67: 424 | F67: Departamentos_169 | G67: Prevalidador_Tributario_E_Financieras.xlsm
A68: =Listas[[#This Row],[Lista]]&"_"&SUBSTITUTE(SUBSTITUTE(SUBSTITUTE(Listas[[#This Row],[Prevalidador]],".xlsm",""),"Prevalidador_Tributario_",""),"Prevalidador_","") -> Departamentos_169_Otros | B68: =Listas[[#This Row],[ID]]&" "&IF(Listas[[#This Row],[Descripcion]]="","","- "&Listas[[#This Row],[Descripcion]]) -> 91 - Amazonas | C68: 91 | D68: Amazonas | E68: 936 | F68: Departamentos_169 | G68: Prevalidador_Tributario_Otros.xlsm
A69: =Listas[[#This Row],[Lista]]&"_"&SUBSTITUTE(SUBSTITUTE(SUBSTITUTE(Listas[[#This Row],[Prevalidador]],".xlsm",""),"Prevalidador_Tributario_",""),"Prevalidador_","") -> Departamentos_169_Otros | B69: =Listas[[#This Row],[ID]]&" "&IF(Listas[[#This Row],[Descripcion]]="","","- "&Listas[[#This Row],[Descripcion]]) -> 05 - Antioquia | C69: 05 | D69: Antioquia | E69: 937 | F69: Departamentos_169 | G69: Prevalidador_Tributario_Otros.xlsm
A70: =Listas[[#This Row],[Lista]]&"_"&SUBSTITUTE(SUBSTITUTE(SUBSTITUTE(Listas[[#This Row],[Prevalidador]],".xlsm",""),"Prevalidador_Tributario_",""),"Prevalidador_","") -> Departamentos_169_Otros | B70: =Listas[[#This Row],[ID]]&" "&IF(Listas[[#This Row],[Descripcion]]="","","- "&Listas[[#This Row],[Descripcion]]) -> 81 - Arauca | C70: 81 | D70: Arauca | E70: 938 | F70: Departamentos_169 | G70: Prevalidador_Tributario_Otros.xlsm
A71: =Listas[[#This Row],[Lista]]&"_"&SUBSTITUTE(SUBSTITUTE(SUBSTITUTE(Listas[[#This Row],[Prevalidador]],".xlsm",""),"Prevalidador_Tributario_",""),"Prevalidador_","") -> Departamentos_169_Otros | B71: =Listas[[#This Row],[ID]]&" "&IF(Listas[[#This Row],[Descripcion]]="","","- "&Listas[[#This Row],[Descripcion]]) -> 08 - Atlántico | C71: 08 | D71: Atlántico | E71: 939 | F71: Departamentos_169 | G71: Prevalidador_Tributario_Otros.xlsm
A72: =Listas[[#This Row],[Lista]]&"_"&SUBSTITUTE(SUBSTITUTE(SUBSTITUTE(Listas[[#This Row],[Prevalidador]],".xlsm",""),"Prevalidador_Tributario_",""),"Prevalidador_","") -> Departamentos_169_Otros | B72: =Listas[[#This Row],[ID]]&" "&IF(Listas[[#This Row],[Descripcion]]="","","- "&Listas[[#This Row],[Descripcion]]) -> 11 - Bogotá D.C. | C72: 11 | D72: Bogotá D.C. | E72: 940 | F72: Departamentos_169 | G72: Prevalidador_Tributario_Otros.xlsm
A73: =Listas[[#This Row],[Lista]]&"_"&SUBSTITUTE(SUBSTITUTE(SUBSTITUTE(Listas[[#This Row],[Prevalidador]],".xlsm",""),"Prevalidador_Tributario_",""),"Prevalidador_","") -> Departamentos_169_Otros | B73: =Listas[[#This Row],[ID]]&" "&IF(Listas[[#This Row],[Descripcion]]="","","- "&Listas[[#This Row],[Descripcion]]) -> 13 - Bolívar | C73: 13 | D73: Bolívar | E73: 941 | F73: Departamentos_169 | G73: Prevalidador_Tributario_Otros.xlsm
A74: =Listas[[#This Row],[Lista]]&"_"&SUBSTITUTE(SUBSTITUTE(SUBSTITUTE(Listas[[#This Row],[Prevalidador]],".xlsm",""),"Prevalidador_Tributario_",""),"Prevalidador_","") -> Departamentos_169_Otros | B74: =Listas[[#This Row],[ID]]&" "&IF(Listas[[#This Row],[Descripcion]]="","","- "&Listas[[#This Row],[Descripcion]]) -> 15 - Boyacá | C74: 15 | D74: Boyacá | E74: 942 | F74: Departamentos_169 | G74: Prevalidador_Tributario_Otros.xlsm
A75: =Listas[[#This Row],[Lista]]&"_"&SUBSTITUTE(SUBSTITUTE(SUBSTITUTE(Listas[[#This Row],[Prevalidador]],".xlsm",""),"Prevalidador_Tributario_",""),"Prevalidador_","") -> Departamentos_169_Otros | B75: =Listas[[#This Row],[ID]]&" "&IF(Listas[[#This Row],[Descripcion]]="","","- "&Listas[[#This Row],[Descripcion]]) -> 17 - Caldas | C75: 17 | D75: Caldas | E75: 943 | F75: Departamentos_169 | G75: Prevalidador_Tributario_Otros.xlsm
A76: =Listas[[#This Row],[Lista]]&"_"&SUBSTITUTE(SUBSTITUTE(SUBSTITUTE(Listas[[#This Row],[Prevalidador]],".xlsm",""),"Prevalidador_Tributario_",""),"Prevalidador_","") -> Departamentos_169_Otros | B76: =Listas[[#This Row],[ID]]&" "&IF(Listas[[#This Row],[Descripcion]]="","","- "&Listas[[#This Row],[Descripcion]]) -> 18 - Caquetá | C76: 18 | D76: Caquetá | E76: 944 | F76: Departamentos_169 | G76: Prevalidador_Tributario_Otros.xlsm
A77: =Listas[[#This Row],[Lista]]&"_"&SUBSTITUTE(SUBSTITUTE(SUBSTITUTE(Listas[[#This Row],[Prevalidador]],".xlsm",""),"Prevalidador_Tributario_",""),"Prevalidador_","") -> Departamentos_169_Otros | B77: =Listas[[#This Row],[ID]]&" "&IF(Listas[[#This Row],[Descripcion]]="","","- "&Listas[[#This Row],[Descripcion]]) -> 85 - Casanare | C77: 85 | D77: Casanare | E77: 945 | F77: Departamentos_169 | G77: Prevalidador_Tributario_Otros.xlsm
A78: =Listas[[#This Row],[Lista]]&"_"&SUBSTITUTE(SUBSTITUTE(SUBSTITUTE(Listas[[#This Row],[Prevalidador]],".xlsm",""),"Prevalidador_Tributario_",""),"Prevalidador_","") -> Departamentos_169_Otros | B78: =Listas[[#This Row],[ID]]&" "&IF(Listas[[#This Row],[Descripcion]]="","","- "&Listas[[#This Row],[Descripcion]]) -> 19 - Cauca | C78: 19 | D78: Cauca | E78: 946 | F78: Departamentos_169 | G78: Prevalidador_Tributario_Otros.xlsm
A79: =Listas[[#This Row],[Lista]]&"_"&SUBSTITUTE(SUBSTITUTE(SUBSTITUTE(Listas[[#This Row],[Prevalidador]],".xlsm",""),"Prevalidador_Tributario_",""),"Prevalidador_","") -> Departamentos_169_Otros | B79: =Listas[[#This Row],[ID]]&" "&IF(Listas[[#This Row],[Descripcion]]="","","- "&Listas[[#This Row],[Descripcion]]) -> 20 - Cesar | C79: 20 | D79: Cesar | E79: 947 | F79: Departamentos_169 | G79: Prevalidador_Tributario_Otros.xlsm
A80: =Listas[[#This Row],[Lista]]&"_"&SUBSTITUTE(SUBSTITUTE(SUBSTITUTE(Listas[[#This Row],[Prevalidador]],".xlsm",""),"Prevalidador_Tributario_",""),"Prevalidador_","") -> Departamentos_169_Otros | B80: =Listas[[#This Row],[ID]]&" "&IF(Listas[[#This Row],[Descripcion]]="","","- "&Listas[[#This Row],[Descripcion]]) -> 27 - Chocó | C80: 27 | D80: Chocó | E80: 948 | F80: Departamentos_169 | G80: Prevalidador_Tributario_Otros.xlsm
A81: =Listas[[#This Row],[Lista]]&"_"&SUBSTITUTE(SUBSTITUTE(SUBSTITUTE(Listas[[#This Row],[Prevalidador]],".xlsm",""),"Prevalidador_Tributario_",""),"Prevalidador_","") -> Departamentos_169_Otros | B81: =Listas[[#This Row],[ID]]&" "&IF(Listas[[#This Row],[Descripcion]]="","","- "&Listas[[#This Row],[Descripcion]]) -> 23 - Córdoba | C81: 23 | D81: Córdoba | E81: 949 | F81: Departamentos_169 | G81: Prevalidador_Tributario_Otros.xlsm
A82: =Listas[[#This Row],[Lista]]&"_"&SUBSTITUTE(SUBSTITUTE(SUBSTITUTE(Listas[[#This Row],[Prevalidador]],".xlsm",""),"Prevalidador_Tributario_",""),"Prevalidador_","") -> Departamentos_169_Otros | B82: =Listas[[#This Row],[ID]]&" "&IF(Listas[[#This Row],[Descripcion]]="","","- "&Listas[[#This Row],[Descripcion]]) -> 25 - Cundinamarca | C82: 25 | D82: Cundinamarca | E82: 950 | F82: Departamentos_169 | G82: Prevalidador_Tributario_Otros.xlsm
A83: =Listas[[#This Row],[Lista]]&"_"&SUBSTITUTE(SUBSTITUTE(SUBSTITUTE(Listas[[#This Row],[Prevalidador]],".xlsm",""),"Prevalidador_Tributario_",""),"Prevalidador_","") -> Departamentos_169_Otros | B83: =Listas[[#This Row],[ID]]&" "&IF(Listas[[#This Row],[Descripcion]]="","","- "&Listas[[#This Row],[Descripcion]]) -> 94 - Guainía | C83: 94 | D83: Guainía | E83: 951 | F83: Departamentos_169 | G83: Prevalidador_Tributario_Otros.xlsm
A84: =Listas[[#This Row],[Lista]]&"_"&SUBSTITUTE(SUBSTITUTE(SUBSTITUTE(Listas[[#This Row],[Prevalidador]],".xlsm",""),"Prevalidador_Tributario_",""),"Prevalidador_","") -> Departamentos_169_Otros | B84: =Listas[[#This Row],[ID]]&" "&IF(Listas[[#This Row],[Descripcion]]="","","- "&Listas[[#This Row],[Descripcion]]) -> 95 - Guaviare | C84: 95 | D84: Guaviare | E84: 952 | F84: Departamentos_169 | G84: Prevalidador_Tributario_Otros.xlsm
A85: =Listas[[#This Row],[Lista]]&"_"&SUBSTITUTE(SUBSTITUTE(SUBSTITUTE(Listas[[#This Row],[Prevalidador]],".xlsm",""),"Prevalidador_Tributario_",""),"Prevalidador_","") -> Departamentos_169_Otros | B85: =Listas[[#This Row],[ID]]&" "&IF(Listas[[#This Row],[Descripcion]]="","","- "&Listas[[#This Row],[Descripcion]]) -> 41 - Huila | C85: 41 | D85: Huila | E85: 953 | F85: Departamentos_169 | G85: Prevalidador_Tributario_Otros.xlsm
A86: =Listas[[#This Row],[Lista]]&"_"&SUBSTITUTE(SUBSTITUTE(SUBSTITUTE(Listas[[#This Row],[Prevalidador]],".xlsm",""),"Prevalidador_Tributario_",""),"Prevalidador_","") -> Departamentos_169_Otros | B86: =Listas[[#This Row],[ID]]&" "&IF(Listas[[#This Row],[Descripcion]]="","","- "&Listas[[#This Row],[Descripcion]]) -> 44 - La Guajira | C86: 44 | D86: La Guajira | E86: 954 | F86: Departamentos_169 | G86: Prevalidador_Tributario_Otros.xlsm
A87: =Listas[[#This Row],[Lista]]&"_"&SUBSTITUTE(SUBSTITUTE(SUBSTITUTE(Listas[[#This Row],[Prevalidador]],".xlsm",""),"Prevalidador_Tributario_",""),"Prevalidador_","") -> Departamentos_169_Otros | B87: =Listas[[#This Row],[ID]]&" "&IF(Listas[[#This Row],[Descripcion]]="","","- "&Listas[[#This Row],[Descripcion]]) -> 47 - Magdalena | C87: 47 | D87: Magdalena | E87: 955 | F87: Departamentos_169 | G87: Prevalidador_Tributario_Otros.xlsm
A88: =Listas[[#This Row],[Lista]]&"_"&SUBSTITUTE(SUBSTITUTE(SUBSTITUTE(Listas[[#This Row],[Prevalidador]],".xlsm",""),"Prevalidador_Tributario_",""),"Prevalidador_","") -> Departamentos_169_Otros | B88: =Listas[[#This Row],[ID]]&" "&IF(Listas[[#This Row],[Descripcion]]="","","- "&Listas[[#This Row],[Descripcion]]) -> 50 - Meta | C88: 50 | D88: Meta | E88: 956 | F88: Departamentos_169 | G88: Prevalidador_Tributario_Otros.xlsm
A89: =Listas[[#This Row],[Lista]]&"_"&SUBSTITUTE(SUBSTITUTE(SUBSTITUTE(Listas[[#This Row],[Prevalidador]],".xlsm",""),"Prevalidador_Tributario_",""),"Prevalidador_","") -> Departamentos_169_Otros | B89: =Listas[[#This Row],[ID]]&" "&IF(Listas[[#This Row],[Descripcion]]="","","- "&Listas[[#This Row],[Descripcion]]) -> 52 - Nariño | C89: 52 | D89: Nariño | E89: 957 | F89: Departamentos_169 | G89: Prevalidador_Tributario_Otros.xlsm
A90: =Listas[[#This Row],[Lista]]&"_"&SUBSTITUTE(SUBSTITUTE(SUBSTITUTE(Listas[[#This Row],[Prevalidador]],".xlsm",""),"Prevalidador_Tributario_",""),"Prevalidador_","") -> Departamentos_169_Otros | B90: =Listas[[#This Row],[ID]]&" "&IF(Listas[[#This Row],[Descripcion]]="","","- "&Listas[[#This Row],[Descripcion]]) -> 54 - Norte de Santander | C90: 54 | D90: Norte de Santander | E90: 958 | F90: Departamentos_169 | G90: Prevalidador_Tributario_Otros.xlsm
A91: =Listas[[#This Row],[Lista]]&"_"&SUBSTITUTE(SUBSTITUTE(SUBSTITUTE(Listas[[#This Row],[Prevalidador]],".xlsm",""),"Prevalidador_Tributario_",""),"Prevalidador_","") -> Departamentos_169_Otros | B91: =Listas[[#This Row],[ID]]&" "&IF(Listas[[#This Row],[Descripcion]]="","","- "&Listas[[#This Row],[Descripcion]]) -> 86 - Putumayo | C91: 86 | D91: Putumayo | E91: 959 | F91: Departamentos_169 | G91: Prevalidador_Tributario_Otros.xlsm
A92: =Listas[[#This Row],[Lista]]&"_"&SUBSTITUTE(SUBSTITUTE(SUBSTITUTE(Listas[[#This Row],[Prevalidador]],".xlsm",""),"Prevalidador_Tributario_",""),"Prevalidador_","") -> Departamentos_169_Otros | B92: =Listas[[#This Row],[ID]]&" "&IF(Listas[[#This Row],[Descripcion]]="","","- "&Listas[[#This Row],[Descripcion]]) -> 63 - Quindío | C92: 63 | D92: Quindío | E92: 960 | F92: Departamentos_169 | G92: Prevalidador_Tributario_Otros.xlsm
A93: =Listas[[#This Row],[Lista]]&"_"&SUBSTITUTE(SUBSTITUTE(SUBSTITUTE(Listas[[#This Row],[Prevalidador]],".xlsm",""),"Prevalidador_Tributario_",""),"Prevalidador_","") -> Departamentos_169_Otros | B93: =Listas[[#This Row],[ID]]&" "&IF(Listas[[#This Row],[Descripcion]]="","","- "&Listas[[#This Row],[Descripcion]]) -> 66 - Risaralda | C93: 66 | D93: Risaralda | E93: 961 | F93: Departamentos_169 | G93: Prevalidador_Tributario_Otros.xlsm
A94: =Listas[[#This Row],[Lista]]&"_"&SUBSTITUTE(SUBSTITUTE(SUBSTITUTE(Listas[[#This Row],[Prevalidador]],".xlsm",""),"Prevalidador_Tributario_",""),"Prevalidador_","") -> Departamentos_169_Otros | B94: =Listas[[#This Row],[ID]]&" "&IF(Listas[[#This Row],[Descripcion]]="","","- "&Listas[[#This Row],[Descripcion]]) -> 88 - San Andrés | C94: 88 | D94: San Andrés | E94: 962 | F94: Departamentos_169 | G94: Prevalidador_Tributario_Otros.xlsm
A95: =Listas[[#This Row],[Lista]]&"_"&SUBSTITUTE(SUBSTITUTE(SUBSTITUTE(Listas[[#This Row],[Prevalidador]],".xlsm",""),"Prevalidador_Tributario_",""),"Prevalidador_","") -> Departamentos_169_Otros | B95: =Listas[[#This Row],[ID]]&" "&IF(Listas[[#This Row],[Descripcion]]="","","- "&Listas[[#This Row],[Descripcion]]) -> 68 - Santander | C95: 68 | D95: Santander | E95: 963 | F95: Departamentos_169 | G95: Prevalidador_Tributario_Otros.xlsm
A96: =Listas[[#This Row],[Lista]]&"_"&SUBSTITUTE(SUBSTITUTE(SUBSTITUTE(Listas[[#This Row],[Prevalidador]],".xlsm",""),"Prevalidador_Tributario_",""),"Prevalidador_","") -> Departamentos_169_Otros | B96: =Listas[[#This Row],[ID]]&" "&IF(Listas[[#This Row],[Descripcion]]="","","- "&Listas[[#This Row],[Descripcion]]) -> 70 - Sucre | C96: 70 | D96: Sucre | E96: 964 | F96: Departamentos_169 | G96: Prevalidador_Tributario_Otros.xlsm
A97: =Listas[[#This Row],[Lista]]&"_"&SUBSTITUTE(SUBSTITUTE(SUBSTITUTE(Listas[[#This Row],[Prevalidador]],".xlsm",""),"Prevalidador_Tributario_",""),"Prevalidador_","") -> Departamentos_169_Otros | B97: =Listas[[#This Row],[ID]]&" "&IF(Listas[[#This Row],[Descripcion]]="","","- "&Listas[[#This Row],[Descripcion]]) -> 73 - Tolima | C97: 73 | D97: Tolima | E97: 965 | F97: Departamentos_169 | G97: Prevalidador_Tributario_Otros.xlsm
A98: =Listas[[#This Row],[Lista]]&"_"&SUBSTITUTE(SUBSTITUTE(SUBSTITUTE(Listas[[#This Row],[Prevalidador]],".xlsm",""),"Prevalidador_Tributario_",""),"Prevalidador_","") -> Departamentos_169_Otros | B98: =Listas[[#This Row],[ID]]&" "&IF(Listas[[#This Row],[Descripcion]]="","","- "&Listas[[#This Row],[Descripcion]]) -> 76 - Valle del Cauca | C98: 76 | D98: Valle del Cauca | E98: 966 | F98: Departamentos_169 | G98: Prevalidador_Tributario_Otros.xlsm
A99: =Listas[[#This Row],[Lista]]&"_"&SUBSTITUTE(SUBSTITUTE(SUBSTITUTE(Listas[[#This Row],[Prevalidador]],".xlsm",""),"Prevalidador_Tributario_",""),"Prevalidador_","") -> Departamentos_169_Otros | B99: =Listas[[#This Row],[ID]]&" "&IF(Listas[[#This Row],[Descripcion]]="","","- "&Listas[[#This Row],[Descripcion]]) -> 97 - Vaupés | C99: 97 | D99: Vaupés | E99: 967 | F99: Departamentos_169 | G99: Prevalidador_Tributario_Otros.xlsm
A100: =Listas[[#This Row],[Lista]]&"_"&SUBSTITUTE(SUBSTITUTE(SUBSTITUTE(Listas[[#This Row],[Prevalidador]],".xlsm",""),"Prevalidador_Tributario_",""),"Prevalidador_","") -> Departamentos_169_Otros | B100: =Listas[[#This Row],[ID]]&" "&IF(Listas[[#This Row],[Descripcion]]="","","- "&Listas[[#This Row],[Descripcion]]) -> 99 - Vichada | C100: 99 | D100: Vichada | E100: 968 | F100: Departamentos_169 | G100: Prevalidador_Tributario_Otros.xlsm
A101: =Listas[[#This Row],[Lista]]&"_"&SUBSTITUTE(SUBSTITUTE(SUBSTITUTE(Listas[[#This Row],[Prevalidador]],".xlsm",""),"Prevalidador_Tributario_",""),"Prevalidador_","") -> DVehInv_Otros | B101: =Listas[[#This Row],[ID]]&" "&IF(Listas[[#This Row],[Descripcion]]="","","- "&Listas[[#This Row],[Descripcion]]) -> 1 - Sociedades | C101: 1 | D101: Sociedades | E101: 1232 | F101: DVehInv | G101: Prevalidador_Tributario_Otros.xlsm
A102: =Listas[[#This Row],[Lista]]&"_"&SUBSTITUTE(SUBSTITUTE(SUBSTITUTE(Listas[[#This Row],[Prevalidador]],".xlsm",""),"Prevalidador_Tributario_",""),"Prevalidador_","") -> DVehInv_Otros | B102: =Listas[[#This Row],[ID]]&" "&IF(Listas[[#This Row],[Descripcion]]="","","- "&Listas[[#This Row],[Descripcion]]) -> 2 - Patrimonios autónomos | C102: 2 | D102: Patrimonios autónomos | E102: 1233 | F102: DVehInv | G102: Prevalidador_Tributario_Otros.xlsm
A103: =Listas[[#This Row],[Lista]]&"_"&SUBSTITUTE(SUBSTITUTE(SUBSTITUTE(Listas[[#This Row],[Prevalidador]],".xlsm",""),"Prevalidador_Tributario_",""),"Prevalidador_","") -> DVehInv_Otros | B103: =Listas[[#This Row],[ID]]&" "&IF(Listas[[#This Row],[Descripcion]]="","","- "&Listas[[#This Row],[Descripcion]]) -> 3 - Trusts | C103: 3 | D103: Trusts | E103: 1234 | F103: DVehInv | G103: Prevalidador_Tributario_Otros.xlsm
A104: =Listas[[#This Row],[Lista]]&"_"&SUBSTITUTE(SUBSTITUTE(SUBSTITUTE(Listas[[#This Row],[Prevalidador]],".xlsm",""),"Prevalidador_Tributario_",""),"Prevalidador_","") -> DVehInv_Otros | B104: =Listas[[#This Row],[ID]]&" "&IF(Listas[[#This Row],[Descripcion]]="","","- "&Listas[[#This Row],[Descripcion]]) -> 4 - Fondos de inversión colectiva | C104: 4 | D104: Fondos de inversión colectiva | E104: 1235 | F104: DVehInv | G104: Prevalidador_Tributario_Otros.xlsm
A105: =Listas[[#This Row],[Lista]]&"_"&SUBSTITUTE(SUBSTITUTE(SUBSTITUTE(Listas[[#This Row],[Prevalidador]],".xlsm",""),"Prevalidador_Tributario_",""),"Prevalidador_","") -> DVehInv_Otros | B105: =Listas[[#This Row],[ID]]&" "&IF(Listas[[#This Row],[Descripcion]]="","","- "&Listas[[#This Row],[Descripcion]]) -> 5 - Otros negocios fiduciarios | C105: 5 | D105: Otros negocios fiduciarios | E105: 1236 | F105: DVehInv | G105: Prevalidador_Tributario_Otros.xlsm
A106: =Listas[[#This Row],[Lista]]&"_"&SUBSTITUTE(SUBSTITUTE(SUBSTITUTE(Listas[[#This Row],[Prevalidador]],".xlsm",""),"Prevalidador_Tributario_",""),"Prevalidador_","") -> DVehInv_Otros | B106: =Listas[[#This Row],[ID]]&" "&IF(Listas[[#This Row],[Descripcion]]="","","- "&Listas[[#This Row],[Descripcion]]) -> 6 - Fundaciones de interés privado | C106: 6 | D106: Fundaciones de interés privado | E106: 1237 | F106: DVehInv | G106: Prevalidador_Tributario_Otros.xlsm
A107: =Listas[[#This Row],[Lista]]&"_"&SUBSTITUTE(SUBSTITUTE(SUBSTITUTE(Listas[[#This Row],[Prevalidador]],".xlsm",""),"Prevalidador_Tributario_",""),"Prevalidador_","") -> DVehInv_Otros | B107: =Listas[[#This Row],[ID]]&" "&IF(Listas[[#This Row],[Descripcion]]="","","- "&Listas[[#This Row],[Descripcion]]) -> 7 - Otros vehículos de inversión | C107: 7 | D107: Otros vehículos de inversión | E107: 1238 | F107: DVehInv | G107: Prevalidador_Tributario_Otros.xlsm
A108: =Listas[[#This Row],[Lista]]&"_"&SUBSTITUTE(SUBSTITUTE(SUBSTITUTE(Listas[[#This Row],[Prevalidador]],".xlsm",""),"Prevalidador_Tributario_",""),"Prevalidador_","") -> Departamentos_169_GobernacionesyAlcaldias | B108: =Listas[[#This Row],[ID]]&" "&IF(Listas[[#This Row],[Descripcion]]="","","- "&Listas[[#This Row],[Descripcion]]) -> 91 - Amazonas | C108: 91 | D108: Amazonas | E108: 1267 | F108: Departamentos_169 | G108: Prevalidador_GobernacionesyAlcaldias.xlsm
A109: =Listas[[#This Row],[Lista]]&"_"&SUBSTITUTE(SUBSTITUTE(SUBSTITUTE(Listas[[#This Row],[Prevalidador]],".xlsm",""),"Prevalidador_Tributario_",""),"Prevalidador_","") -> Departamentos_169_GobernacionesyAlcaldias | B109: =Listas[[#This Row],[ID]]&" "&IF(Listas[[#This Row],[Descripcion]]="","","- "&Listas[[#This Row],[Descripcion]]) -> 05 - Antioquia | C109: 05 | D109: Antioquia | E109: 1268 | F109: Departamentos_169 | G109: Prevalidador_GobernacionesyAlcaldias.xlsm
A110: =Listas[[#This Row],[Lista]]&"_"&SUBSTITUTE(SUBSTITUTE(SUBSTITUTE(Listas[[#This Row],[Prevalidador]],".xlsm",""),"Prevalidador_Tributario_",""),"Prevalidador_","") -> Departamentos_169_GobernacionesyAlcaldias | B110: =Listas[[#This Row],[ID]]&" "&IF(Listas[[#This Row],[Descripcion]]="","","- "&Listas[[#This Row],[Descripcion]]) -> 81 - Arauca | C110: 81 | D110: Arauca | E110: 1269 | F110: Departamentos_169 | G110: Prevalidador_GobernacionesyAlcaldias.xlsm
A111: =Listas[[#This Row],[Lista]]&"_"&SUBSTITUTE(SUBSTITUTE(SUBSTITUTE(Listas[[#This Row],[Prevalidador]],".xlsm",""),"Prevalidador_Tributario_",""),"Prevalidador_","") -> Departamentos_169_GobernacionesyAlcaldias | B111: =Listas[[#This Row],[ID]]&" "&IF(Listas[[#This Row],[Descripcion]]="","","- "&Listas[[#This Row],[Descripcion]]) -> 08 - Atlántico | C111: 08 | D111: Atlántico | E111: 1270 | F111: Departamentos_169 | G111: Prevalidador_GobernacionesyAlcaldias.xlsm
A112: =Listas[[#This Row],[Lista]]&"_"&SUBSTITUTE(SUBSTITUTE(SUBSTITUTE(Listas[[#This Row],[Prevalidador]],".xlsm",""),"Prevalidador_Tributario_",""),"Prevalidador_","") -> Departamentos_169_GobernacionesyAlcaldias | B112: =Listas[[#This Row],[ID]]&" "&IF(Listas[[#This Row],[Descripcion]]="","","- "&Listas[[#This Row],[Descripcion]]) -> 11 - Bogotá D.C. | C112: 11 | D112: Bogotá D.C. | E112: 1271 | F112: Departamentos_169 | G112: Prevalidador_GobernacionesyAlcaldias.xlsm
A113: =Listas[[#This Row],[Lista]]&"_"&SUBSTITUTE(SUBSTITUTE(SUBSTITUTE(Listas[[#This Row],[Prevalidador]],".xlsm",""),"Prevalidador_Tributario_",""),"Prevalidador_","") -> Departamentos_169_GobernacionesyAlcaldias | B113: =Listas[[#This Row],[ID]]&" "&IF(Listas[[#This Row],[Descripcion]]="","","- "&Listas[[#This Row],[Descripcion]]) -> 13 - Bolívar | C113: 13 | D113: Bolívar | E113: 1272 | F113: Departamentos_169 | G113: Prevalidador_GobernacionesyAlcaldias.xlsm
A114: =Listas[[#This Row],[Lista]]&"_"&SUBSTITUTE(SUBSTITUTE(SUBSTITUTE(Listas[[#This Row],[Prevalidador]],".xlsm",""),"Prevalidador_Tributario_",""),"Prevalidador_","") -> Departamentos_169_GobernacionesyAlcaldias | B114: =Listas[[#This Row],[ID]]&" "&IF(Listas[[#This Row],[Descripcion]]="","","- "&Listas[[#This Row],[Descripcion]]) -> 15 - Boyacá | C114: 15 | D114: Boyacá | E114: 1273 | F114: Departamentos_169 | G114: Prevalidador_GobernacionesyAlcaldias.xlsm
A115: =Listas[[#This Row],[Lista]]&"_"&SUBSTITUTE(SUBSTITUTE(SUBSTITUTE(Listas[[#This Row],[Prevalidador]],".xlsm",""),"Prevalidador_Tributario_",""),"Prevalidador_","") -> Departamentos_169_GobernacionesyAlcaldias | B115: =Listas[[#This Row],[ID]]&" "&IF(Listas[[#This Row],[Descripcion]]="","","- "&Listas[[#This Row],[Descripcion]]) -> 17 - Caldas | C115: 17 | D115: Caldas | E115: 1274 | F115: Departamentos_169 | G115: Prevalidador_GobernacionesyAlcaldias.xlsm
A116: =Listas[[#This Row],[Lista]]&"_"&SUBSTITUTE(SUBSTITUTE(SUBSTITUTE(Listas[[#This Row],[Prevalidador]],".xlsm",""),"Prevalidador_Tributario_",""),"Prevalidador_","") -> Departamentos_169_GobernacionesyAlcaldias | B116: =Listas[[#This Row],[ID]]&" "&IF(Listas[[#This Row],[Descripcion]]="","","- "&Listas[[#This Row],[Descripcion]]) -> 18 - Caquetá | C116: 18 | D116: Caquetá | E116: 1275 | F116: Departamentos_169 | G116: Prevalidador_GobernacionesyAlcaldias.xlsm
A117: =Listas[[#This Row],[Lista]]&"_"&SUBSTITUTE(SUBSTITUTE(SUBSTITUTE(Listas[[#This Row],[Prevalidador]],".xlsm",""),"Prevalidador_Tributario_",""),"Prevalidador_","") -> Departamentos_169_GobernacionesyAlcaldias | B117: =Listas[[#This Row],[ID]]&" "&IF(Listas[[#This Row],[Descripcion]]="","","- "&Listas[[#This Row],[Descripcion]]) -> 85 - Casanare | C117: 85 | D117: Casanare | E117: 1276 | F117: Departamentos_169 | G117: Prevalidador_GobernacionesyAlcaldias.xlsm
A118: =Listas[[#This Row],[Lista]]&"_"&SUBSTITUTE(SUBSTITUTE(SUBSTITUTE(Listas[[#This Row],[Prevalidador]],".xlsm",""),"Prevalidador_Tributario_",""),"Prevalidador_","") -> Departamentos_169_GobernacionesyAlcaldias | B118: =Listas[[#This Row],[ID]]&" "&IF(Listas[[#This Row],[Descripcion]]="","","- "&Listas[[#This Row],[Descripcion]]) -> 19 - Cauca | C118: 19 | D118: Cauca | E118: 1277 | F118: Departamentos_169 | G118: Prevalidador_GobernacionesyAlcaldias.xlsm
A119: =Listas[[#This Row],[Lista]]&"_"&SUBSTITUTE(SUBSTITUTE(SUBSTITUTE(Listas[[#This Row],[Prevalidador]],".xlsm",""),"Prevalidador_Tributario_",""),"Prevalidador_","") -> Departamentos_169_GobernacionesyAlcaldias | B119: =Listas[[#This Row],[ID]]&" "&IF(Listas[[#This Row],[Descripcion]]="","","- "&Listas[[#This Row],[Descripcion]]) -> 20 - Cesar | C119: 20 | D119: Cesar | E119: 1278 | F119: Departamentos_169 | G119: Prevalidador_GobernacionesyAlcaldias.xlsm
A120: =Listas[[#This Row],[Lista]]&"_"&SUBSTITUTE(SUBSTITUTE(SUBSTITUTE(Listas[[#This Row],[Prevalidador]],".xlsm",""),"Prevalidador_Tributario_",""),"Prevalidador_","") -> Departamentos_169_GobernacionesyAlcaldias | B120: =Listas[[#This Row],[ID]]&" "&IF(Listas[[#This Row],[Descripcion]]="","","- "&Listas[[#This Row],[Descripcion]]) -> 27 - Chocó | C120: 27 | D120: Chocó | E120: 1279 | F120: Departamentos_169 | G120: Prevalidador_GobernacionesyAlcaldias.xlsm
A121: =Listas[[#This Row],[Lista]]&"_"&SUBSTITUTE(SUBSTITUTE(SUBSTITUTE(Listas[[#This Row],[Prevalidador]],".xlsm",""),"Prevalidador_Tributario_",""),"Prevalidador_","") -> Departamentos_169_GobernacionesyAlcaldias | B121: =Listas[[#This Row],[ID]]&" "&IF(Listas[[#This Row],[Descripcion]]="","","- "&Listas[[#This Row],[Descripcion]]) -> 23 - Córdoba | C121: 23 | D121: Córdoba | E121: 1280 | F121: Departamentos_169 | G121: Prevalidador_GobernacionesyAlcaldias.xlsm
A122: =Listas[[#This Row],[Lista]]&"_"&SUBSTITUTE(SUBSTITUTE(SUBSTITUTE(Listas[[#This Row],[Prevalidador]],".xlsm",""),"Prevalidador_Tributario_",""),"Prevalidador_","") -> Departamentos_169_GobernacionesyAlcaldias | B122: =Listas[[#This Row],[ID]]&" "&IF(Listas[[#This Row],[Descripcion]]="","","- "&Listas[[#This Row],[Descripcion]]) -> 25 - Cundinamarca | C122: 25 | D122: Cundinamarca | E122: 1281 | F122: Departamentos_169 | G122: Prevalidador_GobernacionesyAlcaldias.xlsm
A123: =Listas[[#This Row],[Lista]]&"_"&SUBSTITUTE(SUBSTITUTE(SUBSTITUTE(Listas[[#This Row],[Prevalidador]],".xlsm",""),"Prevalidador_Tributario_",""),"Prevalidador_","") -> Departamentos_169_GobernacionesyAlcaldias | B123: =Listas[[#This Row],[ID]]&" "&IF(Listas[[#This Row],[Descripcion]]="","","- "&Listas[[#This Row],[Descripcion]]) -> 94 - Guainía | C123: 94 | D123: Guainía | E123: 1282 | F123: Departamentos_169 | G123: Prevalidador_GobernacionesyAlcaldias.xlsm
A124: =Listas[[#This Row],[Lista]]&"_"&SUBSTITUTE(SUBSTITUTE(SUBSTITUTE(Listas[[#This Row],[Prevalidador]],".xlsm",""),"Prevalidador_Tributario_",""),"Prevalidador_","") -> Departamentos_169_GobernacionesyAlcaldias | B124: =Listas[[#This Row],[ID]]&" "&IF(Listas[[#This Row],[Descripcion]]="","","- "&Listas[[#This Row],[Descripcion]]) -> 95 - Guaviare | C124: 95 | D124: Guaviare | E124: 1283 | F124: Departamentos_169 | G124: Prevalidador_GobernacionesyAlcaldias.xlsm
A125: =Listas[[#This Row],[Lista]]&"_"&SUBSTITUTE(SUBSTITUTE(SUBSTITUTE(Listas[[#This Row],[Prevalidador]],".xlsm",""),"Prevalidador_Tributario_",""),"Prevalidador_","") -> Departamentos_169_GobernacionesyAlcaldias | B125: =Listas[[#This Row],[ID]]&" "&IF(Listas[[#This Row],[Descripcion]]="","","- "&Listas[[#This Row],[Descripcion]]) -> 41 - Huila | C125: 41 | D125: Huila | E125: 1284 | F125: Departamentos_169 | G125: Prevalidador_GobernacionesyAlcaldias.xlsm
A126: =Listas[[#This Row],[Lista]]&"_"&SUBSTITUTE(SUBSTITUTE(SUBSTITUTE(Listas[[#This Row],[Prevalidador]],".xlsm",""),"Prevalidador_Tributario_",""),"Prevalidador_","") -> Departamentos_169_GobernacionesyAlcaldias | B126: =Listas[[#This Row],[ID]]&" "&IF(Listas[[#This Row],[Descripcion]]="","","- "&Listas[[#This Row],[Descripcion]]) -> 44 - La Guajira | C126: 44 | D126: La Guajira | E126: 1285 | F126: Departamentos_169 | G126: Prevalidador_GobernacionesyAlcaldias.xlsm
A127: =Listas[[#This Row],[Lista]]&"_"&SUBSTITUTE(SUBSTITUTE(SUBSTITUTE(Listas[[#This Row],[Prevalidador]],".xlsm",""),"Prevalidador_Tributario_",""),"Prevalidador_","") -> Departamentos_169_GobernacionesyAlcaldias | B127: =Listas[[#This Row],[ID]]&" "&IF(Listas[[#This Row],[Descripcion]]="","","- "&Listas[[#This Row],[Descripcion]]) -> 47 - Magdalena | C127: 47 | D127: Magdalena | E127: 1286 | F127: Departamentos_169 | G127: Prevalidador_GobernacionesyAlcaldias.xlsm
A128: =Listas[[#This Row],[Lista]]&"_"&SUBSTITUTE(SUBSTITUTE(SUBSTITUTE(Listas[[#This Row],[Prevalidador]],".xlsm",""),"Prevalidador_Tributario_",""),"Prevalidador_","") -> Departamentos_169_GobernacionesyAlcaldias | B128: =Listas[[#This Row],[ID]]&" "&IF(Listas[[#This Row],[Descripcion]]="","","- "&Listas[[#This Row],[Descripcion]]) -> 50 - Meta | C128: 50 | D128: Meta | E128: 1287 | F128: Departamentos_169 | G128: Prevalidador_GobernacionesyAlcaldias.xlsm
A129: =Listas[[#This Row],[Lista]]&"_"&SUBSTITUTE(SUBSTITUTE(SUBSTITUTE(Listas[[#This Row],[Prevalidador]],".xlsm",""),"Prevalidador_Tributario_",""),"Prevalidador_","") -> Departamentos_169_GobernacionesyAlcaldias | B129: =Listas[[#This Row],[ID]]&" "&IF(Listas[[#This Row],[Descripcion]]="","","- "&Listas[[#This Row],[Descripcion]]) -> 52 - Nariño | C129: 52 | D129: Nariño | E129: 1288 | F129: Departamentos_169 | G129: Prevalidador_GobernacionesyAlcaldias.xlsm
A130: =Listas[[#This Row],[Lista]]&"_"&SUBSTITUTE(SUBSTITUTE(SUBSTITUTE(Listas[[#This Row],[Prevalidador]],".xlsm",""),"Prevalidador_Tributario_",""),"Prevalidador_","") -> Departamentos_169_GobernacionesyAlcaldias | B130: =Listas[[#This Row],[ID]]&" "&IF(Listas[[#This Row],[Descripcion]]="","","- "&Listas[[#This Row],[Descripcion]]) -> 54 - Norte de Santander | C130: 54 | D130: Norte de Santander | E130: 1289 | F130: Departamentos_169 | G130: Prevalidador_GobernacionesyAlcaldias.xlsm
A131: =Listas[[#This Row],[Lista]]&"_"&SUBSTITUTE(SUBSTITUTE(SUBSTITUTE(Listas[[#This Row],[Prevalidador]],".xlsm",""),"Prevalidador_Tributario_",""),"Prevalidador_","") -> Departamentos_169_GobernacionesyAlcaldias | B131: =Listas[[#This Row],[ID]]&" "&IF(Listas[[#This Row],[Descripcion]]="","","- "&Listas[[#This Row],[Descripcion]]) -> 86 - Putumayo | C131: 86 | D131: Putumayo | E131: 1290 | F131: Departamentos_169 | G131: Prevalidador_GobernacionesyAlcaldias.xlsm
A132: =Listas[[#This Row],[Lista]]&"_"&SUBSTITUTE(SUBSTITUTE(SUBSTITUTE(Listas[[#This Row],[Prevalidador]],".xlsm",""),"Prevalidador_Tributario_",""),"Prevalidador_","") -> Departamentos_169_GobernacionesyAlcaldias | B132: =Listas[[#This Row],[ID]]&" "&IF(Listas[[#This Row],[Descripcion]]="","","- "&Listas[[#This Row],[Descripcion]]) -> 63 - Quindío | C132: 63 | D132: Quindío | E132: 1291 | F132: Departamentos_169 | G132: Prevalidador_GobernacionesyAlcaldias.xlsm
A133: =Listas[[#This Row],[Lista]]&"_"&SUBSTITUTE(SUBSTITUTE(SUBSTITUTE(Listas[[#This Row],[Prevalidador]],".xlsm",""),"Prevalidador_Tributario_",""),"Prevalidador_","") -> Departamentos_169_GobernacionesyAlcaldias | B133: =Listas[[#This Row],[ID]]&" "&IF(Listas[[#This Row],[Descripcion]]="","","- "&Listas[[#This Row],[Descripcion]]) -> 66 - Risaralda | C133: 66 | D133: Risaralda | E133: 1292 | F133: Departamentos_169 | G133: Prevalidador_GobernacionesyAlcaldias.xlsm
A134: =Listas[[#This Row],[Lista]]&"_"&SUBSTITUTE(SUBSTITUTE(SUBSTITUTE(Listas[[#This Row],[Prevalidador]],".xlsm",""),"Prevalidador_Tributario_",""),"Prevalidador_","") -> Departamentos_169_GobernacionesyAlcaldias | B134: =Listas[[#This Row],[ID]]&" "&IF(Listas[[#This Row],[Descripcion]]="","","- "&Listas[[#This Row],[Descripcion]]) -> 88 - San Andrés | C134: 88 | D134: San Andrés | E134: 1293 | F134: Departamentos_169 | G134: Prevalidador_GobernacionesyAlcaldias.xlsm
A135: =Listas[[#This Row],[Lista]]&"_"&SUBSTITUTE(SUBSTITUTE(SUBSTITUTE(Listas[[#This Row],[Prevalidador]],".xlsm",""),"Prevalidador_Tributario_",""),"Prevalidador_","") -> Departamentos_169_GobernacionesyAlcaldias | B135: =Listas[[#This Row],[ID]]&" "&IF(Listas[[#This Row],[Descripcion]]="","","- "&Listas[[#This Row],[Descripcion]]) -> 68 - Santander | C135: 68 | D135: Santander | E135: 1294 | F135: Departamentos_169 | G135: Prevalidador_GobernacionesyAlcaldias.xlsm
A136: =Listas[[#This Row],[Lista]]&"_"&SUBSTITUTE(SUBSTITUTE(SUBSTITUTE(Listas[[#This Row],[Prevalidador]],".xlsm",""),"Prevalidador_Tributario_",""),"Prevalidador_","") -> Departamentos_169_GobernacionesyAlcaldias | B136: =Listas[[#This Row],[ID]]&" "&IF(Listas[[#This Row],[Descripcion]]="","","- "&Listas[[#This Row],[Descripcion]]) -> 70 - Sucre | C136: 70 | D136: Sucre | E136: 1295 | F136: Departamentos_169 | G136: Prevalidador_GobernacionesyAlcaldias.xlsm
A137: =Listas[[#This Row],[Lista]]&"_"&SUBSTITUTE(SUBSTITUTE(SUBSTITUTE(Listas[[#This Row],[Prevalidador]],".xlsm",""),"Prevalidador_Tributario_",""),"Prevalidador_","") -> Departamentos_169_GobernacionesyAlcaldias | B137: =Listas[[#This Row],[ID]]&" "&IF(Listas[[#This Row],[Descripcion]]="","","- "&Listas[[#This Row],[Descripcion]]) -> 73 - Tolima | C137: 73 | D137: Tolima | E137: 1296 | F137: Departamentos_169 | G137: Prevalidador_GobernacionesyAlcaldias.xlsm
A138: =Listas[[#This Row],[Lista]]&"_"&SUBSTITUTE(SUBSTITUTE(SUBSTITUTE(Listas[[#This Row],[Prevalidador]],".xlsm",""),"Prevalidador_Tributario_",""),"Prevalidador_","") -> Departamentos_169_GobernacionesyAlcaldias | B138: =Listas[[#This Row],[ID]]&" "&IF(Listas[[#This Row],[Descripcion]]="","","- "&Listas[[#This Row],[Descripcion]]) -> 76 - Valle del Cauca | C138: 76 | D138: Valle del Cauca | E138: 1297 | F138: Departamentos_169 | G138: Prevalidador_GobernacionesyAlcaldias.xlsm
A139: =Listas[[#This Row],[Lista]]&"_"&SUBSTITUTE(SUBSTITUTE(SUBSTITUTE(Listas[[#This Row],[Prevalidador]],".xlsm",""),"Prevalidador_Tributario_",""),"Prevalidador_","") -> Departamentos_169_GobernacionesyAlcaldias | B139: =Listas[[#This Row],[ID]]&" "&IF(Listas[[#This Row],[Descripcion]]="","","- "&Listas[[#This Row],[Descripcion]]) -> 97 - Vaupés | C139: 97 | D139: Vaupés | E139: 1298 | F139: Departamentos_169 | G139: Prevalidador_GobernacionesyAlcaldias.xlsm
A140: =Listas[[#This Row],[Lista]]&"_"&SUBSTITUTE(SUBSTITUTE(SUBSTITUTE(Listas[[#This Row],[Prevalidador]],".xlsm",""),"Prevalidador_Tributario_",""),"Prevalidador_","") -> Departamentos_169_GobernacionesyAlcaldias | B140: =Listas[[#This Row],[ID]]&" "&IF(Listas[[#This Row],[Descripcion]]="","","- "&Listas[[#This Row],[Descripcion]]) -> 99 - Vichada | C140: 99 | D140: Vichada | E140: 1299 | F140: Departamentos_169 | G140: Prevalidador_GobernacionesyAlcaldias.xlsm
A141: =Listas[[#This Row],[Lista]]&"_"&SUBSTITUTE(SUBSTITUTE(SUBSTITUTE(Listas[[#This Row],[Prevalidador]],".xlsm",""),"Prevalidador_Tributario_",""),"Prevalidador_","") -> DCIIU_GobernacionesyAlcaldias | B141: =Listas[[#This Row],[ID]]&" "&IF(Listas[[#This Row],[Descripcion]]="","","- "&Listas[[#This Row],[Descripcion]]) -> 0010 - ASALARIADOS | C141: 0010 | D141: ASALARIADOS | E141: 1300 | F141: DCIIU | G141: Prevalidador_GobernacionesyAlcaldias.xlsm
A142: =Listas[[#This Row],[Lista]]&"_"&SUBSTITUTE(SUBSTITUTE(SUBSTITUTE(Listas[[#This Row],[Prevalidador]],".xlsm",""),"Prevalidador_Tributario_",""),"Prevalidador_","") -> DCIIU_GobernacionesyAlcaldias | B142: =Listas[[#This Row],[ID]]&" "&IF(Listas[[#This Row],[Descripcion]]="","","- "&Listas[[#This Row],[Descripcion]]) -> 0081 - SIN ACTIVIDAD | C142: 0081 | D142: SIN ACTIVIDAD | E142: 1301 | F142: DCIIU | G142: Prevalidador_GobernacionesyAlcaldias.xlsm
A143: =Listas[[#This Row],[Lista]]&"_"&SUBSTITUTE(SUBSTITUTE(SUBSTITUTE(Listas[[#This Row],[Prevalidador]],".xlsm",""),"Prevalidador_Tributario_",""),"Prevalidador_","") -> DCIIU_GobernacionesyAlcaldias | B143: =Listas[[#This Row],[ID]]&" "&IF(Listas[[#This Row],[Descripcion]]="","","- "&Listas[[#This Row],[Descripcion]]) -> 0082 - PERSONA NATURAL SUBSIDIADA POR TERCEROS | C143: 0082 | D143: PERSONA NATURAL SUBSIDIADA POR TERCEROS | E143: 1302 | F143: DCIIU | G143: Prevalidador_GobernacionesyAlcaldias.xlsm
A144: =Listas[[#This Row],[Lista]]&"_"&SUBSTITUTE(SUBSTITUTE(SUBSTITUTE(Listas[[#This Row],[Prevalidador]],".xlsm",""),"Prevalidador_Tributario_",""),"Prevalidador_","") -> DCIIU_GobernacionesyAlcaldias | B144: =Listas[[#This Row],[ID]]&" "&IF(Listas[[#This Row],[Descripcion]]="","","- "&Listas[[#This Row],[Descripcion]]) -> 0090 - RENTISTAS DE CAPITAL, SOLO PARA PERSONAS NATURALES | C144: 0090 | D144: RENTISTAS DE CAPITAL, SOLO PARA PERSONAS NATURALES | E144: 1303 | F144: DCIIU | G144: Prevalidador_GobernacionesyAlcaldias.xlsm
A145: =Listas[[#This Row],[Lista]]&"_"&SUBSTITUTE(SUBSTITUTE(SUBSTITUTE(Listas[[#This Row],[Prevalidador]],".xlsm",""),"Prevalidador_Tributario_",""),"Prevalidador_","") -> DCIIU_GobernacionesyAlcaldias | B145: =Listas[[#This Row],[ID]]&" "&IF(Listas[[#This Row],[Descripcion]]="","","- "&Listas[[#This Row],[Descripcion]]) -> 0111 - PRODUCCION ESPECIALIZADA DEL CAFE | C145: 0111 | D145: PRODUCCION ESPECIALIZADA DEL CAFE | E145: 1304 | F145: DCIIU | G145: Prevalidador_GobernacionesyAlcaldias.xlsm
A146: =Listas[[#This Row],[Lista]]&"_"&SUBSTITUTE(SUBSTITUTE(SUBSTITUTE(Listas[[#This Row],[Prevalidador]],".xlsm",""),"Prevalidador_Tributario_",""),"Prevalidador_","") -> DCIIU_GobernacionesyAlcaldias | B146: =Listas[[#This Row],[ID]]&" "&IF(Listas[[#This Row],[Descripcion]]="","","- "&Listas[[#This Row],[Descripcion]]) -> 0112 - PRODUCCION ESPECIALIZADA DE FLOR DE CORTE BAJO CUBIERTA Y AL AIRE LIBRE | C146: 0112 | D146: PRODUCCION ESPECIALIZADA DE FLOR DE CORTE BAJO CUBIERTA Y AL AIRE LIBRE | E146: 1305 | F146: DCIIU | G146: Prevalidador_GobernacionesyAlcaldias.xlsm
A147: =Listas[[#This Row],[Lista]]&"_"&SUBSTITUTE(SUBSTITUTE(SUBSTITUTE(Listas[[#This Row],[Prevalidador]],".xlsm",""),"Prevalidador_Tributario_",""),"Prevalidador_","") -> DCIIU_GobernacionesyAlcaldias | B147: =Listas[[#This Row],[ID]]&" "&IF(Listas[[#This Row],[Descripcion]]="","","- "&Listas[[#This Row],[Descripcion]]) -> 0113 - PRODUCCION ESPECIALIZADA DE BANANO | C147: 0113 | D147: PRODUCCION ESPECIALIZADA DE BANANO | E147: 1306 | F147: DCIIU | G147: Prevalidador_GobernacionesyAlcaldias.xlsm
A148: =Listas[[#This Row],[Lista]]&"_"&SUBSTITUTE(SUBSTITUTE(SUBSTITUTE(Listas[[#This Row],[Prevalidador]],".xlsm",""),"Prevalidador_Tributario_",""),"Prevalidador_","") -> DCIIU_GobernacionesyAlcaldias | B148: =Listas[[#This Row],[ID]]&" "&IF(Listas[[#This Row],[Descripcion]]="","","- "&Listas[[#This Row],[Descripcion]]) -> 0114 - PRODUCCION ESPECIALIZADA DE CAÑA DE AZUCAR | C148: 0114 | D148: PRODUCCION ESPECIALIZADA DE CAÑA DE AZUCAR | E148: 1307 | F148: DCIIU | G148: Prevalidador_GobernacionesyAlcaldias.xlsm
A149: =Listas[[#This Row],[Lista]]&"_"&SUBSTITUTE(SUBSTITUTE(SUBSTITUTE(Listas[[#This Row],[Prevalidador]],".xlsm",""),"Prevalidador_Tributario_",""),"Prevalidador_","") -> DCIIU_GobernacionesyAlcaldias | B149: =Listas[[#This Row],[ID]]&" "&IF(Listas[[#This Row],[Descripcion]]="","","- "&Listas[[#This Row],[Descripcion]]) -> 0115 - PRODUCCION ESPECIALIZADA DE CEREALES Y OLEAGINOSAS | C149: 0115 | D149: PRODUCCION ESPECIALIZADA DE CEREALES Y OLEAGINOSAS | E149: 1308 | F149: DCIIU | G149: Prevalidador_GobernacionesyAlcaldias.xlsm
A150: =Listas[[#This Row],[Lista]]&"_"&SUBSTITUTE(SUBSTITUTE(SUBSTITUTE(Listas[[#This Row],[Prevalidador]],".xlsm",""),"Prevalidador_Tributario_",""),"Prevalidador_","") -> DCIIU_GobernacionesyAlcaldias | B150: =Listas[[#This Row],[ID]]&" "&IF(Listas[[#This Row],[Descripcion]]="","","- "&Listas[[#This Row],[Descripcion]]) -> 0116 - PRODUCCION ESPECIALIZADA DE HORTALIZAS Y LEGUMBRES | C150: 0116 | D150: PRODUCCION ESPECIALIZADA DE HORTALIZAS Y LEGUMBRES | E150: 1309 | F150: DCIIU | G150: Prevalidador_GobernacionesyAlcaldias.xlsm
A151: =Listas[[#This Row],[Lista]]&"_"&SUBSTITUTE(SUBSTITUTE(SUBSTITUTE(Listas[[#This Row],[Prevalidador]],".xlsm",""),"Prevalidador_Tributario_",""),"Prevalidador_","") -> DCIIU_GobernacionesyAlcaldias | B151: =Listas[[#This Row],[ID]]&" "&IF(Listas[[#This Row],[Descripcion]]="","","- "&Listas[[#This Row],[Descripcion]]) -> 0117 - PRODUCCION ESPECIALIZADA DE FRUTAS, NUECES, PLANTAS BEBESTIBLES Y ESPECIAS | C151: 0117 | D151: PRODUCCION ESPECIALIZADA DE FRUTAS, NUECES, PLANTAS BEBESTIBLES Y ESPECIAS | E151: 1310 | F151: DCIIU | G151: Prevalidador_GobernacionesyAlcaldias.xlsm
A152: =Listas[[#This Row],[Lista]]&"_"&SUBSTITUTE(SUBSTITUTE(SUBSTITUTE(Listas[[#This Row],[Prevalidador]],".xlsm",""),"Prevalidador_Tributario_",""),"Prevalidador_","") -> DCIIU_GobernacionesyAlcaldias | B152: =Listas[[#This Row],[ID]]&" "&IF(Listas[[#This Row],[Descripcion]]="","","- "&Listas[[#This Row],[Descripcion]]) -> 0118 - PRODUCCION AGRICOLA NCP EN UNIDADES ESPECIALIZADAS | C152: 0118 | D152: PRODUCCION AGRICOLA NCP EN UNIDADES ESPECIALIZADAS | E152: 1311 | F152: DCIIU | G152: Prevalidador_GobernacionesyAlcaldias.xlsm
A153: =Listas[[#This Row],[Lista]]&"_"&SUBSTITUTE(SUBSTITUTE(SUBSTITUTE(Listas[[#This Row],[Prevalidador]],".xlsm",""),"Prevalidador_Tributario_",""),"Prevalidador_","") -> DCIIU_GobernacionesyAlcaldias | B153: =Listas[[#This Row],[ID]]&" "&IF(Listas[[#This Row],[Descripcion]]="","","- "&Listas[[#This Row],[Descripcion]]) -> 0119 - PRODUCCION AGRICOLA EN UNIDADES NO ESPECIALIZADAS | C153: 0119 | D153: PRODUCCION AGRICOLA EN UNIDADES NO ESPECIALIZADAS | E153: 1312 | F153: DCIIU | G153: Prevalidador_GobernacionesyAlcaldias.xlsm
A154: =Listas[[#This Row],[Lista]]&"_"&SUBSTITUTE(SUBSTITUTE(SUBSTITUTE(Listas[[#This Row],[Prevalidador]],".xlsm",""),"Prevalidador_Tributario_",""),"Prevalidador_","") -> DCIIU_GobernacionesyAlcaldias | B154: =Listas[[#This Row],[ID]]&" "&IF(Listas[[#This Row],[Descripcion]]="","","- "&Listas[[#This Row],[Descripcion]]) -> 0121 - CRIA ESPECIALIZADA DE GANADO VACUNO | C154: 0121 | D154: CRIA ESPECIALIZADA DE GANADO VACUNO | E154: 1313 | F154: DCIIU | G154: Prevalidador_GobernacionesyAlcaldias.xlsm
A155: =Listas[[#This Row],[Lista]]&"_"&SUBSTITUTE(SUBSTITUTE(SUBSTITUTE(Listas[[#This Row],[Prevalidador]],".xlsm",""),"Prevalidador_Tributario_",""),"Prevalidador_","") -> DCIIU_GobernacionesyAlcaldias | B155: =Listas[[#This Row],[ID]]&" "&IF(Listas[[#This Row],[Descripcion]]="","","- "&Listas[[#This Row],[Descripcion]]) -> 0122 - CRIA ESPECIALIZADA DE GANADO PORCINO | C155: 0122 | D155: CRIA ESPECIALIZADA DE GANADO PORCINO | E155: 1314 | F155: DCIIU | G155: Prevalidador_GobernacionesyAlcaldias.xlsm
A156: =Listas[[#This Row],[Lista]]&"_"&SUBSTITUTE(SUBSTITUTE(SUBSTITUTE(Listas[[#This Row],[Prevalidador]],".xlsm",""),"Prevalidador_Tributario_",""),"Prevalidador_","") -> DCIIU_GobernacionesyAlcaldias | B156: =Listas[[#This Row],[ID]]&" "&IF(Listas[[#This Row],[Descripcion]]="","","- "&Listas[[#This Row],[Descripcion]]) -> 0123 - CRIA ESPECIALIZADA DE AVES DE CORRAL | C156: 0123 | D156: CRIA ESPECIALIZADA DE AVES DE CORRAL | E156: 1315 | F156: DCIIU | G156: Prevalidador_GobernacionesyAlcaldias.xlsm
A157: =Listas[[#This Row],[Lista]]&"_"&SUBSTITUTE(SUBSTITUTE(SUBSTITUTE(Listas[[#This Row],[Prevalidador]],".xlsm",""),"Prevalidador_Tributario_",""),"Prevalidador_","") -> DCIIU_GobernacionesyAlcaldias | B157: =Listas[[#This Row],[ID]]&" "&IF(Listas[[#This Row],[Descripcion]]="","","- "&Listas[[#This Row],[Descripcion]]) -> 0124 - CRIA ESPECIALIZADA DE OVEJAS, CABRAS, CABALLOS, ASNOS, MULAS Y BURDEGANOS | C157: 0124 | D157: CRIA ESPECIALIZADA DE OVEJAS, CABRAS, CABALLOS, ASNOS, MULAS Y BURDEGANOS | E157: 1316 | F157: DCIIU | G157: Prevalidador_GobernacionesyAlcaldias.xlsm
A158: =Listas[[#This Row],[Lista]]&"_"&SUBSTITUTE(SUBSTITUTE(SUBSTITUTE(Listas[[#This Row],[Prevalidador]],".xlsm",""),"Prevalidador_Tributario_",""),"Prevalidador_","") -> DCIIU_GobernacionesyAlcaldias | B158: =Listas[[#This Row],[ID]]&" "&IF(Listas[[#This Row],[Descripcion]]="","","- "&Listas[[#This Row],[Descripcion]]) -> 0125 - CRIA ESPECIALIZADA DE OTROS ANIMALES NCP Y LA OBTENCION DE SUS PRODUCTOS | C158: 0125 | D158: CRIA ESPECIALIZADA DE OTROS ANIMALES NCP Y LA OBTENCION DE SUS PRODUCTOS | E158: 1317 | F158: DCIIU | G158: Prevalidador_GobernacionesyAlcaldias.xlsm
A159: =Listas[[#This Row],[Lista]]&"_"&SUBSTITUTE(SUBSTITUTE(SUBSTITUTE(Listas[[#This Row],[Prevalidador]],".xlsm",""),"Prevalidador_Tributario_",""),"Prevalidador_","") -> DCIIU_GobernacionesyAlcaldias | B159: =Listas[[#This Row],[ID]]&" "&IF(Listas[[#This Row],[Descripcion]]="","","- "&Listas[[#This Row],[Descripcion]]) -> 0129 - ACTIVIDAD PECUARIA NO ESPECIALIZADA | C159: 0129 | D159: ACTIVIDAD PECUARIA NO ESPECIALIZADA | E159: 1318 | F159: DCIIU | G159: Prevalidador_GobernacionesyAlcaldias.xlsm
A160: =Listas[[#This Row],[Lista]]&"_"&SUBSTITUTE(SUBSTITUTE(SUBSTITUTE(Listas[[#This Row],[Prevalidador]],".xlsm",""),"Prevalidador_Tributario_",""),"Prevalidador_","") -> DCIIU_GobernacionesyAlcaldias | B160: =Listas[[#This Row],[ID]]&" "&IF(Listas[[#This Row],[Descripcion]]="","","- "&Listas[[#This Row],[Descripcion]]) -> 0130 - ACTIVIDAD MIXTA (AGRICOLA Y PECUARIA) | C160: 0130 | D160: ACTIVIDAD MIXTA (AGRICOLA Y PECUARIA) | E160: 1319 | F160: DCIIU | G160: Prevalidador_GobernacionesyAlcaldias.xlsm
A161: =Listas[[#This Row],[Lista]]&"_"&SUBSTITUTE(SUBSTITUTE(SUBSTITUTE(Listas[[#This Row],[Prevalidador]],".xlsm",""),"Prevalidador_Tributario_",""),"Prevalidador_","") -> DCIIU_GobernacionesyAlcaldias | B161: =Listas[[#This Row],[ID]]&" "&IF(Listas[[#This Row],[Descripcion]]="","","- "&Listas[[#This Row],[Descripcion]]) -> 0140 - ACTIVIDADES DE SERVICIOS AGRICOLAS Y GANADEROS EXCEPTO LAS ACTIVIDADES VETERINARIAS | C161: 0140 | D161: ACTIVIDADES DE SERVICIOS AGRICOLAS Y GANADEROS EXCEPTO LAS ACTIVIDADES VETERINARIAS | E161: 1320 | F161: DCIIU | G161: Prevalidador_GobernacionesyAlcaldias.xlsm
A162: =Listas[[#This Row],[Lista]]&"_"&SUBSTITUTE(SUBSTITUTE(SUBSTITUTE(Listas[[#This Row],[Prevalidador]],".xlsm",""),"Prevalidador_Tributario_",""),"Prevalidador_","") -> DCIIU_GobernacionesyAlcaldias | B162: =Listas[[#This Row],[ID]]&" "&IF(Listas[[#This Row],[Descripcion]]="","","- "&Listas[[#This Row],[Descripcion]]) -> 0150 - CAZA ORDINARIA Y MEDIANTE TRAMPAS Y REPOBLACION DE ANIMALES DE CAZA, INCLUSO ACTIVIDADES DE SERVICIOS CONEXAS | C162: 0150 | D162: CAZA ORDINARIA Y MEDIANTE TRAMPAS Y REPOBLACION DE ANIMALES DE CAZA, INCLUSO ACTIVIDADES DE SERVICIOS CONEXAS | E162: 1321 | F162: DCIIU | G162: Prevalidador_GobernacionesyAlcaldias.xlsm
A163: =Listas[[#This Row],[Lista]]&"_"&SUBSTITUTE(SUBSTITUTE(SUBSTITUTE(Listas[[#This Row],[Prevalidador]],".xlsm",""),"Prevalidador_Tributario_",""),"Prevalidador_","") -> DCIIU_GobernacionesyAlcaldias | B163: =Listas[[#This Row],[ID]]&" "&IF(Listas[[#This Row],[Descripcion]]="","","- "&Listas[[#This Row],[Descripcion]]) -> 0201 - SILVICULTURA Y EXPLOTACION DE LA MADERA | C163: 0201 | D163: SILVICULTURA Y EXPLOTACION DE LA MADERA | E163: 1322 | F163: DCIIU | G163: Prevalidador_GobernacionesyAlcaldias.xlsm
A164: =Listas[[#This Row],[Lista]]&"_"&SUBSTITUTE(SUBSTITUTE(SUBSTITUTE(Listas[[#This Row],[Prevalidador]],".xlsm",""),"Prevalidador_Tributario_",""),"Prevalidador_","") -> DCIIU_GobernacionesyAlcaldias | B164: =Listas[[#This Row],[ID]]&" "&IF(Listas[[#This Row],[Descripcion]]="","","- "&Listas[[#This Row],[Descripcion]]) -> 0202 - ACTIVIDADES DE SERVICIOS RELACIONADAS CON LA SILVICULTURA Y LA EXTRACCION DE LA MADERA | C164: 0202 | D164: ACTIVIDADES DE SERVICIOS RELACIONADAS CON LA SILVICULTURA Y LA EXTRACCION DE LA MADERA | E164: 1323 | F164: DCIIU | G164: Prevalidador_GobernacionesyAlcaldias.xlsm
A165: =Listas[[#This Row],[Lista]]&"_"&SUBSTITUTE(SUBSTITUTE(SUBSTITUTE(Listas[[#This Row],[Prevalidador]],".xlsm",""),"Prevalidador_Tributario_",""),"Prevalidador_","") -> DCIIU_GobernacionesyAlcaldias | B165: =Listas[[#This Row],[ID]]&" "&IF(Listas[[#This Row],[Descripcion]]="","","- "&Listas[[#This Row],[Descripcion]]) -> 0501 - PESCA Y CULTIVO DE PECES EN CRIADEROS Y GRANJAS PISCICOLAS | C165: 0501 | D165: PESCA Y CULTIVO DE PECES EN CRIADEROS Y GRANJAS PISCICOLAS | E165: 1324 | F165: DCIIU | G165: Prevalidador_GobernacionesyAlcaldias.xlsm
A166: =Listas[[#This Row],[Lista]]&"_"&SUBSTITUTE(SUBSTITUTE(SUBSTITUTE(Listas[[#This Row],[Prevalidador]],".xlsm",""),"Prevalidador_Tributario_",""),"Prevalidador_","") -> DCIIU_GobernacionesyAlcaldias | B166: =Listas[[#This Row],[ID]]&" "&IF(Listas[[#This Row],[Descripcion]]="","","- "&Listas[[#This Row],[Descripcion]]) -> 0502 - ACTIVIDADES DE SERVICIOS RELACIONADOS CON LA PESCA | C166: 0502 | D166: ACTIVIDADES DE SERVICIOS RELACIONADOS CON LA PESCA | E166: 1325 | F166: DCIIU | G166: Prevalidador_GobernacionesyAlcaldias.xlsm
A167: =Listas[[#This Row],[Lista]]&"_"&SUBSTITUTE(SUBSTITUTE(SUBSTITUTE(Listas[[#This Row],[Prevalidador]],".xlsm",""),"Prevalidador_Tributario_",""),"Prevalidador_","") -> DCIIU_GobernacionesyAlcaldias | B167: =Listas[[#This Row],[ID]]&" "&IF(Listas[[#This Row],[Descripcion]]="","","- "&Listas[[#This Row],[Descripcion]]) -> 0666 - NO CLASIFICADO | C167: 0666 | D167: NO CLASIFICADO | E167: 1326 | F167: DCIIU | G167: Prevalidador_GobernacionesyAlcaldias.xlsm
A168: =Listas[[#This Row],[Lista]]&"_"&SUBSTITUTE(SUBSTITUTE(SUBSTITUTE(Listas[[#This Row],[Prevalidador]],".xlsm",""),"Prevalidador_Tributario_",""),"Prevalidador_","") -> DCIIU_GobernacionesyAlcaldias | B168: =Listas[[#This Row],[ID]]&" "&IF(Listas[[#This Row],[Descripcion]]="","","- "&Listas[[#This Row],[Descripcion]]) -> 0999 - Indefinida | C168: 0999 | D168: Indefinida | E168: 1327 | F168: DCIIU | G168: Prevalidador_GobernacionesyAlcaldias.xlsm
A169: =Listas[[#This Row],[Lista]]&"_"&SUBSTITUTE(SUBSTITUTE(SUBSTITUTE(Listas[[#This Row],[Prevalidador]],".xlsm",""),"Prevalidador_Tributario_",""),"Prevalidador_","") -> DCIIU_GobernacionesyAlcaldias | B169: =Listas[[#This Row],[ID]]&" "&IF(Listas[[#This Row],[Descripcion]]="","","- "&Listas[[#This Row],[Descripcion]]) -> 1010 - EXTRACCION Y AGLOMERACION DE HULLA (CARBON DE PIEDRA) | C169: 1010 | D169: EXTRACCION Y AGLOMERACION DE HULLA (CARBON DE PIEDRA) | E169: 1328 | F169: DCIIU | G169: Prevalidador_GobernacionesyAlcaldias.xlsm
A170: =Listas[[#This Row],[Lista]]&"_"&SUBSTITUTE(SUBSTITUTE(SUBSTITUTE(Listas[[#This Row],[Prevalidador]],".xlsm",""),"Prevalidador_Tributario_",""),"Prevalidador_","") -> DCIIU_GobernacionesyAlcaldias | B170: =Listas[[#This Row],[ID]]&" "&IF(Listas[[#This Row],[Descripcion]]="","","- "&Listas[[#This Row],[Descripcion]]) -> 1020 - EXTRACCION Y AGLOMERACION DE CARBON LIGNITICO | C170: 1020 | D170: EXTRACCION Y AGLOMERACION DE CARBON LIGNITICO | E170: 1329 | F170: DCIIU | G170: Prevalidador_GobernacionesyAlcaldias.xlsm
A171: =Listas[[#This Row],[Lista]]&"_"&SUBSTITUTE(SUBSTITUTE(SUBSTITUTE(Listas[[#This Row],[Prevalidador]],".xlsm",""),"Prevalidador_Tributario_",""),"Prevalidador_","") -> DCIIU_GobernacionesyAlcaldias | B171: =Listas[[#This Row],[ID]]&" "&IF(Listas[[#This Row],[Descripcion]]="","","- "&Listas[[#This Row],[Descripcion]]) -> 1030 - EXTRACCION Y AGLOMERACION DE TURBA | C171: 1030 | D171: EXTRACCION Y AGLOMERACION DE TURBA | E171: 1330 | F171: DCIIU | G171: Prevalidador_GobernacionesyAlcaldias.xlsm
A172: =Listas[[#This Row],[Lista]]&"_"&SUBSTITUTE(SUBSTITUTE(SUBSTITUTE(Listas[[#This Row],[Prevalidador]],".xlsm",""),"Prevalidador_Tributario_",""),"Prevalidador_","") -> DCIIU_GobernacionesyAlcaldias | B172: =Listas[[#This Row],[ID]]&" "&IF(Listas[[#This Row],[Descripcion]]="","","- "&Listas[[#This Row],[Descripcion]]) -> 1110 - EXTRACCION DE PETROLEO CRUDO Y DE GAS NATURAL | C172: 1110 | D172: EXTRACCION DE PETROLEO CRUDO Y DE GAS NATURAL | E172: 1331 | F172: DCIIU | G172: Prevalidador_GobernacionesyAlcaldias.xlsm
A173: =Listas[[#This Row],[Lista]]&"_"&SUBSTITUTE(SUBSTITUTE(SUBSTITUTE(Listas[[#This Row],[Prevalidador]],".xlsm",""),"Prevalidador_Tributario_",""),"Prevalidador_","") -> DCIIU_GobernacionesyAlcaldias | B173: =Listas[[#This Row],[ID]]&" "&IF(Listas[[#This Row],[Descripcion]]="","","- "&Listas[[#This Row],[Descripcion]]) -> 1120 - ACTIVIDADES DE SERVICIOS RELACIONADAS CON LA EXTRACCION DE PETROLEO Y GAS, EXCEPTO LAS ACTIVIDADES DE PROSPECCION | C173: 1120 | D173: ACTIVIDADES DE SERVICIOS RELACIONADAS CON LA EXTRACCION DE PETROLEO Y GAS, EXCEPTO LAS ACTIVIDADES DE PROSPECCION | E173: 1332 | F173: DCIIU | G173: Prevalidador_GobernacionesyAlcaldias.xlsm
A174: =Listas[[#This Row],[Lista]]&"_"&SUBSTITUTE(SUBSTITUTE(SUBSTITUTE(Listas[[#This Row],[Prevalidador]],".xlsm",""),"Prevalidador_Tributario_",""),"Prevalidador_","") -> DCIIU_GobernacionesyAlcaldias | B174: =Listas[[#This Row],[ID]]&" "&IF(Listas[[#This Row],[Descripcion]]="","","- "&Listas[[#This Row],[Descripcion]]) -> 1200 - EXTRACCION DE MINERALES DE URANIO Y DE TORIO | C174: 1200 | D174: EXTRACCION DE MINERALES DE URANIO Y DE TORIO | E174: 1333 | F174: DCIIU | G174: Prevalidador_GobernacionesyAlcaldias.xlsm
A175: =Listas[[#This Row],[Lista]]&"_"&SUBSTITUTE(SUBSTITUTE(SUBSTITUTE(Listas[[#This Row],[Prevalidador]],".xlsm",""),"Prevalidador_Tributario_",""),"Prevalidador_","") -> DCIIU_GobernacionesyAlcaldias | B175: =Listas[[#This Row],[ID]]&" "&IF(Listas[[#This Row],[Descripcion]]="","","- "&Listas[[#This Row],[Descripcion]]) -> 1310 - EXTRACCION DE MINERAL DE HIERRO | C175: 1310 | D175: EXTRACCION DE MINERAL DE HIERRO | E175: 1334 | F175: DCIIU | G175: Prevalidador_GobernacionesyAlcaldias.xlsm
A176: =Listas[[#This Row],[Lista]]&"_"&SUBSTITUTE(SUBSTITUTE(SUBSTITUTE(Listas[[#This Row],[Prevalidador]],".xlsm",""),"Prevalidador_Tributario_",""),"Prevalidador_","") -> DCIIU_GobernacionesyAlcaldias | B176: =Listas[[#This Row],[ID]]&" "&IF(Listas[[#This Row],[Descripcion]]="","","- "&Listas[[#This Row],[Descripcion]]) -> 1320 - EXTRACCION DE METALES PRECIOSOS | C176: 1320 | D176: EXTRACCION DE METALES PRECIOSOS | E176: 1335 | F176: DCIIU | G176: Prevalidador_GobernacionesyAlcaldias.xlsm
A177: =Listas[[#This Row],[Lista]]&"_"&SUBSTITUTE(SUBSTITUTE(SUBSTITUTE(Listas[[#This Row],[Prevalidador]],".xlsm",""),"Prevalidador_Tributario_",""),"Prevalidador_","") -> DCIIU_GobernacionesyAlcaldias | B177: =Listas[[#This Row],[ID]]&" "&IF(Listas[[#This Row],[Descripcion]]="","","- "&Listas[[#This Row],[Descripcion]]) -> 1331 - EXTRACCION DE MINERALES DE NIQUEL | C177: 1331 | D177: EXTRACCION DE MINERALES DE NIQUEL | E177: 1336 | F177: DCIIU | G177: Prevalidador_GobernacionesyAlcaldias.xlsm
A178: =Listas[[#This Row],[Lista]]&"_"&SUBSTITUTE(SUBSTITUTE(SUBSTITUTE(Listas[[#This Row],[Prevalidador]],".xlsm",""),"Prevalidador_Tributario_",""),"Prevalidador_","") -> DCIIU_GobernacionesyAlcaldias | B178: =Listas[[#This Row],[ID]]&" "&IF(Listas[[#This Row],[Descripcion]]="","","- "&Listas[[#This Row],[Descripcion]]) -> 1339 - EXTRACCION DE OTROS MINERALES METALIFEROS NO FERROSOS, EXCEPTO NIQUEL | C178: 1339 | D178: EXTRACCION DE OTROS MINERALES METALIFEROS NO FERROSOS, EXCEPTO NIQUEL | E178: 1337 | F178: DCIIU | G178: Prevalidador_GobernacionesyAlcaldias.xlsm
